Workbook

Sheet Prezenční listina (hidden)
A1: ="Prezenční listina - Malý svratecký maratón "&O2 -> Prezenční listina - Malý svratecký maratón 2016
B2: Příjmení | C2: Jméno | D2: Narození | E2: Oddíl / Bydliště | F2: Startovní číslo | G2: Adresa (e-mail) | H2: Kategorie | O2: 2016 | S2: Pohlaví
A3: 1 | B3: Alman | C3: Dušan | D3: 1967 | E3: Babice nad Svitavou | F3: 42 | G3: Babice n S | H3: =IF(S3<>"Ž",IF($O$2-D3>39,IF($O$2-D3>49,IF($O$2-D3>59,IF($O$2-D3>69,IF($O$2-D3>90,"","E"),"D"),"C"),"B"),"A"),IF(S3="Ž",IF($O$2-D3>34,IF($O$2-D3>44,IF($O$2-D3>90,"","H"),"G"),"F"))) -> B | S3: =IF(LEN(B3)=0," ",IF(MID(B3,LEN(B3),1)="á","Ž","M")) -> M
A4: =IF(B4<>0,A3+1,"") -> 2 | B4: Barták | C4: Ronald | D4: 1965 | E4: Kuřim | F4: 41 | G4: Kuřim | H4: C | S4: M
A5: 3 | B5: Barvíř | C5: Jiří | D5: 1982 | E5: R.I.P. Brno | F5: 2 | G5: Ježkova 7, Brno | H5: A | S5: M
A6: 4 | B6: Brabenec | C6: Miroslav | D6: 1959 | E6: Žďár nad Sázavou | F6: 67 | G6: Žďár nad Sáz. | H6: C | K6: Rok nastavit v buňce O2 | S6: M
A7: 5 | B7: Brabenec | C7: Aleš | D7: 1987 | E7: Žďár nad Sázavou | F7: 69 | G7: Žďár nad Sáz. | H7: A | S7: M
A8: 6 | B8: Češner | C8: Vladimír | D8: 1958 | E8: Odolená Voda | F8: 3 | G8: Odolená Voda | H8: C | S8: M
A9: 7 | B9: Dušil | C9: Jaroslav | D9: 1970 | E9: Běžecký klub Brno | F9: 35 | G9: Brno | H9: B | S9: M
A10: 8 | B10: Dýrová Macháčková | C10: Šárka | D10: 1983 | E10: AK Olymp Brno | F10: 34 | G10: Brno | H10: F | S10: Ž
A11: 9 | B11: Hakl | C11: Zdeněk | D11: 1982 | E11: SK Tri Cyklochlubna | F11: 90 | G11: Žďár nad Sázavou | H11: A | S11: M
A12: 10 | B12: Hakl | C12: Martin | D12: 1987 | E12: Running With Those That Can't | F12: 91 | G12: Praha | H12: A | S12: M
A13: 11 | B13: Holý | C13: Josef | D13: 1941 | E13: AC Moravská Slávia Brno | F13: 14 | G13: Brno | H13: E | S13: M
A14: 12 | B14: Hrdina | C14: Tomáš | D14: 1979 | E14: Běžecký klub Brno | F14: 37 | G14: Moravský Krumlov | H14: A | S14: M
A15: 13 | B15: Hýbl | C15: Jiří | D15: 1967 | E15: Hrušovany u Brna | F15: 54 | G15: Hrušovany u Brna | H15: B | S15: M
A16: 14 | B16: Chramosta | C16: Jaroslav | D16: 1966 | E16: JABOJA Team Děčín | F16: 8 | G16: Děčín | H16: C | S16: M
A17: 15 | B17: Kocur | C17: Lukáš | D17: 1977 | E17: VHS Brno | F17: 49 | G17: Brno | H17: A | S17: M
A18: 16 | B18: Kohoutek | C18: Jaromír | D18: 1955 | E18: watter and snow ski club Brno | F18: 26 | G18: Brno | H18: D | S18: M
A19: 17 | B19: Kohut | C19: Jan | D19: 1985 | E19: Elite Sport Team Blansko | F19: 31 | G19: Lažánky 55, Blansko | H19: A | S19: M
A20: 18 | B20: Komárková | C20: Zdeňka | D20: 1974 | E20: SDH Bolešín | F20: 4 | G20: Olešnice na Mor. | H20: G | S20: Ž
A21: 19 | B21: Konečný | C21: Libor | D21: 1971 | E21: Kuřim | F21: 93 | G21: Kuřim | H21: B | S21: M
A22: 20 | B22: Konečný | C22: Jaroslav | D22: 1969 | E22: Essens Popůvky | F22: 96 | G22: Popůvky | H22: B | S22: M
A23: 21 | B23: Kopečný | C23: Dušan | D23: 1973 | E23: AK Drnovice | F23: 11 | G23: Tovačovského 40, Prostějov | H23: B | S23: M
A24: 22 | B24: Koudelka | C24: Lukáš | D24: 1983 | E24: AK Drnovice | F24: 12 | G24: Rousínov | H24: A | S24: M
A25: 23 | B25: Koutský | C25: Tomáš | D25: 1987 | E25: Ledová stěna Vír | F25: 97 | H25: A | S25: M
A26: 24 | B26: Krátká | C26: Anna | D26: 1969 | E26: SKP Hvězda Pardubice | F26: 18 | H26: H | S26: Ž
A27: 25 | B27: Krátký | C27: Josef | D27: 1965 | E27: SKP Hvězda Pardubice | F27: 19 | H27: C | S27: M
A28: 26 | B28: Kratochvíl | C28: Jaroslav | D28: 1977 | E28: SDH Hluboké | F28: 1 | H28: A | S28: M
A29: 27 | B29: Kropáček | C29: Jaroslav | D29: 1970 | E29: Brno | F29: 51 | G29: Brno | H29: B | S29: M
A30: 28 | B30: Kupidlovský | C30: Daniel | D30: 1976 | E30: Praha Stodůlky | G30: Praha | H30: B | S30: M
A31: 29 | B31: Mahelová | C31: Jitka | D31: 1962 | E31: Atletic Třebíč | G31: Třebíč | H31: H | S31: Ž
A32: 30 | B32: Mareš | C32: Bohumil | D32: 1951 | E32: LEAR Brno | F32: 28 | G32: Brno | H32: D | S32: M
A33: 31 | B33: Martincová | C33: Ivana | D33: 1963 | E33: AC Moravská Slávia Brno | F33: 30 | G33: Ukrajinská 3,62500 Brno-Bohunice | H33: H | S33: Ž
A34: 32 | B34: Mička | C34: Michal | D34: 1987 | E34: Žďár nad Sázavou | F34: 70 | G34: Žďár nad Sáz. | H34: A | S34: M
A35: 33 | B35: Misař | C35: Ondřej | D35: 2000 | E35: Brno | F35: 45 | G35: Srbská 49, Brno | H35: =IF(S35<>"Ž",IF($O$2-D35>39,IF($O$2-D35>49,IF($O$2-D35>59,IF($O$2-D35>69,IF($O$2-D35>90,"","E"),"D"),"C"),"B"),"A"),IF(S35="Ž",IF($O$2-D35>34,IF($O$2-D35>44,IF($O$2-D35>90,"","H"),"G"),"F"))) -> A | S35: =IF(LEN(B35)=0," ",IF(MID(B35,LEN(B35),1)="á","Ž","M")) -> M
A36: =IF(B36<>0,A35+1,"") -> 34 | B36: Nekuža | C36: Jiří | D36: 1951 | E36: Runners Zbýšov | F36: 62 | G36: Zbýšov | H36: D | S36: M
A37: 35 | B37: Němec | C37: Jaroslav | D37: 1952 | E37: Blansko | F37: 36 | G37: Blansko | H37: D | S37: M
A38: 36 | B38: Nosek | C38: Pavel | D38: 1965 | E38: ASK Slavkov o.s. | F38: 79 | G38: Slavkov | H38: C | S38: M
A39: 37 | B39: Novotný | C39: Petr | D39: 1965 | E39: Kuřim | F39: 92 | G39: Kuřim | H39: C | S39: M
A40: 38 | B40: Orálek | C40: Daniel | D40: 1970 | E40: adidas Boost Team/AC Moravská Slávia Brno | F40: 83 | G40: Brno | H40: B | S40: M
A41: 39 | B41: Pešáková | C41: Mirka | D41: 1985 | E41: AC Racers Tetčice | F41: 38 | H41: F | S41: Ž
A42: 40 | B42: Petrů | C42: Roman | D42: 1976 | E42: Drnovice | F42: 80 | G42: Drnovice | H42: B | S42: M
A43: 41 | B43: Podmelová | C43: Vilma | D43: 1962 | E43: AC Moravská Slávia Brno | F43: 84 | G43: Brno | H43: H | S43: Ž
A44: 42 | B44: Rerych | C44: Jiří | D44: 1962 | E44: adidas Boost Team/AC Moravská Slávia Brno | F44: 77 | G44: Brno | H44: C | S44: M
A45: 43 | B45: Řezníček | C45: Roman | D45: 1977 | E45: Žďár nad Sázavou | F45: 85 | G45: Žďár nad Sáz. | H45: A | S45: M
A46: 44 | B46: Srnec | C46: Lukáš | D46: 1990 | E46: Židlochovice | F46: 56 | G46: Židlochovice | H46: A | S46: M
A47: 45 | B47: Suchý | C47: Karel | D47: 1956 | E47: Atletic Třebíč | F47: 60 | G47: Smetanova 244, 67571 Náměšť nad Osl. | H47: D | S47: M
A48: 46 | B48: Šádek | C48: Jiří | D48: 1959 | E48: Lomnice nad Popelkou | F48: 47 | G48: Lomnice nad Popelkou | H48: C | S48: M
A49: 47 | B49: Šedová | C49: Věra | D49: 1964 | E49: Atletic Třebíč | F49: 24 | G49: Třebíč | H49: H | S49: Ž
A50: 48 | B50: Šorf | C50: Ivo | D50: 1975 | E50: ABND Racing Team Bystřice nad Pernštejnem | F50: 82 | G50: Bystřice nad Pernštejnem | H50: B | S50: M
A51: 49 | B51: Šperka | C51: Oldřich | D51: 1956 | E51: Jedovnice | F51: 86 | G51: Jedovnice | H51: D | S51: M
A52: 50 | B52: Tesařová | C52: Marie | D52: 1954 | E52: Křižanov | F52: 13 | G52: Křižanov | H52: H | S52: Ž
A53: 51 | B53: Tonarová | C53: Miroslava | D53: 1976 | E53: Bory | F53: 98 | G53: Bory | H53: G | S53: Ž
A54: 52 | B54: Vágner | C54: Vojtěch | D54: 1999 | E54: Brno | F54: 46 | G54: B. Němcové 25, Brno | H54: A | S54: M
A55: 53 | B55: Vytisk | C55: Alfons | D55: 1949 | E55: MKS Ostrava | F55: 9 | G55: R.Prchaly 4479/26 Ostrava-Poruba | H55: D | S55: M
A56: 54 | B56: Weis | C56: Josef | D56: 1974 | E56: Elite Sport Boskovice | F56: 89 | G56: Olešnice | H56: B | S56: M
A57: 55 | B57: Zejda | C57: Ivo | D57: 1956 | E57: AC Moravská Slávia Brno | F57: 17 | G57: Brno | H57: D | S57: M
A58: 56 | B58: Železná | C58: Lada | D58: 1989 | E58: Brno | F58: 5 | H58: F | S58: Ž
A59: 57 | B59: Forýtek | C59: Michal | D59: 1982 | E59: Praha | F59: 6 | H59: A | S59: M
A60: 58 | B60: Forýtková | C60: Žaneta | D60: 1984 | E60: Praha | F60: 7 | H60: F | S60: Ž
A61: 59 | B61: Bolek | C61: Rostislav | D61: 1965 | E61: Insportline Ostrava | F61: 10 | H61: C | S61: M
A62: 60 | B62: Sláma | C62: Adolf | D62: 1970 | E62: Žďár nad Sázavou | F62: 21 | G62: Adslama@seznam.cz | H62: B | S62: M
A63: 61 | B63: Provazník | C63: Milan | D63: 1966 | E63: Atletika Polička | F63: 22 | G63: m.provaznik@email.cz | H63: C | S63: M
A64: 62 | B64: Kryštof | C64: Ondřej | D64: 1976 | E64: Jiskra Vír | F64: 23 | G64: o.krystof@seznam.cz | H64: B | S64: M
A65: 63 | B65: Kubík | C65: Jaromír | D65: 1955 | E65: Blansko | F65: 27 | G65: mika-k@seznam.cz | H65: D | S65: M
A66: 64 | B66: Dvořáček | C66: Jiří | D66: 1968 | E66: Elite sport team | F66: 33 | G66: dvorjiri@centrum.cz | H66: B | S66: M
A67: 65 | B67: Brázda | C67: Richard | D67: 1975 | E67: AC NOTARBRAZDA.CZ | F67: 40 | G67: brazda@notarbrazda.cz | H67: =IF(S67<>"Ž",IF($O$2-D67>39,IF($O$2-D67>49,IF($O$2-D67>59,IF($O$2-D67>69,IF($O$2-D67>90,"","E"),"D"),"C"),"B"),"A"),IF(S67="Ž",IF($O$2-D67>34,IF($O$2-D67>44,IF($O$2-D67>90,"","H"),"G"),"F"))) -> B | S67: =IF(LEN(B67)=0," ",IF(MID(B67,LEN(B67),1)="á","Ž","M")) -> M
A68: 66 | B68: Dubský | C68: Roman | D68: 1978 | E68: Přibyslav | F68: 44 | G68: dubsky.roman@seznam.cz | H68: A | S68: M
A69: 67 | B69: Příhoda | C69: Jan | D69: 1983 | E69: Ždánice | F69: 48 | G69: honza.prihoda@seznam.cz | H69: A | S69: M
A70: 68 | B70: Šimunek | C70: Martin | D70: 1966 | E70: Botanka running, Modřice | F70: 58 | G70: simunek@servisdmychadel.cz | H70: C | S70: M
A71: 69 | B71: Dvořák | C71: Vojtěch | D71: 1974 | E71: Brno | F71: 59 | G71: vdvorak3@nbox.cz | H71: B | S71: M
A72: 70 | B72: Nováček | C72: Tomáš | D72: 1983 | E72: Atletic Třebíč | F72: 61 | H72: A | S72: M
A73: 71 | B73: Rokosová | C73: Ivana | D73: 1982 | E73: Polička | F73: 63 | H73: F | S73: Ž
A74: =IF(B74<>0,A73+1,"") -> 72 | B74: Ožana | C74: Václav | D74: 1964 | E74: Atletic Třebíč | F74: 64 | H74: C | S74: M
A75: 73 | B75: Báňa | C75: Karel | D75: 1975 | E75: Jabloňov | F75: 72 | H75: B | S75: M
A76: 74 | B76: Hlavsa | C76: Tomáš | D76: 1983 | E76: Adamov | F76: 73 | H76: A | S76: M
A77: 75 | B77: Kalich | C77: Radim | D77: 1985 | E77: Odranec | F77: 75 | H77: A | S77: M
A78: 76 | B78: Prokop | C78: Ondřej | D78: 1962 | E78: Čau, Brno | F78: 76 | H78: C | S78: M
A79: 77 | B79: Hančl | C79: Roman | D79: 1967 | E79: Tišnov | F79: 87 | H79: B | S79: M
A80: 78 | B80: Benc | C80: Karel | D80: 1975 | E80: Pivonice | F80: 94 | H80: B | S80: M
A81: 79 | B81: Zourek | C81: Karel | D81: 1959 | E81: Bedřichovice | F81: 95 | H81: C | S81: M
A82: 80 | B82: Daněk | C82: Milan | D82: 1962 | E82: Horizont kola Novák Blansko | F82: 99 | H82: C | S82: M
A83: 81 | B83: Šacl | C83: Pavel | D83: 1981 | E83: Dolní Rožínka | F83: 100 | H83: A | S83: M
A84: 82 | B84: Jeneš | C84: Kamil | D84: 1984 | E84: 3KJRUN | F84: 101 | H84: A | S84: M
H99: =IF(S99<>"Ž",IF($O$2-D99>39,IF($O$2-D99>49,IF($O$2-D99>59,IF($O$2-D99>69,IF($O$2-D99>90,"","E"),"D"),"C"),"B"),"A"),IF(S99="Ž",IF($O$2-D99>34,IF($O$2-D99>44,IF($O$2-D99>90,"","H"),"G"),"F"))) ->  | S99: =IF(LEN(B99)=0," ",IF(MID(B99,LEN(B99),1)="á","Ž","M")) -> 
A100: =IF(B100<>0,A99+1,"") -> 
H131: =IF(S131<>"Ž",IF($O$2-D131>39,IF($O$2-D131>49,IF($O$2-D131>59,IF($O$2-D131>69,IF($O$2-D131>90,"","E"),"D"),"C"),"B"),"A"),IF(S131="Ž",IF($O$2-D131>34,IF($O$2-D131>44,IF($O$2-D131>90,"","H"),"G"),"F"))) ->  | S131: =IF(LEN(B131)=0," ",IF(MID(B131,LEN(B131),1)="á","Ž","M")) -> 
A132: =IF(B132<>0,A131+1,"") -> 

Sheet Startovní listina
A1: ="Startovní listina - Malý svratecký maraton "&'Prezenční listina'!O2 -> Startovní listina - Malý svratecký maraton 2016
A2: 2016-08-20 | I2: Počet přihlášených v jednotlivých kategoriích
A3: ='Prezenční listina'!O2-1953&". ročník" -> 63. ročník | L3: Celkem startujících
B4: Startovní číslo | C4: Příjmení | D4: Jméno | E4: Narození | F4: Oddíl / Bydliště | G4: Kategorie
A5: 1 | B5: =IF('Prezenční listina'!F28=0,"",'Prezenční listina'!F28) -> 1 | C5: =IF('Prezenční listina'!F28=0,"",'Prezenční listina'!B28) -> Kratochvíl | D5: =IF('Prezenční listina'!F28=0,"",'Prezenční listina'!C28) -> Jaroslav | E5: =IF('Prezenční listina'!F28=0,"",'Prezenční listina'!D28) -> 1977 | F5: =IF('Prezenční listina'!F28=0,"",'Prezenční listina'!E28) -> SDH Hluboké | G5: =IF('Prezenční listina'!F28=0,"",'Prezenční listina'!H28) -> A | I5: A: | J5: =COUNTIF($G$5:$G$141,"A") -> 23 | L5: =COUNT(B5:B141) -> 80
A6: =IF(C6="","",A5+1) -> 2 | B6: =IF('Prezenční listina'!F5=0,"",'Prezenční listina'!F5) -> 2 | C6: =IF('Prezenční listina'!F5=0,"",'Prezenční listina'!B5) -> Barvíř | D6: =IF('Prezenční listina'!F5=0,"",'Prezenční listina'!C5) -> Jiří | E6: =IF('Prezenční listina'!F5=0,"",'Prezenční listina'!D5) -> 1982 | F6: =IF('Prezenční listina'!F5=0,"",'Prezenční listina'!E5) -> R.I.P. Brno | G6: =IF('Prezenční listina'!F5=0,"",'Prezenční listina'!H5) -> A | I6: B: | J6: =COUNTIF($G$5:$G$141,"B") -> 19
A7: 3 | B7: =IF('Prezenční listina'!F8=0,"",'Prezenční listina'!F8) -> 3 | C7: =IF('Prezenční listina'!F8=0,"",'Prezenční listina'!B8) -> Češner | D7: =IF('Prezenční listina'!F8=0,"",'Prezenční listina'!C8) -> Vladimír | E7: =IF('Prezenční listina'!F8=0,"",'Prezenční listina'!D8) -> 1958 | F7: =IF('Prezenční listina'!F8=0,"",'Prezenční listina'!E8) -> Odolená Voda | G7: =IF('Prezenční listina'!F8=0,"",'Prezenční listina'!H8) -> C | I7: C: | J7: =COUNTIF($G$5:$G$141,"C") -> 16
A8: 4 | B8: =IF('Prezenční listina'!F20=0,"",'Prezenční listina'!F20) -> 4 | C8: =IF('Prezenční listina'!F20=0,"",'Prezenční listina'!B20) -> Komárková | D8: =IF('Prezenční listina'!F20=0,"",'Prezenční listina'!C20) -> Zdeňka | E8: =IF('Prezenční listina'!F20=0,"",'Prezenční listina'!D20) -> 1974 | F8: =IF('Prezenční listina'!F20=0,"",'Prezenční listina'!E20) -> SDH Bolešín | G8: =IF('Prezenční listina'!F20=0,"",'Prezenční listina'!H20) -> G | I8: D: | J8: =COUNTIF($G$5:$G$141,"D") -> 9
A9: 5 | B9: =IF('Prezenční listina'!F58=0,"",'Prezenční listina'!F58) -> 5 | C9: =IF('Prezenční listina'!F58=0,"",'Prezenční listina'!B58) -> Železná | D9: =IF('Prezenční listina'!F58=0,"",'Prezenční listina'!C58) -> Lada | E9: =IF('Prezenční listina'!F58=0,"",'Prezenční listina'!D58) -> 1989 | F9: =IF('Prezenční listina'!F58=0,"",'Prezenční listina'!E58) -> Brno | G9: =IF('Prezenční listina'!F58=0,"",'Prezenční listina'!H58) -> F | I9: E: | J9: =COUNTIF($G$5:$G$141,"E") -> 1
A10: 6 | B10: =IF('Prezenční listina'!F59=0,"",'Prezenční listina'!F59) -> 6 | C10: =IF('Prezenční listina'!F59=0,"",'Prezenční listina'!B59) -> Forýtek | D10: =IF('Prezenční listina'!F59=0,"",'Prezenční listina'!C59) -> Michal | E10: =IF('Prezenční listina'!F59=0,"",'Prezenční listina'!D59) -> 1982 | F10: =IF('Prezenční listina'!F59=0,"",'Prezenční listina'!E59) -> Praha | G10: =IF('Prezenční listina'!F59=0,"",'Prezenční listina'!H59) -> A | I10: F: | J10: =COUNTIF($G$5:$G$141,"F") -> 5
A11: 7 | B11: =IF('Prezenční listina'!F60=0,"",'Prezenční listina'!F60) -> 7 | C11: =IF('Prezenční listina'!F60=0,"",'Prezenční listina'!B60) -> Forýtková | D11: =IF('Prezenční listina'!F60=0,"",'Prezenční listina'!C60) -> Žaneta | E11: =IF('Prezenční listina'!F60=0,"",'Prezenční listina'!D60) -> 1984 | F11: =IF('Prezenční listina'!F60=0,"",'Prezenční listina'!E60) -> Praha | G11: =IF('Prezenční listina'!F60=0,"",'Prezenční listina'!H60) -> F | I11: G: | J11: =COUNTIF($G$5:$G$141,"G") -> 2
A12: 8 | B12: =IF('Prezenční listina'!F16=0,"",'Prezenční listina'!F16) -> 8 | C12: =IF('Prezenční listina'!F16=0,"",'Prezenční listina'!B16) -> Chramosta | D12: =IF('Prezenční listina'!F16=0,"",'Prezenční listina'!C16) -> Jaroslav | E12: =IF('Prezenční listina'!F16=0,"",'Prezenční listina'!D16) -> 1966 | F12: =IF('Prezenční listina'!F16=0,"",'Prezenční listina'!E16) -> JABOJA Team Děčín | G12: =IF('Prezenční listina'!F16=0,"",'Prezenční listina'!H16) -> C | I12: H: | J12: =COUNTIF($G$5:$G$141,"H") -> 5
A13: 9 | B13: =IF('Prezenční listina'!F55=0,"",'Prezenční listina'!F55) -> 9 | C13: =IF('Prezenční listina'!F55=0,"",'Prezenční listina'!B55) -> Vytisk | D13: =IF('Prezenční listina'!F55=0,"",'Prezenční listina'!C55) -> Alfons | E13: =IF('Prezenční listina'!F55=0,"",'Prezenční listina'!D55) -> 1949 | F13: =IF('Prezenční listina'!F55=0,"",'Prezenční listina'!E55) -> MKS Ostrava | G13: =IF('Prezenční listina'!F55=0,"",'Prezenční listina'!H55) -> D
A14: 10 | B14: =IF('Prezenční listina'!F61=0,"",'Prezenční listina'!F61) -> 10 | C14: =IF('Prezenční listina'!F61=0,"",'Prezenční listina'!B61) -> Bolek | D14: =IF('Prezenční listina'!F61=0,"",'Prezenční listina'!C61) -> Rostislav | E14: =IF('Prezenční listina'!F61=0,"",'Prezenční listina'!D61) -> 1965 | F14: =IF('Prezenční listina'!F61=0,"",'Prezenční listina'!E61) -> Insportline Ostrava | G14: =IF('Prezenční listina'!F61=0,"",'Prezenční listina'!H61) -> C
A15: 11 | B15: =IF('Prezenční listina'!F23=0,"",'Prezenční listina'!F23) -> 11 | C15: =IF('Prezenční listina'!F23=0,"",'Prezenční listina'!B23) -> Kopečný | D15: =IF('Prezenční listina'!F23=0,"",'Prezenční listina'!C23) -> Dušan | E15: =IF('Prezenční listina'!F23=0,"",'Prezenční listina'!D23) -> 1973 | F15: =IF('Prezenční listina'!F23=0,"",'Prezenční listina'!E23) -> AK Drnovice | G15: =IF('Prezenční listina'!F23=0,"",'Prezenční listina'!H23) -> B
A16: 12 | B16: =IF('Prezenční listina'!F24=0,"",'Prezenční listina'!F24) -> 12 | C16: =IF('Prezenční listina'!F24=0,"",'Prezenční listina'!B24) -> Koudelka | D16: =IF('Prezenční listina'!F24=0,"",'Prezenční listina'!C24) -> Lukáš | E16: =IF('Prezenční listina'!F24=0,"",'Prezenční listina'!D24) -> 1983 | F16: =IF('Prezenční listina'!F24=0,"",'Prezenční listina'!E24) -> AK Drnovice | G16: =IF('Prezenční listina'!F24=0,"",'Prezenční listina'!H24) -> A
A17: 13 | B17: =IF('Prezenční listina'!F52=0,"",'Prezenční listina'!F52) -> 13 | C17: =IF('Prezenční listina'!F52=0,"",'Prezenční listina'!B52) -> Tesařová | D17: =IF('Prezenční listina'!F52=0,"",'Prezenční listina'!C52) -> Marie | E17: =IF('Prezenční listina'!F52=0,"",'Prezenční listina'!D52) -> 1954 | F17: =IF('Prezenční listina'!F52=0,"",'Prezenční listina'!E52) -> Křižanov | G17: =IF('Prezenční listina'!F52=0,"",'Prezenční listina'!H52) -> H
A18: 14 | B18: =IF('Prezenční listina'!F13=0,"",'Prezenční listina'!F13) -> 14 | C18: =IF('Prezenční listina'!F13=0,"",'Prezenční listina'!B13) -> Holý | D18: =IF('Prezenční listina'!F13=0,"",'Prezenční listina'!C13) -> Josef | E18: =IF('Prezenční listina'!F13=0,"",'Prezenční listina'!D13) -> 1941 | F18: =IF('Prezenční listina'!F13=0,"",'Prezenční listina'!E13) -> AC Moravská Slávia Brno | G18: =IF('Prezenční listina'!F13=0,"",'Prezenční listina'!H13) -> E
A19: 15 | B19: =IF('Prezenční listina'!F57=0,"",'Prezenční listina'!F57) -> 17 | C19: =IF('Prezenční listina'!F57=0,"",'Prezenční listina'!B57) -> Zejda | D19: =IF('Prezenční listina'!F57=0,"",'Prezenční listina'!C57) -> Ivo | E19: =IF('Prezenční listina'!F57=0,"",'Prezenční listina'!D57) -> 1956 | F19: =IF('Prezenční listina'!F57=0,"",'Prezenční listina'!E57) -> AC Moravská Slávia Brno | G19: =IF('Prezenční listina'!F57=0,"",'Prezenční listina'!H57) -> D
A20: 16 | B20: =IF('Prezenční listina'!F26=0,"",'Prezenční listina'!F26) -> 18 | C20: =IF('Prezenční listina'!F26=0,"",'Prezenční listina'!B26) -> Krátká | D20: =IF('Prezenční listina'!F26=0,"",'Prezenční listina'!C26) -> Anna | E20: =IF('Prezenční listina'!F26=0,"",'Prezenční listina'!D26) -> 1969 | F20: =IF('Prezenční listina'!F26=0,"",'Prezenční listina'!E26) -> SKP Hvězda Pardubice | G20: =IF('Prezenční listina'!F26=0,"",'Prezenční listina'!H26) -> H
A21: 17 | B21: =IF('Prezenční listina'!F27=0,"",'Prezenční listina'!F27) -> 19 | C21: =IF('Prezenční listina'!F27=0,"",'Prezenční listina'!B27) -> Krátký | D21: =IF('Prezenční listina'!F27=0,"",'Prezenční listina'!C27) -> Josef | E21: =IF('Prezenční listina'!F27=0,"",'Prezenční listina'!D27) -> 1965 | F21: =IF('Prezenční listina'!F27=0,"",'Prezenční listina'!E27) -> SKP Hvězda Pardubice | G21: =IF('Prezenční listina'!F27=0,"",'Prezenční listina'!H27) -> C
A22: 18 | B22: =IF('Prezenční listina'!F62=0,"",'Prezenční listina'!F62) -> 21 | C22: =IF('Prezenční listina'!F62=0,"",'Prezenční listina'!B62) -> Sláma | D22: =IF('Prezenční listina'!F62=0,"",'Prezenční listina'!C62) -> Adolf | E22: =IF('Prezenční listina'!F62=0,"",'Prezenční listina'!D62) -> 1970 | F22: =IF('Prezenční listina'!F62=0,"",'Prezenční listina'!E62) -> Žďár nad Sázavou | G22: =IF('Prezenční listina'!F62=0,"",'Prezenční listina'!H62) -> B
A23: 19 | B23: =IF('Prezenční listina'!F63=0,"",'Prezenční listina'!F63) -> 22 | C23: =IF('Prezenční listina'!F63=0,"",'Prezenční listina'!B63) -> Provazník | D23: =IF('Prezenční listina'!F63=0,"",'Prezenční listina'!C63) -> Milan | E23: =IF('Prezenční listina'!F63=0,"",'Prezenční listina'!D63) -> 1966 | F23: =IF('Prezenční listina'!F63=0,"",'Prezenční listina'!E63) -> Atletika Polička | G23: =IF('Prezenční listina'!F63=0,"",'Prezenční listina'!H63) -> C
A24: 20 | B24: =IF('Prezenční listina'!F64=0,"",'Prezenční listina'!F64) -> 23 | C24: =IF('Prezenční listina'!F64=0,"",'Prezenční listina'!B64) -> Kryštof | D24: =IF('Prezenční listina'!F64=0,"",'Prezenční listina'!C64) -> Ondřej | E24: =IF('Prezenční listina'!F64=0,"",'Prezenční listina'!D64) -> 1976 | F24: =IF('Prezenční listina'!F64=0,"",'Prezenční listina'!E64) -> Jiskra Vír | G24: =IF('Prezenční listina'!F64=0,"",'Prezenční listina'!H64) -> B
A25: 21 | B25: =IF('Prezenční listina'!F49=0,"",'Prezenční listina'!F49) -> 24 | C25: =IF('Prezenční listina'!F49=0,"",'Prezenční listina'!B49) -> Šedová | D25: =IF('Prezenční listina'!F49=0,"",'Prezenční listina'!C49) -> Věra | E25: =IF('Prezenční listina'!F49=0,"",'Prezenční listina'!D49) -> 1964 | F25: =IF('Prezenční listina'!F49=0,"",'Prezenční listina'!E49) -> Atletic Třebíč | G25: =IF('Prezenční listina'!F49=0,"",'Prezenční listina'!H49) -> H
A26: 22 | B26: =IF('Prezenční listina'!F18=0,"",'Prezenční listina'!F18) -> 26 | C26: =IF('Prezenční listina'!F18=0,"",'Prezenční listina'!B18) -> Kohoutek | D26: =IF('Prezenční listina'!F18=0,"",'Prezenční listina'!C18) -> Jaromír | E26: =IF('Prezenční listina'!F18=0,"",'Prezenční listina'!D18) -> 1955 | F26: =IF('Prezenční listina'!F18=0,"",'Prezenční listina'!E18) -> watter and snow ski club Brno | G26: =IF('Prezenční listina'!F18=0,"",'Prezenční listina'!H18) -> D
A27: 23 | B27: =IF('Prezenční listina'!F65=0,"",'Prezenční listina'!F65) -> 27 | C27: =IF('Prezenční listina'!F65=0,"",'Prezenční listina'!B65) -> Kubík | D27: =IF('Prezenční listina'!F65=0,"",'Prezenční listina'!C65) -> Jaromír | E27: =IF('Prezenční listina'!F65=0,"",'Prezenční listina'!D65) -> 1955 | F27: =IF('Prezenční listina'!F65=0,"",'Prezenční listina'!E65) -> Blansko | G27: =IF('Prezenční listina'!F65=0,"",'Prezenční listina'!H65) -> D
A28: 24 | B28: =IF('Prezenční listina'!F32=0,"",'Prezenční listina'!F32) -> 28 | C28: =IF('Prezenční listina'!F32=0,"",'Prezenční listina'!B32) -> Mareš | D28: =IF('Prezenční listina'!F32=0,"",'Prezenční listina'!C32) -> Bohumil | E28: =IF('Prezenční listina'!F32=0,"",'Prezenční listina'!D32) -> 1951 | F28: =IF('Prezenční listina'!F32=0,"",'Prezenční listina'!E32) -> LEAR Brno | G28: =IF('Prezenční listina'!F32=0,"",'Prezenční listina'!H32) -> D
A29: 25 | B29: =IF('Prezenční listina'!F33=0,"",'Prezenční listina'!F33) -> 30 | C29: =IF('Prezenční listina'!F33=0,"",'Prezenční listina'!B33) -> Martincová | D29: =IF('Prezenční listina'!F33=0,"",'Prezenční listina'!C33) -> Ivana | E29: =IF('Prezenční listina'!F33=0,"",'Prezenční listina'!D33) -> 1963 | F29: =IF('Prezenční listina'!F33=0,"",'Prezenční listina'!E33) -> AC Moravská Slávia Brno | G29: =IF('Prezenční listina'!F33=0,"",'Prezenční listina'!H33) -> H
A30: 26 | B30: =IF('Prezenční listina'!F19=0,"",'Prezenční listina'!F19) -> 31 | C30: =IF('Prezenční listina'!F19=0,"",'Prezenční listina'!B19) -> Kohut | D30: =IF('Prezenční listina'!F19=0,"",'Prezenční listina'!C19) -> Jan | E30: =IF('Prezenční listina'!F19=0,"",'Prezenční listina'!D19) -> 1985 | F30: =IF('Prezenční listina'!F19=0,"",'Prezenční listina'!E19) -> Elite Sport Team Blansko | G30: =IF('Prezenční listina'!F19=0,"",'Prezenční listina'!H19) -> A
A31: 27 | B31: =IF('Prezenční listina'!F66=0,"",'Prezenční listina'!F66) -> 33 | C31: =IF('Prezenční listina'!F66=0,"",'Prezenční listina'!B66) -> Dvořáček | D31: =IF('Prezenční listina'!F66=0,"",'Prezenční listina'!C66) -> Jiří | E31: =IF('Prezenční listina'!F66=0,"",'Prezenční listina'!D66) -> 1968 | F31: =IF('Prezenční listina'!F66=0,"",'Prezenční listina'!E66) -> Elite sport team | G31: =IF('Prezenční listina'!F66=0,"",'Prezenční listina'!H66) -> B
A32: 28 | B32: =IF('Prezenční listina'!F10=0,"",'Prezenční listina'!F10) -> 34 | C32: =IF('Prezenční listina'!F10=0,"",'Prezenční listina'!B10) -> Dýrová Macháčková | D32: =IF('Prezenční listina'!F10=0,"",'Prezenční listina'!C10) -> Šárka | E32: =IF('Prezenční listina'!F10=0,"",'Prezenční listina'!D10) -> 1983 | F32: =IF('Prezenční listina'!F10=0,"",'Prezenční listina'!E10) -> AK Olymp Brno | G32: =IF('Prezenční listina'!F10=0,"",'Prezenční listina'!H10) -> F
A33: 29 | B33: =IF('Prezenční listina'!F9=0,"",'Prezenční listina'!F9) -> 35 | C33: =IF('Prezenční listina'!F9=0,"",'Prezenční listina'!B9) -> Dušil | D33: =IF('Prezenční listina'!F9=0,"",'Prezenční listina'!C9) -> Jaroslav | E33: =IF('Prezenční listina'!F9=0,"",'Prezenční listina'!D9) -> 1970 | F33: =IF('Prezenční listina'!F9=0,"",'Prezenční listina'!E9) -> Běžecký klub Brno | G33: =IF('Prezenční listina'!F9=0,"",'Prezenční listina'!H9) -> B
A34: 30 | B34: =IF('Prezenční listina'!F37=0,"",'Prezenční listina'!F37) -> 36 | C34: =IF('Prezenční listina'!F37=0,"",'Prezenční listina'!B37) -> Němec | D34: =IF('Prezenční listina'!F37=0,"",'Prezenční listina'!C37) -> Jaroslav | E34: =IF('Prezenční listina'!F37=0,"",'Prezenční listina'!D37) -> 1952 | F34: =IF('Prezenční listina'!F37=0,"",'Prezenční listina'!E37) -> Blansko | G34: =IF('Prezenční listina'!F37=0,"",'Prezenční listina'!H37) -> D
A35: 31 | B35: =IF('Prezenční listina'!F14=0,"",'Prezenční listina'!F14) -> 37 | C35: =IF('Prezenční listina'!F14=0,"",'Prezenční listina'!B14) -> Hrdina | D35: =IF('Prezenční listina'!F14=0,"",'Prezenční listina'!C14) -> Tomáš | E35: =IF('Prezenční listina'!F14=0,"",'Prezenční listina'!D14) -> 1979 | F35: =IF('Prezenční listina'!F14=0,"",'Prezenční listina'!E14) -> Běžecký klub Brno | G35: =IF('Prezenční listina'!F14=0,"",'Prezenční listina'!H14) -> A
A36: 32 | B36: =IF('Prezenční listina'!F41=0,"",'Prezenční listina'!F41) -> 38 | C36: =IF('Prezenční listina'!F41=0,"",'Prezenční listina'!B41) -> Pešáková | D36: =IF('Prezenční listina'!F41=0,"",'Prezenční listina'!C41) -> Mirka | E36: =IF('Prezenční listina'!F41=0,"",'Prezenční listina'!D41) -> 1985 | F36: =IF('Prezenční listina'!F41=0,"",'Prezenční listina'!E41) -> AC Racers Tetčice | G36: =IF('Prezenční listina'!F41=0,"",'Prezenční listina'!H41) -> F
A37: 33 | B37: =IF('Prezenční listina'!F67=0,"",'Prezenční listina'!F67) -> 40 | C37: =IF('Prezenční listina'!F67=0,"",'Prezenční listina'!B67) -> Brázda | D37: =IF('Prezenční listina'!F67=0,"",'Prezenční listina'!C67) -> Richard | E37: =IF('Prezenční listina'!F67=0,"",'Prezenční listina'!D67) -> 1975 | F37: =IF('Prezenční listina'!F67=0,"",'Prezenční listina'!E67) -> AC NOTARBRAZDA.CZ | G37: =IF('Prezenční listina'!F67=0,"",'Prezenční listina'!H67) -> B
A38: 34 | B38: =IF('Prezenční listina'!F4=0,"",'Prezenční listina'!F4) -> 41 | C38: =IF('Prezenční listina'!F4=0,"",'Prezenční listina'!B4) -> Barták | D38: =IF('Prezenční listina'!F4=0,"",'Prezenční listina'!C4) -> Ronald | E38: =IF('Prezenční listina'!F4=0,"",'Prezenční listina'!D4) -> 1965 | F38: =IF('Prezenční listina'!F4=0,"",'Prezenční listina'!E4) -> Kuřim | G38: =IF('Prezenční listina'!F4=0,"",'Prezenční listina'!H4) -> C
A39: =IF(C39="","",A38+1) -> 35 | B39: =IF('Prezenční listina'!F3=0,"",'Prezenční listina'!F3) -> 42 | C39: =IF('Prezenční listina'!F3=0,"",'Prezenční listina'!B3) -> Alman | D39: =IF('Prezenční listina'!F3=0,"",'Prezenční listina'!C3) -> Dušan | E39: =IF('Prezenční listina'!F3=0,"",'Prezenční listina'!D3) -> 1967 | F39: =IF('Prezenční listina'!F3=0,"",'Prezenční listina'!E3) -> Babice nad Svitavou | G39: =IF('Prezenční listina'!F3=0,"",'Prezenční listina'!H3) -> B
A40: =IF(C40="","",A39+1) -> 36 | B40: =IF('Prezenční listina'!F68=0,"",'Prezenční listina'!F68) -> 44 | C40: =IF('Prezenční listina'!F68=0,"",'Prezenční listina'!B68) -> Dubský | D40: =IF('Prezenční listina'!F68=0,"",'Prezenční listina'!C68) -> Roman | E40: =IF('Prezenční listina'!F68=0,"",'Prezenční listina'!D68) -> 1978 | F40: =IF('Prezenční listina'!F68=0,"",'Prezenční listina'!E68) -> Přibyslav | G40: =IF('Prezenční listina'!F68=0,"",'Prezenční listina'!H68) -> A
A41: 37 | B41: =IF('Prezenční listina'!F35=0,"",'Prezenční listina'!F35) -> 45 | C41: =IF('Prezenční listina'!F35=0,"",'Prezenční listina'!B35) -> Misař | D41: =IF('Prezenční listina'!F35=0,"",'Prezenční listina'!C35) -> Ondřej | E41: =IF('Prezenční listina'!F35=0,"",'Prezenční listina'!D35) -> 2000 | F41: =IF('Prezenční listina'!F35=0,"",'Prezenční listina'!E35) -> Brno | G41: =IF('Prezenční listina'!F35=0,"",'Prezenční listina'!H35) -> A
A42: 38 | B42: =IF('Prezenční listina'!F54=0,"",'Prezenční listina'!F54) -> 46 | C42: =IF('Prezenční listina'!F54=0,"",'Prezenční listina'!B54) -> Vágner | D42: =IF('Prezenční listina'!F54=0,"",'Prezenční listina'!C54) -> Vojtěch | E42: =IF('Prezenční listina'!F54=0,"",'Prezenční listina'!D54) -> 1999 | F42: =IF('Prezenční listina'!F54=0,"",'Prezenční listina'!E54) -> Brno | G42: =IF('Prezenční listina'!F54=0,"",'Prezenční listina'!H54) -> A
A43: 39 | B43: =IF('Prezenční listina'!F48=0,"",'Prezenční listina'!F48) -> 47 | C43: =IF('Prezenční listina'!F48=0,"",'Prezenční listina'!B48) -> Šádek | D43: =IF('Prezenční listina'!F48=0,"",'Prezenční listina'!C48) -> Jiří | E43: =IF('Prezenční listina'!F48=0,"",'Prezenční listina'!D48) -> 1959 | F43: =IF('Prezenční listina'!F48=0,"",'Prezenční listina'!E48) -> Lomnice nad Popelkou | G43: =IF('Prezenční listina'!F48=0,"",'Prezenční listina'!H48) -> C
A44: 40 | B44: =IF('Prezenční listina'!F69=0,"",'Prezenční listina'!F69) -> 48 | C44: =IF('Prezenční listina'!F69=0,"",'Prezenční listina'!B69) -> Příhoda | D44: =IF('Prezenční listina'!F69=0,"",'Prezenční listina'!C69) -> Jan | E44: =IF('Prezenční listina'!F69=0,"",'Prezenční listina'!D69) -> 1983 | F44: =IF('Prezenční listina'!F69=0,"",'Prezenční listina'!E69) -> Ždánice | G44: =IF('Prezenční listina'!F69=0,"",'Prezenční listina'!H69) -> A
A45: 41 | B45: =IF('Prezenční listina'!F17=0,"",'Prezenční listina'!F17) -> 49 | C45: =IF('Prezenční listina'!F17=0,"",'Prezenční listina'!B17) -> Kocur | D45: =IF('Prezenční listina'!F17=0,"",'Prezenční listina'!C17) -> Lukáš | E45: =IF('Prezenční listina'!F17=0,"",'Prezenční listina'!D17) -> 1977 | F45: =IF('Prezenční listina'!F17=0,"",'Prezenční listina'!E17) -> VHS Brno | G45: =IF('Prezenční listina'!F17=0,"",'Prezenční listina'!H17) -> A
A46: 42 | B46: =IF('Prezenční listina'!F29=0,"",'Prezenční listina'!F29) -> 51 | C46: =IF('Prezenční listina'!F29=0,"",'Prezenční listina'!B29) -> Kropáček | D46: =IF('Prezenční listina'!F29=0,"",'Prezenční listina'!C29) -> Jaroslav | E46: =IF('Prezenční listina'!F29=0,"",'Prezenční listina'!D29) -> 1970 | F46: =IF('Prezenční listina'!F29=0,"",'Prezenční listina'!E29) -> Brno | G46: =IF('Prezenční listina'!F29=0,"",'Prezenční listina'!H29) -> B
A47: 43 | B47: =IF('Prezenční listina'!F15=0,"",'Prezenční listina'!F15) -> 54 | C47: =IF('Prezenční listina'!F15=0,"",'Prezenční listina'!B15) -> Hýbl | D47: =IF('Prezenční listina'!F15=0,"",'Prezenční listina'!C15) -> Jiří | E47: =IF('Prezenční listina'!F15=0,"",'Prezenční listina'!D15) -> 1967 | F47: =IF('Prezenční listina'!F15=0,"",'Prezenční listina'!E15) -> Hrušovany u Brna | G47: =IF('Prezenční listina'!F15=0,"",'Prezenční listina'!H15) -> B
A48: 44 | B48: =IF('Prezenční listina'!F46=0,"",'Prezenční listina'!F46) -> 56 | C48: =IF('Prezenční listina'!F46=0,"",'Prezenční listina'!B46) -> Srnec | D48: =IF('Prezenční listina'!F46=0,"",'Prezenční listina'!C46) -> Lukáš | E48: =IF('Prezenční listina'!F46=0,"",'Prezenční listina'!D46) -> 1990 | F48: =IF('Prezenční listina'!F46=0,"",'Prezenční listina'!E46) -> Židlochovice | G48: =IF('Prezenční listina'!F46=0,"",'Prezenční listina'!H46) -> A
A49: 45 | B49: =IF('Prezenční listina'!F70=0,"",'Prezenční listina'!F70) -> 58 | C49: =IF('Prezenční listina'!F70=0,"",'Prezenční listina'!B70) -> Šimunek | D49: =IF('Prezenční listina'!F70=0,"",'Prezenční listina'!C70) -> Martin | E49: =IF('Prezenční listina'!F70=0,"",'Prezenční listina'!D70) -> 1966 | F49: =IF('Prezenční listina'!F70=0,"",'Prezenční listina'!E70) -> Botanka running, Modřice | G49: =IF('Prezenční listina'!F70=0,"",'Prezenční listina'!H70) -> C
A50: 46 | B50: =IF('Prezenční listina'!F71=0,"",'Prezenční listina'!F71) -> 59 | C50: =IF('Prezenční listina'!F71=0,"",'Prezenční listina'!B71) -> Dvořák | D50: =IF('Prezenční listina'!F71=0,"",'Prezenční listina'!C71) -> Vojtěch | E50: =IF('Prezenční listina'!F71=0,"",'Prezenční listina'!D71) -> 1974 | F50: =IF('Prezenční listina'!F71=0,"",'Prezenční listina'!E71) -> Brno | G50: =IF('Prezenční listina'!F71=0,"",'Prezenční listina'!H71) -> B
A51: 47 | B51: =IF('Prezenční listina'!F47=0,"",'Prezenční listina'!F47) -> 60 | C51: =IF('Prezenční listina'!F47=0,"",'Prezenční listina'!B47) -> Suchý | D51: =IF('Prezenční listina'!F47=0,"",'Prezenční listina'!C47) -> Karel | E51: =IF('Prezenční listina'!F47=0,"",'Prezenční listina'!D47) -> 1956 | F51: =IF('Prezenční listina'!F47=0,"",'Prezenční listina'!E47) -> Atletic Třebíč | G51: =IF('Prezenční listina'!F47=0,"",'Prezenční listina'!H47) -> D
A52: 48 | B52: =IF('Prezenční listina'!F72=0,"",'Prezenční listina'!F72) -> 61 | C52: =IF('Prezenční listina'!F72=0,"",'Prezenční listina'!B72) -> Nováček | D52: =IF('Prezenční listina'!F72=0,"",'Prezenční listina'!C72) -> Tomáš | E52: =IF('Prezenční listina'!F72=0,"",'Prezenční listina'!D72) -> 1983 | F52: =IF('Prezenční listina'!F72=0,"",'Prezenční listina'!E72) -> Atletic Třebíč | G52: =IF('Prezenční listina'!F72=0,"",'Prezenční listina'!H72) -> A
A53: 49 | B53: =IF('Prezenční listina'!F36=0,"",'Prezenční listina'!F36) -> 62 | C53: =IF('Prezenční listina'!F36=0,"",'Prezenční listina'!B36) -> Nekuža | D53: =IF('Prezenční listina'!F36=0,"",'Prezenční listina'!C36) -> Jiří | E53: =IF('Prezenční listina'!F36=0,"",'Prezenční listina'!D36) -> 1951 | F53: =IF('Prezenční listina'!F36=0,"",'Prezenční listina'!E36) -> Runners Zbýšov | G53: =IF('Prezenční listina'!F36=0,"",'Prezenční listina'!H36) -> D
A54: 50 | B54: =IF('Prezenční listina'!F73=0,"",'Prezenční listina'!F73) -> 63 | C54: =IF('Prezenční listina'!F73=0,"",'Prezenční listina'!B73) -> Rokosová | D54: =IF('Prezenční listina'!F73=0,"",'Prezenční listina'!C73) -> Ivana | E54: =IF('Prezenční listina'!F73=0,"",'Prezenční listina'!D73) -> 1982 | F54: =IF('Prezenční listina'!F73=0,"",'Prezenční listina'!E73) -> Polička | G54: =IF('Prezenční listina'!F73=0,"",'Prezenční listina'!H73) -> F
A55: 51 | B55: =IF('Prezenční listina'!F74=0,"",'Prezenční listina'!F74) -> 64 | C55: =IF('Prezenční listina'!F74=0,"",'Prezenční listina'!B74) -> Ožana | D55: =IF('Prezenční listina'!F74=0,"",'Prezenční listina'!C74) -> Václav | E55: =IF('Prezenční listina'!F74=0,"",'Prezenční listina'!D74) -> 1964 | F55: =IF('Prezenční listina'!F74=0,"",'Prezenční listina'!E74) -> Atletic Třebíč | G55: =IF('Prezenční listina'!F74=0,"",'Prezenční listina'!H74) -> C
A56: 52 | B56: =IF('Prezenční listina'!F6=0,"",'Prezenční listina'!F6) -> 67 | C56: =IF('Prezenční listina'!F6=0,"",'Prezenční listina'!B6) -> Brabenec | D56: =IF('Prezenční listina'!F6=0,"",'Prezenční listina'!C6) -> Miroslav | E56: =IF('Prezenční listina'!F6=0,"",'Prezenční listina'!D6) -> 1959 | F56: =IF('Prezenční listina'!F6=0,"",'Prezenční listina'!E6) -> Žďár nad Sázavou | G56: =IF('Prezenční listina'!F6=0,"",'Prezenční listina'!H6) -> C
A57: 53 | B57: =IF('Prezenční listina'!F7=0,"",'Prezenční listina'!F7) -> 69 | C57: =IF('Prezenční listina'!F7=0,"",'Prezenční listina'!B7) -> Brabenec | D57: =IF('Prezenční listina'!F7=0,"",'Prezenční listina'!C7) -> Aleš | E57: =IF('Prezenční listina'!F7=0,"",'Prezenční listina'!D7) -> 1987 | F57: =IF('Prezenční listina'!F7=0,"",'Prezenční listina'!E7) -> Žďár nad Sázavou | G57: =IF('Prezenční listina'!F7=0,"",'Prezenční listina'!H7) -> A
A58: 54 | B58: =IF('Prezenční listina'!F34=0,"",'Prezenční listina'!F34) -> 70 | C58: =IF('Prezenční listina'!F34=0,"",'Prezenční listina'!B34) -> Mička | D58: =IF('Prezenční listina'!F34=0,"",'Prezenční listina'!C34) -> Michal | E58: =IF('Prezenční listina'!F34=0,"",'Prezenční listina'!D34) -> 1987 | F58: =IF('Prezenční listina'!F34=0,"",'Prezenční listina'!E34) -> Žďár nad Sázavou | G58: =IF('Prezenční listina'!F34=0,"",'Prezenční listina'!H34) -> A
A59: 55 | B59: =IF('Prezenční listina'!F75=0,"",'Prezenční listina'!F75) -> 72 | C59: =IF('Prezenční listina'!F75=0,"",'Prezenční listina'!B75) -> Báňa | D59: =IF('Prezenční listina'!F75=0,"",'Prezenční listina'!C75) -> Karel | E59: =IF('Prezenční listina'!F75=0,"",'Prezenční listina'!D75) -> 1975 | F59: =IF('Prezenční listina'!F75=0,"",'Prezenční listina'!E75) -> Jabloňov | G59: =IF('Prezenční listina'!F75=0,"",'Prezenční listina'!H75) -> B
A60: 56 | B60: =IF('Prezenční listina'!F76=0,"",'Prezenční listina'!F76) -> 73 | C60: =IF('Prezenční listina'!F76=0,"",'Prezenční listina'!B76) -> Hlavsa | D60: =IF('Prezenční listina'!F76=0,"",'Prezenční listina'!C76) -> Tomáš | E60: =IF('Prezenční listina'!F76=0,"",'Prezenční listina'!D76) -> 1983 | F60: =IF('Prezenční listina'!F76=0,"",'Prezenční listina'!E76) -> Adamov | G60: =IF('Prezenční listina'!F76=0,"",'Prezenční listina'!H76) -> A
A61: 57 | B61: =IF('Prezenční listina'!F77=0,"",'Prezenční listina'!F77) -> 75 | C61: =IF('Prezenční listina'!F77=0,"",'Prezenční listina'!B77) -> Kalich | D61: =IF('Prezenční listina'!F77=0,"",'Prezenční listina'!C77) -> Radim | E61: =IF('Prezenční listina'!F77=0,"",'Prezenční listina'!D77) -> 1985 | F61: =IF('Prezenční listina'!F77=0,"",'Prezenční listina'!E77) -> Odranec | G61: =IF('Prezenční listina'!F77=0,"",'Prezenční listina'!H77) -> A
A62: 58 | B62: =IF('Prezenční listina'!F78=0,"",'Prezenční listina'!F78) -> 76 | C62: =IF('Prezenční listina'!F78=0,"",'Prezenční listina'!B78) -> Prokop | D62: =IF('Prezenční listina'!F78=0,"",'Prezenční listina'!C78) -> Ondřej | E62: =IF('Prezenční listina'!F78=0,"",'Prezenční listina'!D78) -> 1962 | F62: =IF('Prezenční listina'!F78=0,"",'Prezenční listina'!E78) -> Čau, Brno | G62: =IF('Prezenční listina'!F78=0,"",'Prezenční listina'!H78) -> C
A63: 59 | B63: =IF('Prezenční listina'!F44=0,"",'Prezenční listina'!F44) -> 77 | C63: =IF('Prezenční listina'!F44=0,"",'Prezenční listina'!B44) -> Rerych | D63: =IF('Prezenční listina'!F44=0,"",'Prezenční listina'!C44) -> Jiří | E63: =IF('Prezenční listina'!F44=0,"",'Prezenční listina'!D44) -> 1962 | F63: =IF('Prezenční listina'!F44=0,"",'Prezenční listina'!E44) -> adidas Boost Team/AC Moravská Slávia Brno | G63: =IF('Prezenční listina'!F44=0,"",'Prezenční listina'!H44) -> C
A64: 60 | B64: =IF('Prezenční listina'!F38=0,"",'Prezenční listina'!F38) -> 79 | C64: =IF('Prezenční listina'!F38=0,"",'Prezenční listina'!B38) -> Nosek | D64: =IF('Prezenční listina'!F38=0,"",'Prezenční listina'!C38) -> Pavel | E64: =IF('Prezenční listina'!F38=0,"",'Prezenční listina'!D38) -> 1965 | F64: =IF('Prezenční listina'!F38=0,"",'Prezenční listina'!E38) -> ASK Slavkov o.s. | G64: =IF('Prezenční listina'!F38=0,"",'Prezenční listina'!H38) -> C
A65: 61 | B65: =IF('Prezenční listina'!F42=0,"",'Prezenční listina'!F42) -> 80 | C65: =IF('Prezenční listina'!F42=0,"",'Prezenční listina'!B42) -> Petrů | D65: =IF('Prezenční listina'!F42=0,"",'Prezenční listina'!C42) -> Roman | E65: =IF('Prezenční listina'!F42=0,"",'Prezenční listina'!D42) -> 1976 | F65: =IF('Prezenční listina'!F42=0,"",'Prezenční listina'!E42) -> Drnovice | G65: =IF('Prezenční listina'!F42=0,"",'Prezenční listina'!H42) -> B
A66: 62 | B66: =IF('Prezenční listina'!F50=0,"",'Prezenční listina'!F50) -> 82 | C66: =IF('Prezenční listina'!F50=0,"",'Prezenční listina'!B50) -> Šorf | D66: =IF('Prezenční listina'!F50=0,"",'Prezenční listina'!C50) -> Ivo | E66: =IF('Prezenční listina'!F50=0,"",'Prezenční listina'!D50) -> 1975 | F66: =IF('Prezenční listina'!F50=0,"",'Prezenční listina'!E50) -> ABND Racing Team Bystřice nad Pernštejnem | G66: =IF('Prezenční listina'!F50=0,"",'Prezenční listina'!H50) -> B
A67: 63 | B67: =IF('Prezenční listina'!F40=0,"",'Prezenční listina'!F40) -> 83 | C67: =IF('Prezenční listina'!F40=0,"",'Prezenční listina'!B40) -> Orálek | D67: =IF('Prezenční listina'!F40=0,"",'Prezenční listina'!C40) -> Daniel | E67: =IF('Prezenční listina'!F40=0,"",'Prezenční listina'!D40) -> 1970 | F67: =IF('Prezenční listina'!F40=0,"",'Prezenční listina'!E40) -> adidas Boost Team/AC Moravská Slávia Brno | G67: =IF('Prezenční listina'!F40=0,"",'Prezenční listina'!H40) -> B
A68: 64 | B68: =IF('Prezenční listina'!F43=0,"",'Prezenční listina'!F43) -> 84 | C68: =IF('Prezenční listina'!F43=0,"",'Prezenční listina'!B43) -> Podmelová | D68: =IF('Prezenční listina'!F43=0,"",'Prezenční listina'!C43) -> Vilma | E68: =IF('Prezenční listina'!F43=0,"",'Prezenční listina'!D43) -> 1962 | F68: =IF('Prezenční listina'!F43=0,"",'Prezenční listina'!E43) -> AC Moravská Slávia Brno | G68: =IF('Prezenční listina'!F43=0,"",'Prezenční listina'!H43) -> H
A69: 65 | B69: =IF('Prezenční listina'!F45=0,"",'Prezenční listina'!F45) -> 85 | C69: =IF('Prezenční listina'!F45=0,"",'Prezenční listina'!B45) -> Řezníček | D69: =IF('Prezenční listina'!F45=0,"",'Prezenční listina'!C45) -> Roman | E69: =IF('Prezenční listina'!F45=0,"",'Prezenční listina'!D45) -> 1977 | F69: =IF('Prezenční listina'!F45=0,"",'Prezenční listina'!E45) -> Žďár nad Sázavou | G69: =IF('Prezenční listina'!F45=0,"",'Prezenční listina'!H45) -> A
A70: 66 | B70: =IF('Prezenční listina'!F51=0,"",'Prezenční listina'!F51) -> 86 | C70: =IF('Prezenční listina'!F51=0,"",'Prezenční listina'!B51) -> Šperka | D70: =IF('Prezenční listina'!F51=0,"",'Prezenční listina'!C51) -> Oldřich | E70: =IF('Prezenční listina'!F51=0,"",'Prezenční listina'!D51) -> 1956 | F70: =IF('Prezenční listina'!F51=0,"",'Prezenční listina'!E51) -> Jedovnice | G70: =IF('Prezenční listina'!F51=0,"",'Prezenční listina'!H51) -> D
A71: 67 | B71: =IF('Prezenční listina'!F79=0,"",'Prezenční listina'!F79) -> 87 | C71: =IF('Prezenční listina'!F79=0,"",'Prezenční listina'!B79) -> Hančl | D71: =IF('Prezenční listina'!F79=0,"",'Prezenční listina'!C79) -> Roman | E71: =IF('Prezenční listina'!F79=0,"",'Prezenční listina'!D79) -> 1967 | F71: =IF('Prezenční listina'!F79=0,"",'Prezenční listina'!E79) -> Tišnov | G71: =IF('Prezenční listina'!F79=0,"",'Prezenční listina'!H79) -> B
A72: 68 | B72: =IF('Prezenční listina'!F56=0,"",'Prezenční listina'!F56) -> 89 | C72: =IF('Prezenční listina'!F56=0,"",'Prezenční listina'!B56) -> Weis | D72: =IF('Prezenční listina'!F56=0,"",'Prezenční listina'!C56) -> Josef | E72: =IF('Prezenční listina'!F56=0,"",'Prezenční listina'!D56) -> 1974 | F72: =IF('Prezenční listina'!F56=0,"",'Prezenční listina'!E56) -> Elite Sport Boskovice | G72: =IF('Prezenční listina'!F56=0,"",'Prezenční listina'!H56) -> B
A73: 69 | B73: =IF('Prezenční listina'!F11=0,"",'Prezenční listina'!F11) -> 90 | C73: =IF('Prezenční listina'!F11=0,"",'Prezenční listina'!B11) -> Hakl | D73: =IF('Prezenční listina'!F11=0,"",'Prezenční listina'!C11) -> Zdeněk | E73: =IF('Prezenční listina'!F11=0,"",'Prezenční listina'!D11) -> 1982 | F73: =IF('Prezenční listina'!F11=0,"",'Prezenční listina'!E11) -> SK Tri Cyklochlubna | G73: =IF('Prezenční listina'!F11=0,"",'Prezenční listina'!H11) -> A
A74: =IF(C74="","",A73+1) -> 70 | B74: =IF('Prezenční listina'!F12=0,"",'Prezenční listina'!F12) -> 91 | C74: =IF('Prezenční listina'!F12=0,"",'Prezenční listina'!B12) -> Hakl | D74: =IF('Prezenční listina'!F12=0,"",'Prezenční listina'!C12) -> Martin | E74: =IF('Prezenční listina'!F12=0,"",'Prezenční listina'!D12) -> 1987 | F74: =IF('Prezenční listina'!F12=0,"",'Prezenční listina'!E12) -> Running With Those That Can't | G74: =IF('Prezenční listina'!F12=0,"",'Prezenční listina'!H12) -> A
A75: 71 | B75: =IF('Prezenční listina'!F39=0,"",'Prezenční listina'!F39) -> 92 | C75: =IF('Prezenční listina'!F39=0,"",'Prezenční listina'!B39) -> Novotný | D75: =IF('Prezenční listina'!F39=0,"",'Prezenční listina'!C39) -> Petr | E75: =IF('Prezenční listina'!F39=0,"",'Prezenční listina'!D39) -> 1965 | F75: =IF('Prezenční listina'!F39=0,"",'Prezenční listina'!E39) -> Kuřim | G75: =IF('Prezenční listina'!F39=0,"",'Prezenční listina'!H39) -> C
A76: 72 | B76: =IF('Prezenční listina'!F21=0,"",'Prezenční listina'!F21) -> 93 | C76: =IF('Prezenční listina'!F21=0,"",'Prezenční listina'!B21) -> Konečný | D76: =IF('Prezenční listina'!F21=0,"",'Prezenční listina'!C21) -> Libor | E76: =IF('Prezenční listina'!F21=0,"",'Prezenční listina'!D21) -> 1971 | F76: =IF('Prezenční listina'!F21=0,"",'Prezenční listina'!E21) -> Kuřim | G76: =IF('Prezenční listina'!F21=0,"",'Prezenční listina'!H21) -> B
A77: 73 | B77: =IF('Prezenční listina'!F80=0,"",'Prezenční listina'!F80) -> 94 | C77: =IF('Prezenční listina'!F80=0,"",'Prezenční listina'!B80) -> Benc | D77: =IF('Prezenční listina'!F80=0,"",'Prezenční listina'!C80) -> Karel | E77: =IF('Prezenční listina'!F80=0,"",'Prezenční listina'!D80) -> 1975 | F77: =IF('Prezenční listina'!F80=0,"",'Prezenční listina'!E80) -> Pivonice | G77: =IF('Prezenční listina'!F80=0,"",'Prezenční listina'!H80) -> B
A78: 74 | B78: =IF('Prezenční listina'!F81=0,"",'Prezenční listina'!F81) -> 95 | C78: =IF('Prezenční listina'!F81=0,"",'Prezenční listina'!B81) -> Zourek | D78: =IF('Prezenční listina'!F81=0,"",'Prezenční listina'!C81) -> Karel | E78: =IF('Prezenční listina'!F81=0,"",'Prezenční listina'!D81) -> 1959 | F78: =IF('Prezenční listina'!F81=0,"",'Prezenční listina'!E81) -> Bedřichovice | G78: =IF('Prezenční listina'!F81=0,"",'Prezenční listina'!H81) -> C
A79: 75 | B79: =IF('Prezenční listina'!F22=0,"",'Prezenční listina'!F22) -> 96 | C79: =IF('Prezenční listina'!F22=0,"",'Prezenční listina'!B22) -> Konečný | D79: =IF('Prezenční listina'!F22=0,"",'Prezenční listina'!C22) -> Jaroslav | E79: =IF('Prezenční listina'!F22=0,"",'Prezenční listina'!D22) -> 1969 | F79: =IF('Prezenční listina'!F22=0,"",'Prezenční listina'!E22) -> Essens Popůvky | G79: =IF('Prezenční listina'!F22=0,"",'Prezenční listina'!H22) -> B
A80: 76 | B80: =IF('Prezenční listina'!F25=0,"",'Prezenční listina'!F25) -> 97 | C80: =IF('Prezenční listina'!F25=0,"",'Prezenční listina'!B25) -> Koutský | D80: =IF('Prezenční listina'!F25=0,"",'Prezenční listina'!C25) -> Tomáš | E80: =IF('Prezenční listina'!F25=0,"",'Prezenční listina'!D25) -> 1987 | F80: =IF('Prezenční listina'!F25=0,"",'Prezenční listina'!E25) -> Ledová stěna Vír | G80: =IF('Prezenční listina'!F25=0,"",'Prezenční listina'!H25) -> A
A81: 77 | B81: =IF('Prezenční listina'!F53=0,"",'Prezenční listina'!F53) -> 98 | C81: =IF('Prezenční listina'!F53=0,"",'Prezenční listina'!B53) -> Tonarová | D81: =IF('Prezenční listina'!F53=0,"",'Prezenční listina'!C53) -> Miroslava | E81: =IF('Prezenční listina'!F53=0,"",'Prezenční listina'!D53) -> 1976 | F81: =IF('Prezenční listina'!F53=0,"",'Prezenční listina'!E53) -> Bory | G81: =IF('Prezenční listina'!F53=0,"",'Prezenční listina'!H53) -> G
A82: 78 | B82: =IF('Prezenční listina'!F82=0,"",'Prezenční listina'!F82) -> 99 | C82: =IF('Prezenční listina'!F82=0,"",'Prezenční listina'!B82) -> Daněk | D82: =IF('Prezenční listina'!F82=0,"",'Prezenční listina'!C82) -> Milan | E82: =IF('Prezenční listina'!F82=0,"",'Prezenční listina'!D82) -> 1962 | F82: =IF('Prezenční listina'!F82=0,"",'Prezenční listina'!E82) -> Horizont kola Novák Blansko | G82: =IF('Prezenční listina'!F82=0,"",'Prezenční listina'!H82) -> C
A83: 79 | B83: =IF('Prezenční listina'!F83=0,"",'Prezenční listina'!F83) -> 100 | C83: =IF('Prezenční listina'!F83=0,"",'Prezenční listina'!B83) -> Šacl | D83: =IF('Prezenční listina'!F83=0,"",'Prezenční listina'!C83) -> Pavel | E83: =IF('Prezenční listina'!F83=0,"",'Prezenční listina'!D83) -> 1981 | F83: =IF('Prezenční listina'!F83=0,"",'Prezenční listina'!E83) -> Dolní Rožínka | G83: =IF('Prezenční listina'!F83=0,"",'Prezenční listina'!H83) -> A
A84: 80 | B84: =IF('Prezenční listina'!F84=0,"",'Prezenční listina'!F84) -> 101 | C84: =IF('Prezenční listina'!F84=0,"",'Prezenční listina'!B84) -> Jeneš | D84: =IF('Prezenční listina'!F84=0,"",'Prezenční listina'!C84) -> Kamil | E84: =IF('Prezenční listina'!F84=0,"",'Prezenční listina'!D84) -> 1984 | F84: =IF('Prezenční listina'!F84=0,"",'Prezenční listina'!E84) -> 3KJRUN | G84: =IF('Prezenční listina'!F84=0,"",'Prezenční listina'!H84) -> A
B85: =IF('Prezenční listina'!F31=0,"",'Prezenční listina'!F31) ->  | C85: =IF('Prezenční listina'!F31=0,"",'Prezenční listina'!B31) ->  | D85: =IF('Prezenční listina'!F31=0,"",'Prezenční listina'!C31) ->  | E85: =IF('Prezenční listina'!F31=0,"",'Prezenční listina'!D31) ->  | F85: =IF('Prezenční listina'!F31=0,"",'Prezenční listina'!E31) ->  | G85: =IF('Prezenční listina'!F31=0,"",'Prezenční listina'!H31) -> 
B86: =IF('Prezenční listina'!F85=0,"",'Prezenční listina'!F85) ->  | C86: =IF('Prezenční listina'!F85=0,"",'Prezenční listina'!B85) ->  | D86: =IF('Prezenční listina'!F85=0,"",'Prezenční listina'!C85) ->  | E86: =IF('Prezenční listina'!F85=0,"",'Prezenční listina'!D85) ->  | F86: =IF('Prezenční listina'!F85=0,"",'Prezenční listina'!E85) ->  | G86: =IF('Prezenční listina'!F85=0,"",'Prezenční listina'!H85) -> 
B87: =IF('Prezenční listina'!F86=0,"",'Prezenční listina'!F86) ->  | C87: =IF('Prezenční listina'!F86=0,"",'Prezenční listina'!B86) ->  | D87: =IF('Prezenční listina'!F86=0,"",'Prezenční listina'!C86) ->  | E87: =IF('Prezenční listina'!F86=0,"",'Prezenční listina'!D86) ->  | F87: =IF('Prezenční listina'!F86=0,"",'Prezenční listina'!E86) ->  | G87: =IF('Prezenční listina'!F86=0,"",'Prezenční listina'!H86) -> 
B88: =IF('Prezenční listina'!F87=0,"",'Prezenční listina'!F87) ->  | C88: =IF('Prezenční listina'!F87=0,"",'Prezenční listina'!B87) ->  | D88: =IF('Prezenční listina'!F87=0,"",'Prezenční listina'!C87) ->  | E88: =IF('Prezenční listina'!F87=0,"",'Prezenční listina'!D87) ->  | F88: =IF('Prezenční listina'!F87=0,"",'Prezenční listina'!E87) ->  | G88: =IF('Prezenční listina'!F87=0,"",'Prezenční listina'!H87) -> 
B89: =IF('Prezenční listina'!F88=0,"",'Prezenční listina'!F88) ->  | C89: =IF('Prezenční listina'!F88=0,"",'Prezenční listina'!B88) ->  | D89: =IF('Prezenční listina'!F88=0,"",'Prezenční listina'!C88) ->  | E89: =IF('Prezenční listina'!F88=0,"",'Prezenční listina'!D88) ->  | F89: =IF('Prezenční listina'!F88=0,"",'Prezenční listina'!E88) ->  | G89: =IF('Prezenční listina'!F88=0,"",'Prezenční listina'!H88) -> 
B90: =IF('Prezenční listina'!F89=0,"",'Prezenční listina'!F89) ->  | C90: =IF('Prezenční listina'!F89=0,"",'Prezenční listina'!B89) ->  | D90: =IF('Prezenční listina'!F89=0,"",'Prezenční listina'!C89) ->  | E90: =IF('Prezenční listina'!F89=0,"",'Prezenční listina'!D89) ->  | F90: =IF('Prezenční listina'!F89=0,"",'Prezenční listina'!E89) ->  | G90: =IF('Prezenční listina'!F89=0,"",'Prezenční listina'!H89) -> 
A91: =IF(C91="","",A90+1) ->  | B91: =IF('Prezenční listina'!F90=0,"",'Prezenční listina'!F90) ->  | C91: =IF('Prezenční listina'!F90=0,"",'Prezenční listina'!B90) ->  | D91: =IF('Prezenční listina'!F90=0,"",'Prezenční listina'!C90) ->  | E91: =IF('Prezenční listina'!F90=0,"",'Prezenční listina'!D90) ->  | F91: =IF('Prezenční listina'!F90=0,"",'Prezenční listina'!E90) ->  | G91: =IF('Prezenční listina'!F90=0,"",'Prezenční listina'!H90) -> 
B92: =IF('Prezenční listina'!F91=0,"",'Prezenční listina'!F91) ->  | C92: =IF('Prezenční listina'!F91=0,"",'Prezenční listina'!B91) ->  | D92: =IF('Prezenční listina'!F91=0,"",'Prezenční listina'!C91) ->  | E92: =IF('Prezenční listina'!F91=0,"",'Prezenční listina'!D91) ->  | F92: =IF('Prezenční listina'!F91=0,"",'Prezenční listina'!E91) ->  | G92: =IF('Prezenční listina'!F91=0,"",'Prezenční listina'!H91) -> 
B93: =IF('Prezenční listina'!F92=0,"",'Prezenční listina'!F92) ->  | C93: =IF('Prezenční listina'!F92=0,"",'Prezenční listina'!B92) ->  | D93: =IF('Prezenční listina'!F92=0,"",'Prezenční listina'!C92) ->  | E93: =IF('Prezenční listina'!F92=0,"",'Prezenční listina'!D92) ->  | F93: =IF('Prezenční listina'!F92=0,"",'Prezenční listina'!E92) ->  | G93: =IF('Prezenční listina'!F92=0,"",'Prezenční listina'!H92) -> 
B94: =IF('Prezenční listina'!F93=0,"",'Prezenční listina'!F93) ->  | C94: =IF('Prezenční listina'!F93=0,"",'Prezenční listina'!B93) ->  | D94: =IF('Prezenční listina'!F93=0,"",'Prezenční listina'!C93) ->  | E94: =IF('Prezenční listina'!F93=0,"",'Prezenční listina'!D93) ->  | F94: =IF('Prezenční listina'!F93=0,"",'Prezenční listina'!E93) ->  | G94: =IF('Prezenční listina'!F93=0,"",'Prezenční listina'!H93) -> 
B95: =IF('Prezenční listina'!F94=0,"",'Prezenční listina'!F94) ->  | C95: =IF('Prezenční listina'!F94=0,"",'Prezenční listina'!B94) ->  | D95: =IF('Prezenční listina'!F94=0,"",'Prezenční listina'!C94) ->  | E95: =IF('Prezenční listina'!F94=0,"",'Prezenční listina'!D94) ->  | F95: =IF('Prezenční listina'!F94=0,"",'Prezenční listina'!E94) ->  | G95: =IF('Prezenční listina'!F94=0,"",'Prezenční listina'!H94) -> 
B96: =IF('Prezenční listina'!F95=0,"",'Prezenční listina'!F95) ->  | C96: =IF('Prezenční listina'!F95=0,"",'Prezenční listina'!B95) ->  | D96: =IF('Prezenční listina'!F95=0,"",'Prezenční listina'!C95) ->  | E96: =IF('Prezenční listina'!F95=0,"",'Prezenční listina'!D95) ->  | F96: =IF('Prezenční listina'!F95=0,"",'Prezenční listina'!E95) ->  | G96: =IF('Prezenční listina'!F95=0,"",'Prezenční listina'!H95) -> 
B97: =IF('Prezenční listina'!F96=0,"",'Prezenční listina'!F96) ->  | C97: =IF('Prezenční listina'!F96=0,"",'Prezenční listina'!B96) ->  | D97: =IF('Prezenční listina'!F96=0,"",'Prezenční listina'!C96) ->  | E97: =IF('Prezenční listina'!F96=0,"",'Prezenční listina'!D96) ->  | F97: =IF('Prezenční listina'!F96=0,"",'Prezenční listina'!E96) ->  | G97: =IF('Prezenční listina'!F96=0,"",'Prezenční listina'!H96) -> 
B98: =IF('Prezenční listina'!F97=0,"",'Prezenční listina'!F97) ->  | C98: =IF('Prezenční listina'!F97=0,"",'Prezenční listina'!B97) ->  | D98: =IF('Prezenční listina'!F97=0,"",'Prezenční listina'!C97) ->  | E98: =IF('Prezenční listina'!F97=0,"",'Prezenční listina'!D97) ->  | F98: =IF('Prezenční listina'!F97=0,"",'Prezenční listina'!E97) ->  | G98: =IF('Prezenční listina'!F97=0,"",'Prezenční listina'!H97) -> 
B99: =IF('Prezenční listina'!F98=0,"",'Prezenční listina'!F98) ->  | C99: =IF('Prezenční listina'!F98=0,"",'Prezenční listina'!B98) ->  | D99: =IF('Prezenční listina'!F98=0,"",'Prezenční listina'!C98) ->  | E99: =IF('Prezenční listina'!F98=0,"",'Prezenční listina'!D98) ->  | F99: =IF('Prezenční listina'!F98=0,"",'Prezenční listina'!E98) ->  | G99: =IF('Prezenční listina'!F98=0,"",'Prezenční listina'!H98) -> 
B100: =IF('Prezenční listina'!F99=0,"",'Prezenční listina'!F99) ->  | C100: =IF('Prezenční listina'!F99=0,"",'Prezenční listina'!B99) ->  | D100: =IF('Prezenční listina'!F99=0,"",'Prezenční listina'!C99) ->  | E100: =IF('Prezenční listina'!F99=0,"",'Prezenční listina'!D99) ->  | F100: =IF('Prezenční listina'!F99=0,"",'Prezenční listina'!E99) ->  | G100: =IF('Prezenční listina'!F99=0,"",'Prezenční listina'!H99) -> 
B101: =IF('Prezenční listina'!F30=0,"",'Prezenční listina'!F30) ->  | C101: =IF('Prezenční listina'!F30=0,"",'Prezenční listina'!B30) ->  | D101: =IF('Prezenční listina'!F30=0,"",'Prezenční listina'!C30) ->  | E101: =IF('Prezenční listina'!F30=0,"",'Prezenční listina'!D30) ->  | F101: =IF('Prezenční listina'!F30=0,"",'Prezenční listina'!E30) ->  | G101: =IF('Prezenční listina'!F30=0,"",'Prezenční listina'!H30) -> 
B102: =IF('Prezenční listina'!F100=0,"",'Prezenční listina'!F100) ->  | C102: =IF('Prezenční listina'!F100=0,"",'Prezenční listina'!B100) ->  | D102: =IF('Prezenční listina'!F100=0,"",'Prezenční listina'!C100) ->  | E102: =IF('Prezenční listina'!F100=0,"",'Prezenční listina'!D100) ->  | F102: =IF('Prezenční listina'!F100=0,"",'Prezenční listina'!E100) ->  | G102: =IF('Prezenční listina'!F100=0,"",'Prezenční listina'!H100) -> 
B103: =IF('Prezenční listina'!F101=0,"",'Prezenční listina'!F101) ->  | C103: =IF('Prezenční listina'!F101=0,"",'Prezenční listina'!B101) ->  | D103: =IF('Prezenční listina'!F101=0,"",'Prezenční listina'!C101) ->  | E103: =IF('Prezenční listina'!F101=0,"",'Prezenční listina'!D101) ->  | F103: =IF('Prezenční listina'!F101=0,"",'Prezenční listina'!E101) ->  | G103: =IF('Prezenční listina'!F101=0,"",'Prezenční listina'!H101) -> 
B104: =IF('Prezenční listina'!F102=0,"",'Prezenční listina'!F102) ->  | C104: =IF('Prezenční listina'!F102=0,"",'Prezenční listina'!B102) ->  | D104: =IF('Prezenční listina'!F102=0,"",'Prezenční listina'!C102) ->  | E104: =IF('Prezenční listina'!F102=0,"",'Prezenční listina'!D102) ->  | F104: =IF('Prezenční listina'!F102=0,"",'Prezenční listina'!E102) ->  | G104: =IF('Prezenční listina'!F102=0,"",'Prezenční listina'!H102) -> 
B105: =IF('Prezenční listina'!F103=0,"",'Prezenční listina'!F103) ->  | C105: =IF('Prezenční listina'!F103=0,"",'Prezenční listina'!B103) ->  | D105: =IF('Prezenční listina'!F103=0,"",'Prezenční listina'!C103) ->  | E105: =IF('Prezenční listina'!F103=0,"",'Prezenční listina'!D103) ->  | F105: =IF('Prezenční listina'!F103=0,"",'Prezenční listina'!E103) ->  | G105: =IF('Prezenční listina'!F103=0,"",'Prezenční listina'!H103) -> 
B106: =IF('Prezenční listina'!F104=0,"",'Prezenční listina'!F104) ->  | C106: =IF('Prezenční listina'!F104=0,"",'Prezenční listina'!B104) ->  | D106: =IF('Prezenční listina'!F104=0,"",'Prezenční listina'!C104) ->  | E106: =IF('Prezenční listina'!F104=0,"",'Prezenční listina'!D104) ->  | F106: =IF('Prezenční listina'!F104=0,"",'Prezenční listina'!E104) ->  | G106: =IF('Prezenční listina'!F104=0,"",'Prezenční listina'!H104) -> 
B107: =IF('Prezenční listina'!F105=0,"",'Prezenční listina'!F105) ->  | C107: =IF('Prezenční listina'!F105=0,"",'Prezenční listina'!B105) ->  | D107: =IF('Prezenční listina'!F105=0,"",'Prezenční listina'!C105) ->  | E107: =IF('Prezenční listina'!F105=0,"",'Prezenční listina'!D105) ->  | F107: =IF('Prezenční listina'!F105=0,"",'Prezenční listina'!E105) ->  | G107: =IF('Prezenční listina'!F105=0,"",'Prezenční listina'!H105) -> 
B108: =IF('Prezenční listina'!F106=0,"",'Prezenční listina'!F106) ->  | C108: =IF('Prezenční listina'!F106=0,"",'Prezenční listina'!B106) ->  | D108: =IF('Prezenční listina'!F106=0,"",'Prezenční listina'!C106) ->  | E108: =IF('Prezenční listina'!F106=0,"",'Prezenční listina'!D106) ->  | F108: =IF('Prezenční listina'!F106=0,"",'Prezenční listina'!E106) ->  | G108: =IF('Prezenční listina'!F106=0,"",'Prezenční listina'!H106) -> 
B109: =IF('Prezenční listina'!F107=0,"",'Prezenční listina'!F107) ->  | C109: =IF('Prezenční listina'!F107=0,"",'Prezenční listina'!B107) ->  | D109: =IF('Prezenční listina'!F107=0,"",'Prezenční listina'!C107) ->  | E109: =IF('Prezenční listina'!F107=0,"",'Prezenční listina'!D107) ->  | F109: =IF('Prezenční listina'!F107=0,"",'Prezenční listina'!E107) ->  | G109: =IF('Prezenční listina'!F107=0,"",'Prezenční listina'!H107) -> 
B110: =IF('Prezenční listina'!F108=0,"",'Prezenční listina'!F108) ->  | C110: =IF('Prezenční listina'!F108=0,"",'Prezenční listina'!B108) ->  | D110: =IF('Prezenční listina'!F108=0,"",'Prezenční listina'!C108) ->  | E110: =IF('Prezenční listina'!F108=0,"",'Prezenční listina'!D108) ->  | F110: =IF('Prezenční listina'!F108=0,"",'Prezenční listina'!E108) ->  | G110: =IF('Prezenční listina'!F108=0,"",'Prezenční listina'!H108) -> 
B111: =IF('Prezenční listina'!F109=0,"",'Prezenční listina'!F109) ->  | C111: =IF('Prezenční listina'!F109=0,"",'Prezenční listina'!B109) ->  | D111: =IF('Prezenční listina'!F109=0,"",'Prezenční listina'!C109) ->  | E111: =IF('Prezenční listina'!F109=0,"",'Prezenční listina'!D109) ->  | F111: =IF('Prezenční listina'!F109=0,"",'Prezenční listina'!E109) ->  | G111: =IF('Prezenční listina'!F109=0,"",'Prezenční listina'!H109) -> 
B112: =IF('Prezenční listina'!F110=0,"",'Prezenční listina'!F110) ->  | C112: =IF('Prezenční listina'!F110=0,"",'Prezenční listina'!B110) ->  | D112: =IF('Prezenční listina'!F110=0,"",'Prezenční listina'!C110) ->  | E112: =IF('Prezenční listina'!F110=0,"",'Prezenční listina'!D110) ->  | F112: =IF('Prezenční listina'!F110=0,"",'Prezenční listina'!E110) ->  | G112: =IF('Prezenční listina'!F110=0,"",'Prezenční listina'!H110) -> 
B113: =IF('Prezenční listina'!F111=0,"",'Prezenční listina'!F111) ->  | C113: =IF('Prezenční listina'!F111=0,"",'Prezenční listina'!B111) ->  | D113: =IF('Prezenční listina'!F111=0,"",'Prezenční listina'!C111) ->  | E113: =IF('Prezenční listina'!F111=0,"",'Prezenční listina'!D111) ->  | F113: =IF('Prezenční listina'!F111=0,"",'Prezenční listina'!E111) ->  | G113: =IF('Prezenční listina'!F111=0,"",'Prezenční listina'!H111) -> 
B114: =IF('Prezenční listina'!F112=0,"",'Prezenční listina'!F112) ->  | C114: =IF('Prezenční listina'!F112=0,"",'Prezenční listina'!B112) ->  | D114: =IF('Prezenční listina'!F112=0,"",'Prezenční listina'!C112) ->  | E114: =IF('Prezenční listina'!F112=0,"",'Prezenční listina'!D112) ->  | F114: =IF('Prezenční listina'!F112=0,"",'Prezenční listina'!E112) ->  | G114: =IF('Prezenční listina'!F112=0,"",'Prezenční listina'!H112) -> 
B115: =IF('Prezenční listina'!F113=0,"",'Prezenční listina'!F113) ->  | C115: =IF('Prezenční listina'!F113=0,"",'Prezenční listina'!B113) ->  | D115: =IF('Prezenční listina'!F113=0,"",'Prezenční listina'!C113) ->  | E115: =IF('Prezenční listina'!F113=0,"",'Prezenční listina'!D113) ->  | F115: =IF('Prezenční listina'!F113=0,"",'Prezenční listina'!E113) ->  | G115: =IF('Prezenční listina'!F113=0,"",'Prezenční listina'!H113) -> 
B116: =IF('Prezenční listina'!F114=0,"",'Prezenční listina'!F114) ->  | C116: =IF('Prezenční listina'!F114=0,"",'Prezenční listina'!B114) ->  | D116: =IF('Prezenční listina'!F114=0,"",'Prezenční listina'!C114) ->  | E116: =IF('Prezenční listina'!F114=0,"",'Prezenční listina'!D114) ->  | F116: =IF('Prezenční listina'!F114=0,"",'Prezenční listina'!E114) ->  | G116: =IF('Prezenční listina'!F114=0,"",'Prezenční listina'!H114) -> 
B117: =IF('Prezenční listina'!F115=0,"",'Prezenční listina'!F115) ->  | C117: =IF('Prezenční listina'!F115=0,"",'Prezenční listina'!B115) ->  | D117: =IF('Prezenční listina'!F115=0,"",'Prezenční listina'!C115) ->  | E117: =IF('Prezenční listina'!F115=0,"",'Prezenční listina'!D115) ->  | F117: =IF('Prezenční listina'!F115=0,"",'Prezenční listina'!E115) ->  | G117: =IF('Prezenční listina'!F115=0,"",'Prezenční listina'!H115) -> 
B118: =IF('Prezenční listina'!F116=0,"",'Prezenční listina'!F116) ->  | C118: =IF('Prezenční listina'!F116=0,"",'Prezenční listina'!B116) ->  | D118: =IF('Prezenční listina'!F116=0,"",'Prezenční listina'!C116) ->  | E118: =IF('Prezenční listina'!F116=0,"",'Prezenční listina'!D116) ->  | F118: =IF('Prezenční listina'!F116=0,"",'Prezenční listina'!E116) ->  | G118: =IF('Prezenční listina'!F116=0,"",'Prezenční listina'!H116) -> 
B119: =IF('Prezenční listina'!F117=0,"",'Prezenční listina'!F117) ->  | C119: =IF('Prezenční listina'!F117=0,"",'Prezenční listina'!B117) ->  | D119: =IF('Prezenční listina'!F117=0,"",'Prezenční listina'!C117) ->  | E119: =IF('Prezenční listina'!F117=0,"",'Prezenční listina'!D117) ->  | F119: =IF('Prezenční listina'!F117=0,"",'Prezenční listina'!E117) ->  | G119: =IF('Prezenční listina'!F117=0,"",'Prezenční listina'!H117) -> 
B120: =IF('Prezenční listina'!F118=0,"",'Prezenční listina'!F118) ->  | C120: =IF('Prezenční listina'!F118=0,"",'Prezenční listina'!B118) ->  | D120: =IF('Prezenční listina'!F118=0,"",'Prezenční listina'!C118) ->  | E120: =IF('Prezenční listina'!F118=0,"",'Prezenční listina'!D118) ->  | F120: =IF('Prezenční listina'!F118=0,"",'Prezenční listina'!E118) ->  | G120: =IF('Prezenční listina'!F118=0,"",'Prezenční listina'!H118) -> 
B121: =IF('Prezenční listina'!F119=0,"",'Prezenční listina'!F119) ->  | C121: =IF('Prezenční listina'!F119=0,"",'Prezenční listina'!B119) ->  | D121: =IF('Prezenční listina'!F119=0,"",'Prezenční listina'!C119) ->  | E121: =IF('Prezenční listina'!F119=0,"",'Prezenční listina'!D119) ->  | F121: =IF('Prezenční listina'!F119=0,"",'Prezenční listina'!E119) ->  | G121: =IF('Prezenční listina'!F119=0,"",'Prezenční listina'!H119) -> 
B122: =IF('Prezenční listina'!F120=0,"",'Prezenční listina'!F120) ->  | C122: =IF('Prezenční listina'!F120=0,"",'Prezenční listina'!B120) ->  | D122: =IF('Prezenční listina'!F120=0,"",'Prezenční listina'!C120) ->  | E122: =IF('Prezenční listina'!F120=0,"",'Prezenční listina'!D120) ->  | F122: =IF('Prezenční listina'!F120=0,"",'Prezenční listina'!E120) ->  | G122: =IF('Prezenční listina'!F120=0,"",'Prezenční listina'!H120) -> 
B123: =IF('Prezenční listina'!F121=0,"",'Prezenční listina'!F121) ->  | C123: =IF('Prezenční listina'!F121=0,"",'Prezenční listina'!B121) ->  | D123: =IF('Prezenční listina'!F121=0,"",'Prezenční listina'!C121) ->  | E123: =IF('Prezenční listina'!F121=0,"",'Prezenční listina'!D121) ->  | F123: =IF('Prezenční listina'!F121=0,"",'Prezenční listina'!E121) ->  | G123: =IF('Prezenční listina'!F121=0,"",'Prezenční listina'!H121) -> 
B124: =IF('Prezenční listina'!F122=0,"",'Prezenční listina'!F122) ->  | C124: =IF('Prezenční listina'!F122=0,"",'Prezenční listina'!B122) ->  | D124: =IF('Prezenční listina'!F122=0,"",'Prezenční listina'!C122) ->  | E124: =IF('Prezenční listina'!F122=0,"",'Prezenční listina'!D122) ->  | F124: =IF('Prezenční listina'!F122=0,"",'Prezenční listina'!E122) ->  | G124: =IF('Prezenční listina'!F122=0,"",'Prezenční listina'!H122) -> 
B125: =IF('Prezenční listina'!F123=0,"",'Prezenční listina'!F123) ->  | C125: =IF('Prezenční listina'!F123=0,"",'Prezenční listina'!B123) ->  | D125: =IF('Prezenční listina'!F123=0,"",'Prezenční listina'!C123) ->  | E125: =IF('Prezenční listina'!F123=0,"",'Prezenční listina'!D123) ->  | F125: =IF('Prezenční listina'!F123=0,"",'Prezenční listina'!E123) ->  | G125: =IF('Prezenční listina'!F123=0,"",'Prezenční listina'!H123) -> 
B126: =IF('Prezenční listina'!F124=0,"",'Prezenční listina'!F124) ->  | C126: =IF('Prezenční listina'!F124=0,"",'Prezenční listina'!B124) ->  | D126: =IF('Prezenční listina'!F124=0,"",'Prezenční listina'!C124) ->  | E126: =IF('Prezenční listina'!F124=0,"",'Prezenční listina'!D124) ->  | F126: =IF('Prezenční listina'!F124=0,"",'Prezenční listina'!E124) ->  | G126: =IF('Prezenční listina'!F124=0,"",'Prezenční listina'!H124) -> 
B127: =IF('Prezenční listina'!F125=0,"",'Prezenční listina'!F125) ->  | C127: =IF('Prezenční listina'!F125=0,"",'Prezenční listina'!B125) ->  | D127: =IF('Prezenční listina'!F125=0,"",'Prezenční listina'!C125) ->  | E127: =IF('Prezenční listina'!F125=0,"",'Prezenční listina'!D125) ->  | F127: =IF('Prezenční listina'!F125=0,"",'Prezenční listina'!E125) ->  | G127: =IF('Prezenční listina'!F125=0,"",'Prezenční listina'!H125) -> 
B128: =IF('Prezenční listina'!F126=0,"",'Prezenční listina'!F126) ->  | C128: =IF('Prezenční listina'!F126=0,"",'Prezenční listina'!B126) ->  | D128: =IF('Prezenční listina'!F126=0,"",'Prezenční listina'!C126) ->  | E128: =IF('Prezenční listina'!F126=0,"",'Prezenční listina'!D126) ->  | F128: =IF('Prezenční listina'!F126=0,"",'Prezenční listina'!E126) ->  | G128: =IF('Prezenční listina'!F126=0,"",'Prezenční listina'!H126) -> 
B129: =IF('Prezenční listina'!F127=0,"",'Prezenční listina'!F127) ->  | C129: =IF('Prezenční listina'!F127=0,"",'Prezenční listina'!B127) ->  | D129: =IF('Prezenční listina'!F127=0,"",'Prezenční listina'!C127) ->  | E129: =IF('Prezenční listina'!F127=0,"",'Prezenční listina'!D127) ->  | F129: =IF('Prezenční listina'!F127=0,"",'Prezenční listina'!E127) ->  | G129: =IF('Prezenční listina'!F127=0,"",'Prezenční listina'!H127) -> 
B130: =IF('Prezenční listina'!F128=0,"",'Prezenční listina'!F128) ->  | C130: =IF('Prezenční listina'!F128=0,"",'Prezenční listina'!B128) ->  | D130: =IF('Prezenční listina'!F128=0,"",'Prezenční listina'!C128) ->  | E130: =IF('Prezenční listina'!F128=0,"",'Prezenční listina'!D128) ->  | F130: =IF('Prezenční listina'!F128=0,"",'Prezenční listina'!E128) ->  | G130: =IF('Prezenční listina'!F128=0,"",'Prezenční listina'!H128) -> 
B131: =IF('Prezenční listina'!F129=0,"",'Prezenční listina'!F129) ->  | C131: =IF('Prezenční listina'!F129=0,"",'Prezenční listina'!B129) ->  | D131: =IF('Prezenční listina'!F129=0,"",'Prezenční listina'!C129) ->  | E131: =IF('Prezenční listina'!F129=0,"",'Prezenční listina'!D129) ->  | F131: =IF('Prezenční listina'!F129=0,"",'Prezenční listina'!E129) ->  | G131: =IF('Prezenční listina'!F129=0,"",'Prezenční listina'!H129) -> 
B132: =IF('Prezenční listina'!F130=0,"",'Prezenční listina'!F130) ->  | C132: =IF('Prezenční listina'!F130=0,"",'Prezenční listina'!B130) ->  | D132: =IF('Prezenční listina'!F130=0,"",'Prezenční listina'!C130) ->  | E132: =IF('Prezenční listina'!F130=0,"",'Prezenční listina'!D130) ->  | F132: =IF('Prezenční listina'!F130=0,"",'Prezenční listina'!E130) ->  | G132: =IF('Prezenční listina'!F130=0,"",'Prezenční listina'!H130) -> 
B133: =IF('Prezenční listina'!F131=0,"",'Prezenční listina'!F131) ->  | C133: =IF('Prezenční listina'!F131=0,"",'Prezenční listina'!B131) ->  | D133: =IF('Prezenční listina'!F131=0,"",'Prezenční listina'!C131) ->  | E133: =IF('Prezenční listina'!F131=0,"",'Prezenční listina'!D131) ->  | F133: =IF('Prezenční listina'!F131=0,"",'Prezenční listina'!E131) ->  | G133: =IF('Prezenční listina'!F131=0,"",'Prezenční listina'!H131) -> 
B134: =IF('Prezenční listina'!F132=0,"",'Prezenční listina'!F132) ->  | C134: =IF('Prezenční listina'!F132=0,"",'Prezenční listina'!B132) ->  | D134: =IF('Prezenční listina'!F132=0,"",'Prezenční listina'!C132) ->  | E134: =IF('Prezenční listina'!F132=0,"",'Prezenční listina'!D132) ->  | F134: =IF('Prezenční listina'!F132=0,"",'Prezenční listina'!E132) ->  | G134: =IF('Prezenční listina'!F132=0,"",'Prezenční listina'!H132) -> 
B135: =IF('Prezenční listina'!F133=0,"",'Prezenční listina'!F133) ->  | C135: =IF('Prezenční listina'!F133=0,"",'Prezenční listina'!B133) ->  | D135: =IF('Prezenční listina'!F133=0,"",'Prezenční listina'!C133) ->  | E135: =IF('Prezenční listina'!F133=0,"",'Prezenční listina'!D133) ->  | F135: =IF('Prezenční listina'!F133=0,"",'Prezenční listina'!E133) ->  | G135: =IF('Prezenční listina'!F133=0,"",'Prezenční listina'!H133) -> 
B136: =IF('Prezenční listina'!F134=0,"",'Prezenční listina'!F134) ->  | C136: =IF('Prezenční listina'!F134=0,"",'Prezenční listina'!B134) ->  | D136: =IF('Prezenční listina'!F134=0,"",'Prezenční listina'!C134) ->  | E136: =IF('Prezenční listina'!F134=0,"",'Prezenční listina'!D134) ->  | F136: =IF('Prezenční listina'!F134=0,"",'Prezenční listina'!E134) ->  | G136: =IF('Prezenční listina'!F134=0,"",'Prezenční listina'!H134) -> 
B137: =IF('Prezenční listina'!F135=0,"",'Prezenční listina'!F135) ->  | C137: =IF('Prezenční listina'!F135=0,"",'Prezenční listina'!B135) ->  | D137: =IF('Prezenční listina'!F135=0,"",'Prezenční listina'!C135) ->  | E137: =IF('Prezenční listina'!F135=0,"",'Prezenční listina'!D135) ->  | F137: =IF('Prezenční listina'!F135=0,"",'Prezenční listina'!E135) ->  | G137: =IF('Prezenční listina'!F135=0,"",'Prezenční listina'!H135) -> 
B138: =IF('Prezenční listina'!F136=0,"",'Prezenční listina'!F136) ->  | C138: =IF('Prezenční listina'!F136=0,"",'Prezenční listina'!B136) ->  | D138: =IF('Prezenční listina'!F136=0,"",'Prezenční listina'!C136) ->  | E138: =IF('Prezenční listina'!F136=0,"",'Prezenční listina'!D136) ->  | F138: =IF('Prezenční listina'!F136=0,"",'Prezenční listina'!E136) ->  | G138: =IF('Prezenční listina'!F136=0,"",'Prezenční listina'!H136) -> 
B139: =IF('Prezenční listina'!F137=0,"",'Prezenční listina'!F137) ->  | C139: =IF('Prezenční listina'!F137=0,"",'Prezenční listina'!B137) ->  | D139: =IF('Prezenční listina'!F137=0,"",'Prezenční listina'!C137) ->  | E139: =IF('Prezenční listina'!F137=0,"",'Prezenční listina'!D137) ->  | F139: =IF('Prezenční listina'!F137=0,"",'Prezenční listina'!E137) ->  | G139: =IF('Prezenční listina'!F137=0,"",'Prezenční listina'!H137) -> 
B140: =IF('Prezenční listina'!F138=0,"",'Prezenční listina'!F138) ->  | C140: =IF('Prezenční listina'!F138=0,"",'Prezenční listina'!B138) ->  | D140: =IF('Prezenční listina'!F138=0,"",'Prezenční listina'!C138) ->  | E140: =IF('Prezenční listina'!F138=0,"",'Prezenční listina'!D138) ->  | F140: =IF('Prezenční listina'!F138=0,"",'Prezenční listina'!E138) ->  | G140: =IF('Prezenční listina'!F138=0,"",'Prezenční listina'!H138) -> 
B141: =IF('Prezenční listina'!F139=0,"",'Prezenční listina'!F139) ->  | C141: =IF('Prezenční listina'!F139=0,"",'Prezenční listina'!B139) ->  | D141: =IF('Prezenční listina'!F139=0,"",'Prezenční listina'!C139) ->  | E141: =IF('Prezenční listina'!F139=0,"",'Prezenční listina'!D139) ->  | F141: =IF('Prezenční listina'!F139=0,"",'Prezenční listina'!E139) ->  | G141: =IF('Prezenční listina'!F139=0,"",'Prezenční listina'!H139) -> 

Sheet Výsledková listina
A1: ="Výsledková listina - Malý svratecký maraton "&'Prezenční listina'!O2 -> Výsledková listina - Malý svratecký maraton 2016
A2: 2016-08-20 | K2: Poté, co jsou dopsány časy VŠECH běžců, stisknout tlačítko 1.řazení Ve sloupci B (Pořadí v kategorii) vytvořit posloupnou číselnou řadu pro každou kategorii a poté stisknout tlačítko 2.řazení !!! POZOR!!! Použití tlačítek je nevratný krok!
A3: ='Prezenční listina'!O2-1953&". ročník" -> 63. ročník
A4: Celkové pořadí | B4: Pořadí v kategorii | C4: Kategorie | D4: Startovní číslo | E4: Příjmení | F4: Jméno | G4: Narození | H4: Oddíl / Bydliště | I4: Čas
A5: 1 | B5: 1 | C5: ='Startovní listina'!G30 -> A | D5: ='Startovní listina'!B30 -> 31 | E5: ='Startovní listina'!C30 -> Kohut | F5: ='Startovní listina'!D30 -> Jan | G5: ='Startovní listina'!E30 -> 1985 | H5: ='Startovní listina'!F30 -> Elite Sport Team Blansko | I5: 01:57:10
A6: =IF('Výsledková listina'!D5<>"",A5+1,"") -> 2 | B6: 1 | C6: ='Startovní listina'!G67 -> B | D6: ='Startovní listina'!B67 -> 83 | E6: ='Startovní listina'!C67 -> Orálek | F6: ='Startovní listina'!D67 -> Daniel | G6: ='Startovní listina'!E67 -> 1970 | H6: ='Startovní listina'!F67 -> adidas Boost Team/AC Moravská Slávia Brno | I6: 01:58:15
A7: =IF('Výsledková listina'!D6<>"",A6+1,"") -> 3 | B7: 2 | C7: ='Startovní listina'!G35 -> A | D7: ='Startovní listina'!B35 -> 37 | E7: ='Startovní listina'!C35 -> Hrdina | F7: ='Startovní listina'!D35 -> Tomáš | G7: ='Startovní listina'!E35 -> 1979 | H7: ='Startovní listina'!F35 -> Běžecký klub Brno | I7: 02:12:33
A8: =IF('Výsledková listina'!D7<>"",A7+1,"") -> 4 | B8: 1 | C8: ='Startovní listina'!G63 -> C | D8: ='Startovní listina'!B63 -> 77 | E8: ='Startovní listina'!C63 -> Rerych | F8: ='Startovní listina'!D63 -> Jiří | G8: ='Startovní listina'!E63 -> 1962 | H8: ='Startovní listina'!F63 -> adidas Boost Team/AC Moravská Slávia Brno | I8: 02:15:54
A9: =IF('Výsledková listina'!D8<>"",A8+1,"") -> 5 | B9: 2 | C9: ='Startovní listina'!G31 -> B | D9: ='Startovní listina'!B31 -> 33 | E9: ='Startovní listina'!C31 -> Dvořáček | F9: ='Startovní listina'!D31 -> Jiří | G9: ='Startovní listina'!E31 -> 1968 | H9: ='Startovní listina'!F31 -> Elite sport team | I9: 02:16:31
A10: =IF('Výsledková listina'!D9<>"",A9+1,"") -> 6 | B10: 2 | C10: ='Startovní listina'!G55 -> C | D10: ='Startovní listina'!B55 -> 64 | E10: ='Startovní listina'!C55 -> Ožana | F10: ='Startovní listina'!D55 -> Václav | G10: ='Startovní listina'!E55 -> 1964 | H10: ='Startovní listina'!F55 -> Atletic Třebíč | I10: 02:17:14
A11: =IF('Výsledková listina'!D10<>"",A10+1,"") -> 7 | B11: 3 | C11: ='Startovní listina'!G47 -> B | D11: ='Startovní listina'!B47 -> 54 | E11: ='Startovní listina'!C47 -> Hýbl | F11: ='Startovní listina'!D47 -> Jiří | G11: ='Startovní listina'!E47 -> 1967 | H11: ='Startovní listina'!F47 -> Hrušovany u Brna | I11: 02:19:49
A12: =IF('Výsledková listina'!D11<>"",A11+1,"") -> 8 | B12: 3 | C12: ='Startovní listina'!G16 -> A | D12: ='Startovní listina'!B16 -> 12 | E12: ='Startovní listina'!C16 -> Koudelka | F12: ='Startovní listina'!D16 -> Lukáš | G12: ='Startovní listina'!E16 -> 1983 | H12: ='Startovní listina'!F16 -> AK Drnovice | I12: 02:20:12
A13: =IF('Výsledková listina'!D12<>"",A12+1,"") -> 9 | B13: 1 | C13: ='Startovní listina'!G32 -> F | D13: ='Startovní listina'!B32 -> 34 | E13: ='Startovní listina'!C32 -> Dýrová Macháčková | F13: ='Startovní listina'!D32 -> Šárka | G13: ='Startovní listina'!E32 -> 1983 | H13: ='Startovní listina'!F32 -> AK Olymp Brno | I13: 02:21:36
A14: =IF('Výsledková listina'!D13<>"",A13+1,"") -> 10 | B14: 3 | C14: ='Startovní listina'!G12 -> C | D14: ='Startovní listina'!B12 -> 8 | E14: ='Startovní listina'!C12 -> Chramosta | F14: ='Startovní listina'!D12 -> Jaroslav | G14: ='Startovní listina'!E12 -> 1966 | H14: ='Startovní listina'!F12 -> JABOJA Team Děčín | I14: 02:22:13
A15: =IF('Výsledková listina'!D14<>"",A14+1,"") -> 11 | B15: 4 | C15: ='Startovní listina'!G52 -> A | D15: ='Startovní listina'!B52 -> 61 | E15: ='Startovní listina'!C52 -> Nováček | F15: ='Startovní listina'!D52 -> Tomáš | G15: ='Startovní listina'!E52 -> 1983 | H15: ='Startovní listina'!F52 -> Atletic Třebíč | I15: 02:24:10
A16: =IF('Výsledková listina'!D15<>"",A15+1,"") -> 12 | B16: 2 | C16: ='Startovní listina'!G36 -> F | D16: ='Startovní listina'!B36 -> 38 | E16: ='Startovní listina'!C36 -> Pešáková | F16: ='Startovní listina'!D36 -> Mirka | G16: ='Startovní listina'!E36 -> 1985 | H16: ='Startovní listina'!F36 -> AC Racers Tetčice | I16: 02:24:57
A17: =IF('Výsledková listina'!D16<>"",A16+1,"") -> 13 | B17: 4 | C17: ='Startovní listina'!G76 -> B | D17: ='Startovní listina'!B76 -> 93 | E17: ='Startovní listina'!C76 -> Konečný | F17: ='Startovní listina'!D76 -> Libor | G17: ='Startovní listina'!E76 -> 1971 | H17: ='Startovní listina'!F76 -> Kuřim | I17: 02:25:58
A18: =IF('Výsledková listina'!D17<>"",A17+1,"") -> 14 | B18: 5 | C18: ='Startovní listina'!G61 -> A | D18: ='Startovní listina'!B61 -> 75 | E18: ='Startovní listina'!C61 -> Kalich | F18: ='Startovní listina'!D61 -> Radim | G18: ='Startovní listina'!E61 -> 1985 | H18: ='Startovní listina'!F61 -> Odranec | I18: 02:26:45
A19: =IF('Výsledková listina'!D18<>"",A18+1,"") -> 15 | B19: 5 | C19: ='Startovní listina'!G39 -> B | D19: ='Startovní listina'!B39 -> 42 | E19: ='Startovní listina'!C39 -> Alman | F19: ='Startovní listina'!D39 -> Dušan | G19: ='Startovní listina'!E39 -> 1967 | H19: ='Startovní listina'!F39 -> Babice nad Svitavou | I19: 02:27:15
A20: =IF('Výsledková listina'!D19<>"",A19+1,"") -> 16 | B20: 4 | C20: ='Startovní listina'!G49 -> C | D20: ='Startovní listina'!B49 -> 58 | E20: ='Startovní listina'!C49 -> Šimunek | F20: ='Startovní listina'!D49 -> Martin | G20: ='Startovní listina'!E49 -> 1966 | H20: ='Startovní listina'!F49 -> Botanka running, Modřice | I20: 02:28:29
A21: =IF('Výsledková listina'!D20<>"",A20+1,"") -> 17 | B21: 5 | C21: ='Startovní listina'!G64 -> C | D21: ='Startovní listina'!B64 -> 79 | E21: ='Startovní listina'!C64 -> Nosek | F21: ='Startovní listina'!D64 -> Pavel | G21: ='Startovní listina'!E64 -> 1965 | H21: ='Startovní listina'!F64 -> ASK Slavkov o.s. | I21: 02:30:17
A22: =IF('Výsledková listina'!D21<>"",A21+1,"") -> 18 | B22: 6 | C22: ='Startovní listina'!G66 -> B | D22: ='Startovní listina'!B66 -> 82 | E22: ='Startovní listina'!C66 -> Šorf | F22: ='Startovní listina'!D66 -> Ivo | G22: ='Startovní listina'!E66 -> 1975 | H22: ='Startovní listina'!F66 -> ABND Racing Team Bystřice nad Pernštejnem | I22: 02:30:29
A23: =IF('Výsledková listina'!D22<>"",A22+1,"") -> 19 | B23: 7 | C23: ='Startovní listina'!G46 -> B | D23: ='Startovní listina'!B46 -> 51 | E23: ='Startovní listina'!C46 -> Kropáček | F23: ='Startovní listina'!D46 -> Jaroslav | G23: ='Startovní listina'!E46 -> 1970 | H23: ='Startovní listina'!F46 -> Brno | I23: 02:30:50
A24: =IF('Výsledková listina'!D23<>"",A23+1,"") -> 20 | B24: 6 | C24: ='Startovní listina'!G69 -> A | D24: ='Startovní listina'!B69 -> 85 | E24: ='Startovní listina'!C69 -> Řezníček | F24: ='Startovní listina'!D69 -> Roman | G24: ='Startovní listina'!E69 -> 1977 | H24: ='Startovní listina'!F69 -> Žďár nad Sázavou | I24: 02:32:08
A25: =IF('Výsledková listina'!D24<>"",A24+1,"") -> 21 | B25: 8 | C25: ='Startovní listina'!G15 -> B | D25: ='Startovní listina'!B15 -> 11 | E25: ='Startovní listina'!C15 -> Kopečný | F25: ='Startovní listina'!D15 -> Dušan | G25: ='Startovní listina'!E15 -> 1973 | H25: ='Startovní listina'!F15 -> AK Drnovice | I25: 02:32:28
A26: =IF('Výsledková listina'!D25<>"",A25+1,"") -> 22 | B26: 7 | C26: ='Startovní listina'!G44 -> A | D26: ='Startovní listina'!B44 -> 48 | E26: ='Startovní listina'!C44 -> Příhoda | F26: ='Startovní listina'!D44 -> Jan | G26: ='Startovní listina'!E44 -> 1983 | H26: ='Startovní listina'!F44 -> Ždánice | I26: 02:32:48
A27: =IF('Výsledková listina'!D26<>"",A26+1,"") -> 23 | B27: 9 | C27: ='Startovní listina'!G33 -> B | D27: ='Startovní listina'!B33 -> 35 | E27: ='Startovní listina'!C33 -> Dušil | F27: ='Startovní listina'!D33 -> Jaroslav | G27: ='Startovní listina'!E33 -> 1970 | H27: ='Startovní listina'!F33 -> Běžecký klub Brno | I27: 02:36:14
A28: =IF('Výsledková listina'!D27<>"",A27+1,"") -> 24 | B28: 8 | C28: ='Startovní listina'!G84 -> A | D28: ='Startovní listina'!B84 -> 101 | E28: ='Startovní listina'!C84 -> Jeneš | F28: ='Startovní listina'!D84 -> Kamil | G28: ='Startovní listina'!E84 -> 1984 | H28: ='Startovní listina'!F84 -> 3KJRUN | I28: 02:36:24
A29: =IF('Výsledková listina'!D28<>"",A28+1,"") -> 25 | B29: 1 | C29: ='Startovní listina'!G20 -> H | D29: ='Startovní listina'!B20 -> 18 | E29: ='Startovní listina'!C20 -> Krátká | F29: ='Startovní listina'!D20 -> Anna | G29: ='Startovní listina'!E20 -> 1969 | H29: ='Startovní listina'!F20 -> SKP Hvězda Pardubice | I29: 02:37:14
A30: =IF('Výsledková listina'!D29<>"",A29+1,"") -> 26 | B30: 9 | C30: ='Startovní listina'!G45 -> A | D30: ='Startovní listina'!B45 -> 49 | E30: ='Startovní listina'!C45 -> Kocur | F30: ='Startovní listina'!D45 -> Lukáš | G30: ='Startovní listina'!E45 -> 1977 | H30: ='Startovní listina'!F45 -> VHS Brno | I30: 02:37:49
A31: =IF('Výsledková listina'!D30<>"",A30+1,"") -> 27 | B31: 10 | C31: ='Startovní listina'!G72 -> B | D31: ='Startovní listina'!B72 -> 89 | E31: ='Startovní listina'!C72 -> Weis | F31: ='Startovní listina'!D72 -> Josef | G31: ='Startovní listina'!E72 -> 1974 | H31: ='Startovní listina'!F72 -> Elite Sport Boskovice | I31: 02:38:31
A32: =IF('Výsledková listina'!D31<>"",A31+1,"") -> 28 | B32: 11 | C32: ='Startovní listina'!G37 -> B | D32: ='Startovní listina'!B37 -> 40 | E32: ='Startovní listina'!C37 -> Brázda | F32: ='Startovní listina'!D37 -> Richard | G32: ='Startovní listina'!E37 -> 1975 | H32: ='Startovní listina'!F37 -> AC NOTARBRAZDA.CZ | I32: 02:38:56
A33: =IF('Výsledková listina'!D32<>"",A32+1,"") -> 29 | B33: 10 | C33: ='Startovní listina'!G57 -> A | D33: ='Startovní listina'!B57 -> 69 | E33: ='Startovní listina'!C57 -> Brabenec | F33: ='Startovní listina'!D57 -> Aleš | G33: ='Startovní listina'!E57 -> 1987 | H33: ='Startovní listina'!F57 -> Žďár nad Sázavou | I33: 02:39:27
A34: =IF('Výsledková listina'!D33<>"",A33+1,"") -> 30 | B34: 11 | C34: ='Startovní listina'!G5 -> A | D34: ='Startovní listina'!B5 -> 1 | E34: ='Startovní listina'!C5 -> Kratochvíl | F34: ='Startovní listina'!D5 -> Jaroslav | G34: ='Startovní listina'!E5 -> 1977 | H34: ='Startovní listina'!F5 -> SDH Hluboké | I34: 02:39:33
A35: =IF('Výsledková listina'!D34<>"",A34+1,"") -> 31 | B35: 6 | C35: ='Startovní listina'!G38 -> C | D35: ='Startovní listina'!B38 -> 41 | E35: ='Startovní listina'!C38 -> Barták | F35: ='Startovní listina'!D38 -> Ronald | G35: ='Startovní listina'!E38 -> 1965 | H35: ='Startovní listina'!F38 -> Kuřim | I35: 02:41:02
A36: =IF('Výsledková listina'!D35<>"",A35+1,"") -> 32 | B36: 7 | C36: ='Startovní listina'!G62 -> C | D36: ='Startovní listina'!B62 -> 76 | E36: ='Startovní listina'!C62 -> Prokop | F36: ='Startovní listina'!D62 -> Ondřej | G36: ='Startovní listina'!E62 -> 1962 | H36: ='Startovní listina'!F62 -> Čau, Brno | I36: 02:42:58
A37: =IF('Výsledková listina'!D36<>"",A36+1,"") -> 33 | B37: 1 | C37: ='Startovní listina'!G28 -> D | D37: ='Startovní listina'!B28 -> 28 | E37: ='Startovní listina'!C28 -> Mareš | F37: ='Startovní listina'!D28 -> Bohumil | G37: ='Startovní listina'!E28 -> 1951 | H37: ='Startovní listina'!F28 -> LEAR Brno | I37: 02:43:52
A38: =IF('Výsledková listina'!D37<>"",A37+1,"") -> 34 | B38: 12 | C38: ='Startovní listina'!G58 -> A | D38: ='Startovní listina'!B58 -> 70 | E38: ='Startovní listina'!C58 -> Mička | F38: ='Startovní listina'!D58 -> Michal | G38: ='Startovní listina'!E58 -> 1987 | H38: ='Startovní listina'!F58 -> Žďár nad Sázavou | I38: 02:44:11
A39: =IF('Výsledková listina'!D38<>"",A38+1,"") -> 35 | B39: 13 | C39: ='Startovní listina'!G40 -> A | D39: ='Startovní listina'!B40 -> 44 | E39: ='Startovní listina'!C40 -> Dubský | F39: ='Startovní listina'!D40 -> Roman | G39: ='Startovní listina'!E40 -> 1978 | H39: ='Startovní listina'!F40 -> Přibyslav | I39: 02:45:49
A40: =IF('Výsledková listina'!D39<>"",A39+1,"") -> 36 | B40: 8 | C40: ='Startovní listina'!G14 -> C | D40: ='Startovní listina'!B14 -> 10 | E40: ='Startovní listina'!C14 -> Bolek | F40: ='Startovní listina'!D14 -> Rostislav | G40: ='Startovní listina'!E14 -> 1965 | H40: ='Startovní listina'!F14 -> Insportline Ostrava | I40: 02:49:02
A41: =IF('Výsledková listina'!D40<>"",A40+1,"") -> 37 | B41: 12 | C41: ='Startovní listina'!G71 -> B | D41: ='Startovní listina'!B71 -> 87 | E41: ='Startovní listina'!C71 -> Hančl | F41: ='Startovní listina'!D71 -> Roman | G41: ='Startovní listina'!E71 -> 1967 | H41: ='Startovní listina'!F71 -> Tišnov | I41: 02:50:28
A42: =IF('Výsledková listina'!D41<>"",A41+1,"") -> 38 | B42: 2 | C42: ='Startovní listina'!G27 -> D | D42: ='Startovní listina'!B27 -> 27 | E42: ='Startovní listina'!C27 -> Kubík | F42: ='Startovní listina'!D27 -> Jaromír | G42: ='Startovní listina'!E27 -> 1955 | H42: ='Startovní listina'!F27 -> Blansko | I42: 02:51:36
A43: =IF('Výsledková listina'!D42<>"",A42+1,"") -> 39 | B43: 9 | C43: ='Startovní listina'!G7 -> C | D43: ='Startovní listina'!B7 -> 3 | E43: ='Startovní listina'!C7 -> Češner | F43: ='Startovní listina'!D7 -> Vladimír | G43: ='Startovní listina'!E7 -> 1958 | H43: ='Startovní listina'!F7 -> Odolená Voda | I43: 02:52:34
A44: =IF('Výsledková listina'!D43<>"",A43+1,"") -> 40 | B44: 13 | C44: ='Startovní listina'!G59 -> B | D44: ='Startovní listina'!B59 -> 72 | E44: ='Startovní listina'!C59 -> Báňa | F44: ='Startovní listina'!D59 -> Karel | G44: ='Startovní listina'!E59 -> 1975 | H44: ='Startovní listina'!F59 -> Jabloňov | I44: 02:52:52
A45: =IF('Výsledková listina'!D44<>"",A44+1,"") -> 41 | B45: 1 | C45: ='Startovní listina'!G8 -> G | D45: ='Startovní listina'!B8 -> 4 | E45: ='Startovní listina'!C8 -> Komárková | F45: ='Startovní listina'!D8 -> Zdeňka | G45: ='Startovní listina'!E8 -> 1974 | H45: ='Startovní listina'!F8 -> SDH Bolešín | I45: 02:54:21
A46: =IF('Výsledková listina'!D45<>"",A45+1,"") -> 42 | B46: 3 | C46: ='Startovní listina'!G13 -> D | D46: ='Startovní listina'!B13 -> 9 | E46: ='Startovní listina'!C13 -> Vytisk | F46: ='Startovní listina'!D13 -> Alfons | G46: ='Startovní listina'!E13 -> 1949 | H46: ='Startovní listina'!F13 -> MKS Ostrava | I46: 02:57:04
A47: =IF('Výsledková listina'!D46<>"",A46+1,"") -> 43 | B47: 10 | C47: ='Startovní listina'!G23 -> C | D47: ='Startovní listina'!B23 -> 22 | E47: ='Startovní listina'!C23 -> Provazník | F47: ='Startovní listina'!D23 -> Milan | G47: ='Startovní listina'!E23 -> 1966 | H47: ='Startovní listina'!F23 -> Atletika Polička | I47: 02:57:40
A48: =IF('Výsledková listina'!D47<>"",A47+1,"") -> 44 | B48: 14 | C48: ='Startovní listina'!G60 -> A | D48: ='Startovní listina'!B60 -> 73 | E48: ='Startovní listina'!C60 -> Hlavsa | F48: ='Startovní listina'!D60 -> Tomáš | G48: ='Startovní listina'!E60 -> 1983 | H48: ='Startovní listina'!F60 -> Adamov | I48: 02:59:28
A49: =IF('Výsledková listina'!D48<>"",A48+1,"") -> 45 | B49: 4 | C49: ='Startovní listina'!G70 -> D | D49: ='Startovní listina'!B70 -> 86 | E49: ='Startovní listina'!C70 -> Šperka | F49: ='Startovní listina'!D70 -> Oldřich | G49: ='Startovní listina'!E70 -> 1956 | H49: ='Startovní listina'!F70 -> Jedovnice | I49: 03:00:09
A50: =IF('Výsledková listina'!D49<>"",A49+1,"") -> 46 | B50: 3 | C50: ='Startovní listina'!G9 -> F | D50: ='Startovní listina'!B9 -> 5 | E50: ='Startovní listina'!C9 -> Železná | F50: ='Startovní listina'!D9 -> Lada | G50: ='Startovní listina'!E9 -> 1989 | H50: ='Startovní listina'!F9 -> Brno | I50: 03:03:05
A51: =IF('Výsledková listina'!D50<>"",A50+1,"") -> 47 | B51: 14 | C51: ='Startovní listina'!G65 -> B | D51: ='Startovní listina'!B65 -> 80 | E51: ='Startovní listina'!C65 -> Petrů | F51: ='Startovní listina'!D65 -> Roman | G51: ='Startovní listina'!E65 -> 1976 | H51: ='Startovní listina'!F65 -> Drnovice | I51: 03:03:45
A52: =IF('Výsledková listina'!D51<>"",A51+1,"") -> 48 | B52: 15 | C52: ='Startovní listina'!G6 -> A | D52: ='Startovní listina'!B6 -> 2 | E52: ='Startovní listina'!C6 -> Barvíř | F52: ='Startovní listina'!D6 -> Jiří | G52: ='Startovní listina'!E6 -> 1982 | H52: ='Startovní listina'!F6 -> R.I.P. Brno | I52: 03:08:07
A53: =IF('Výsledková listina'!D52<>"",A52+1,"") -> 49 | B53: 16 | C53: ='Startovní listina'!G42 -> A | D53: ='Startovní listina'!B42 -> 46 | E53: ='Startovní listina'!C42 -> Vágner | F53: ='Startovní listina'!D42 -> Vojtěch | G53: ='Startovní listina'!E42 -> 1999 | H53: ='Startovní listina'!F42 -> Brno | I53: 03:09:29
A54: =IF('Výsledková listina'!D53<>"",A53+1,"") -> 50 | B54: 11 | C54: ='Startovní listina'!G56 -> C | D54: ='Startovní listina'!B56 -> 67 | E54: ='Startovní listina'!C56 -> Brabenec | F54: ='Startovní listina'!D56 -> Miroslav | G54: ='Startovní listina'!E56 -> 1959 | H54: ='Startovní listina'!F56 -> Žďár nad Sázavou | I54: 03:11:09
A55: =IF('Výsledková listina'!D54<>"",A54+1,"") -> 51 | B55: 17 | C55: ='Startovní listina'!G74 -> A | D55: ='Startovní listina'!B74 -> 91 | E55: ='Startovní listina'!C74 -> Hakl | F55: ='Startovní listina'!D74 -> Martin | G55: ='Startovní listina'!E74 -> 1987 | H55: ='Startovní listina'!F74 -> Running With Those That Can't | I55: 03:13:50
A56: =IF('Výsledková listina'!D55<>"",A55+1,"") -> 52 | B56: 15 | C56: ='Startovní listina'!G77 -> B | D56: ='Startovní listina'!B77 -> 94 | E56: ='Startovní listina'!C77 -> Benc | F56: ='Startovní listina'!D77 -> Karel | G56: ='Startovní listina'!E77 -> 1975 | H56: ='Startovní listina'!F77 -> Pivonice | I56: 03:14:08
A57: =IF('Výsledková listina'!D56<>"",A56+1,"") -> 53 | B57: 18 | C57: ='Startovní listina'!G80 -> A | D57: ='Startovní listina'!B80 -> 97 | E57: ='Startovní listina'!C80 -> Koutský | F57: ='Startovní listina'!D80 -> Tomáš | G57: ='Startovní listina'!E80 -> 1987 | H57: ='Startovní listina'!F80 -> Ledová stěna Vír | I57: 03:14:32
A58: =IF('Výsledková listina'!D57<>"",A57+1,"") -> 54 | B58: 19 | C58: ='Startovní listina'!G73 -> A | D58: ='Startovní listina'!B73 -> 90 | E58: ='Startovní listina'!C73 -> Hakl | F58: ='Startovní listina'!D73 -> Zdeněk | G58: ='Startovní listina'!E73 -> 1982 | H58: ='Startovní listina'!F73 -> SK Tri Cyklochlubna | I58: 03:14:48
A59: =IF('Výsledková listina'!D58<>"",A58+1,"") -> 55 | B59: 16 | C59: ='Startovní listina'!G50 -> B | D59: ='Startovní listina'!B50 -> 59 | E59: ='Startovní listina'!C50 -> Dvořák | F59: ='Startovní listina'!D50 -> Vojtěch | G59: ='Startovní listina'!E50 -> 1974 | H59: ='Startovní listina'!F50 -> Brno | I59: 03:16:29
A60: =IF('Výsledková listina'!D59<>"",A59+1,"") -> 56 | B60: 5 | C60: ='Startovní listina'!G26 -> D | D60: ='Startovní listina'!B26 -> 26 | E60: ='Startovní listina'!C26 -> Kohoutek | F60: ='Startovní listina'!D26 -> Jaromír | G60: ='Startovní listina'!E26 -> 1955 | H60: ='Startovní listina'!F26 -> watter and snow ski club Brno | I60: 03:16:30
A61: =IF('Výsledková listina'!D60<>"",A60+1,"") -> 57 | B61: 20 | C61: ='Startovní listina'!G48 -> A | D61: ='Startovní listina'!B48 -> 56 | E61: ='Startovní listina'!C48 -> Srnec | F61: ='Startovní listina'!D48 -> Lukáš | G61: ='Startovní listina'!E48 -> 1990 | H61: ='Startovní listina'!F48 -> Židlochovice | I61: 03:17:27
A62: =IF('Výsledková listina'!D61<>"",A61+1,"") -> 58 | B62: 17 | C62: ='Startovní listina'!G24 -> B | D62: ='Startovní listina'!B24 -> 23 | E62: ='Startovní listina'!C24 -> Kryštof | F62: ='Startovní listina'!D24 -> Ondřej | G62: ='Startovní listina'!E24 -> 1976 | H62: ='Startovní listina'!F24 -> Jiskra Vír | I62: 03:23:10
A63: =IF('Výsledková listina'!D62<>"",A62+1,"") -> 59 | B63: 2 | C63: ='Startovní listina'!G81 -> G | D63: ='Startovní listina'!B81 -> 98 | E63: ='Startovní listina'!C81 -> Tonarová | F63: ='Startovní listina'!D81 -> Miroslava | G63: ='Startovní listina'!E81 -> 1976 | H63: ='Startovní listina'!F81 -> Bory | I63: 03:27:04
A64: =IF('Výsledková listina'!D63<>"",A63+1,"") -> 60 | B64: 4 | C64: ='Startovní listina'!G11 -> F | D64: ='Startovní listina'!B11 -> 7 | E64: ='Startovní listina'!C11 -> Forýtková | F64: ='Startovní listina'!D11 -> Žaneta | G64: ='Startovní listina'!E11 -> 1984 | H64: ='Startovní listina'!F11 -> Praha | I64: 03:27:09
A65: =IF('Výsledková listina'!D64<>"",A64+1,"") -> 61 | B65: 6 | C65: ='Startovní listina'!G53 -> D | D65: ='Startovní listina'!B53 -> 62 | E65: ='Startovní listina'!C53 -> Nekuža | F65: ='Startovní listina'!D53 -> Jiří | G65: ='Startovní listina'!E53 -> 1951 | H65: ='Startovní listina'!F53 -> Runners Zbýšov | I65: 03:29:30
A66: =IF('Výsledková listina'!D65<>"",A65+1,"") -> 62 | B66: 12 | C66: ='Startovní listina'!G75 -> C | D66: ='Startovní listina'!B75 -> 92 | E66: ='Startovní listina'!C75 -> Novotný | F66: ='Startovní listina'!D75 -> Petr | G66: ='Startovní listina'!E75 -> 1965 | H66: ='Startovní listina'!F75 -> Kuřim | I66: 03:31:18
A67: =IF('Výsledková listina'!D66<>"",A66+1,"") -> 63 | B67: 21 | C67: ='Startovní listina'!G41 -> A | D67: ='Startovní listina'!B41 -> 45 | E67: ='Startovní listina'!C41 -> Misař | F67: ='Startovní listina'!D41 -> Ondřej | G67: ='Startovní listina'!E41 -> 2000 | H67: ='Startovní listina'!F41 -> Brno | I67: 03:37:20
A68: =IF('Výsledková listina'!D67<>"",A67+1,"") -> 64 | B68: 22 | C68: ='Startovní listina'!G10 -> A | D68: ='Startovní listina'!B10 -> 6 | E68: ='Startovní listina'!C10 -> Forýtek | F68: ='Startovní listina'!D10 -> Michal | G68: ='Startovní listina'!E10 -> 1982 | H68: ='Startovní listina'!F10 -> Praha | I68: 03:38:07
A69: =IF('Výsledková listina'!D68<>"",A68+1,"") -> 65 | B69: 13 | C69: ='Startovní listina'!G78 -> C | D69: ='Startovní listina'!B78 -> 95 | E69: ='Startovní listina'!C78 -> Zourek | F69: ='Startovní listina'!D78 -> Karel | G69: ='Startovní listina'!E78 -> 1959 | H69: ='Startovní listina'!F78 -> Bedřichovice | I69: 03:43:16
A70: =IF('Výsledková listina'!D69<>"",A69+1,"") -> 66 | B70: 2 | C70: ='Startovní listina'!G68 -> H | D70: ='Startovní listina'!B68 -> 84 | E70: ='Startovní listina'!C68 -> Podmelová | F70: ='Startovní listina'!D68 -> Vilma | G70: ='Startovní listina'!E68 -> 1962 | H70: ='Startovní listina'!F68 -> AC Moravská Slávia Brno | I70: 03:43:43
A71: =IF('Výsledková listina'!D70<>"",A70+1,"") -> 67 | B71: 18 | C71: ='Startovní listina'!G79 -> B | D71: ='Startovní listina'!B79 -> 96 | E71: ='Startovní listina'!C79 -> Konečný | F71: ='Startovní listina'!D79 -> Jaroslav | G71: ='Startovní listina'!E79 -> 1969 | H71: ='Startovní listina'!F79 -> Essens Popůvky | I71: 03:44:07
A72: =IF('Výsledková listina'!D71<>"",A71+1,"") -> 68 | B72: 7 | C72: ='Startovní listina'!G19 -> D | D72: ='Startovní listina'!B19 -> 17 | E72: ='Startovní listina'!C19 -> Zejda | F72: ='Startovní listina'!D19 -> Ivo | G72: ='Startovní listina'!E19 -> 1956 | H72: ='Startovní listina'!F19 -> AC Moravská Slávia Brno | I72: 03:45:32
A73: =IF('Výsledková listina'!D72<>"",A72+1,"") -> 69 | B73: 8 | C73: ='Startovní listina'!G51 -> D | D73: ='Startovní listina'!B51 -> 60 | E73: ='Startovní listina'!C51 -> Suchý | F73: ='Startovní listina'!D51 -> Karel | G73: ='Startovní listina'!E51 -> 1956 | H73: ='Startovní listina'!F51 -> Atletic Třebíč | I73: 03:46:18
A74: =IF('Výsledková listina'!D73<>"",A73+1,"") -> 70 | B74: 3 | C74: ='Startovní listina'!G17 -> H | D74: ='Startovní listina'!B17 -> 13 | E74: ='Startovní listina'!C17 -> Tesařová | F74: ='Startovní listina'!D17 -> Marie | G74: ='Startovní listina'!E17 -> 1954 | H74: ='Startovní listina'!F17 -> Křižanov | I74: 03:50:29
A75: =IF('Výsledková listina'!D74<>"",A74+1,"") -> 71 | B75: 4 | C75: ='Startovní listina'!G25 -> H | D75: ='Startovní listina'!B25 -> 24 | E75: ='Startovní listina'!C25 -> Šedová | F75: ='Startovní listina'!D25 -> Věra | G75: ='Startovní listina'!E25 -> 1964 | H75: ='Startovní listina'!F25 -> Atletic Třebíč | I75: 04:00:01
A76: =IF('Výsledková listina'!D75<>"",A75+1,"") -> 72 | B76: 1 | C76: ='Startovní listina'!G18 -> E | D76: ='Startovní listina'!B18 -> 14 | E76: ='Startovní listina'!C18 -> Holý | F76: ='Startovní listina'!D18 -> Josef | G76: ='Startovní listina'!E18 -> 1941 | H76: ='Startovní listina'!F18 -> AC Moravská Slávia Brno | I76: 04:01:12
A77: =IF('Výsledková listina'!D76<>"",A76+1,"") -> 73 | B77: 14 | C77: ='Startovní listina'!G82 -> C | D77: ='Startovní listina'!B82 -> 99 | E77: ='Startovní listina'!C82 -> Daněk | F77: ='Startovní listina'!D82 -> Milan | G77: ='Startovní listina'!E82 -> 1962 | H77: ='Startovní listina'!F82 -> Horizont kola Novák Blansko | I77: 04:01:34
A78: =IF('Výsledková listina'!D77<>"",A77+1,"") -> 74 | B78: 9 | C78: ='Startovní listina'!G34 -> D | D78: ='Startovní listina'!B34 -> 36 | E78: ='Startovní listina'!C34 -> Němec | F78: ='Startovní listina'!D34 -> Jaroslav | G78: ='Startovní listina'!E34 -> 1952 | H78: ='Startovní listina'!F34 -> Blansko | I78: 04:01:50
A79: =IF('Výsledková listina'!D78<>"",A78+1,"") -> 75 | B79: 15 | C79: ='Startovní listina'!G21 -> C | D79: ='Startovní listina'!B21 -> 19 | E79: ='Startovní listina'!C21 -> Krátký | F79: ='Startovní listina'!D21 -> Josef | G79: ='Startovní listina'!E21 -> 1965 | H79: ='Startovní listina'!F21 -> SKP Hvězda Pardubice | I79: 04:27:00
A80: =IF('Výsledková listina'!D79<>"",A79+1,"") -> 76 | B80: 23 | C80: ='Startovní listina'!G83 -> A | D80: ='Startovní listina'!B83 -> 100 | E80: ='Startovní listina'!C83 -> Šacl | F80: ='Startovní listina'!D83 -> Pavel | G80: ='Startovní listina'!E83 -> 1981 | H80: ='Startovní listina'!F83 -> Dolní Rožínka | I80: DNF
A81: =IF('Výsledková listina'!D80<>"",A80+1,"") -> 77 | B81: 19 | C81: ='Startovní listina'!G22 -> B | D81: ='Startovní listina'!B22 -> 21 | E81: ='Startovní listina'!C22 -> Sláma | F81: ='Startovní listina'!D22 -> Adolf | G81: ='Startovní listina'!E22 -> 1970 | H81: ='Startovní listina'!F22 -> Žďár nad Sázavou | I81: DNF
A82: =IF('Výsledková listina'!D81<>"",A81+1,"") -> 78 | B82: 16 | C82: ='Startovní listina'!G43 -> C | D82: ='Startovní listina'!B43 -> 47 | E82: ='Startovní listina'!C43 -> Šádek | F82: ='Startovní listina'!D43 -> Jiří | G82: ='Startovní listina'!E43 -> 1959 | H82: ='Startovní listina'!F43 -> Lomnice nad Popelkou | I82: DNF
A83: =IF('Výsledková listina'!D82<>"",A82+1,"") -> 79 | B83: 5 | C83: ='Startovní listina'!G54 -> F | D83: ='Startovní listina'!B54 -> 63 | E83: ='Startovní listina'!C54 -> Rokosová | F83: ='Startovní listina'!D54 -> Ivana | G83: ='Startovní listina'!E54 -> 1982 | H83: ='Startovní listina'!F54 -> Polička | I83: DNF
A84: =IF('Výsledková listina'!D83<>"",A83+1,"") -> 80 | B84: 5 | C84: ='Startovní listina'!G29 -> H | D84: ='Startovní listina'!B29 -> 30 | E84: ='Startovní listina'!C29 -> Martincová | F84: ='Startovní listina'!D29 -> Ivana | G84: ='Startovní listina'!E29 -> 1963 | H84: ='Startovní listina'!F29 -> AC Moravská Slávia Brno | I84: DNF
A85: =IF('Výsledková listina'!D84<>"",A84+1,"") -> 81 | C85: ='Startovní listina'!G85 ->  | D85: ='Startovní listina'!B85 ->  | E85: ='Startovní listina'!C85 ->  | F85: ='Startovní listina'!D85 ->  | G85: ='Startovní listina'!E85 ->  | H85: ='Startovní listina'!F85 -> 
A86: =IF('Výsledková listina'!D85<>"",A85+1,"") ->  | C86: ='Startovní listina'!G86 ->  | D86: ='Startovní listina'!B86 ->  | E86: ='Startovní listina'!C86 ->  | F86: ='Startovní listina'!D86 ->  | G86: ='Startovní listina'!E86 ->  | H86: ='Startovní listina'!F86 -> 
A87: =IF('Výsledková listina'!D86<>"",A86+1,"") ->  | C87: ='Startovní listina'!G87 ->  | D87: ='Startovní listina'!B87 ->  | E87: ='Startovní listina'!C87 ->  | F87: ='Startovní listina'!D87 ->  | G87: ='Startovní listina'!E87 ->  | H87: ='Startovní listina'!F87 -> 
A88: =IF('Výsledková listina'!D87<>"",A87+1,"") ->  | C88: ='Startovní listina'!G88 ->  | D88: ='Startovní listina'!B88 ->  | E88: ='Startovní listina'!C88 ->  | F88: ='Startovní listina'!D88 ->  | G88: ='Startovní listina'!E88 ->  | H88: ='Startovní listina'!F88 -> 
A89: =IF('Výsledková listina'!D88<>"",A88+1,"") ->  | C89: ='Startovní listina'!G89 ->  | D89: ='Startovní listina'!B89 ->  | E89: ='Startovní listina'!C89 ->  | F89: ='Startovní listina'!D89 ->  | G89: ='Startovní listina'!E89 ->  | H89: ='Startovní listina'!F89 -> 
A90: =IF('Výsledková listina'!D89<>"",A89+1,"") ->  | C90: ='Startovní listina'!G90 ->  | D90: ='Startovní listina'!B90 ->  | E90: ='Startovní listina'!C90 ->  | F90: ='Startovní listina'!D90 ->  | G90: ='Startovní listina'!E90 ->  | H90: ='Startovní listina'!F90 -> 
A91: =IF('Výsledková listina'!D90<>"",A90+1,"") ->  | C91: ='Startovní listina'!G91 ->  | D91: ='Startovní listina'!B91 ->  | E91: ='Startovní listina'!C91 ->  | F91: ='Startovní listina'!D91 ->  | G91: ='Startovní listina'!E91 ->  | H91: ='Startovní listina'!F91 -> 
A92: =IF('Výsledková listina'!D91<>"",A91+1,"") ->  | C92: ='Startovní listina'!G92 ->  | D92: ='Startovní listina'!B92 ->  | E92: ='Startovní listina'!C92 ->  | F92: ='Startovní listina'!D92 ->  | G92: ='Startovní listina'!E92 ->  | H92: ='Startovní listina'!F92 -> 
A93: =IF('Výsledková listina'!D92<>"",A92+1,"") ->  | C93: ='Startovní listina'!G93 ->  | D93: ='Startovní listina'!B93 ->  | E93: ='Startovní listina'!C93 ->  | F93: ='Startovní listina'!D93 ->  | G93: ='Startovní listina'!E93 ->  | H93: ='Startovní listina'!F93 -> 
A94: =IF('Výsledková listina'!D93<>"",A93+1,"") ->  | C94: ='Startovní listina'!G94 ->  | D94: ='Startovní listina'!B94 ->  | E94: ='Startovní listina'!C94 ->  | F94: ='Startovní listina'!D94 ->  | G94: ='Startovní listina'!E94 ->  | H94: ='Startovní listina'!F94 -> 
A95: =IF('Výsledková listina'!D94<>"",A94+1,"") ->  | C95: ='Startovní listina'!G95 ->  | D95: ='Startovní listina'!B95 ->  | E95: ='Startovní listina'!C95 ->  | F95: ='Startovní listina'!D95 ->  | G95: ='Startovní listina'!E95 ->  | H95: ='Startovní listina'!F95 -> 
A96: =IF('Výsledková listina'!D95<>"",A95+1,"") ->  | C96: ='Startovní listina'!G96 ->  | D96: ='Startovní listina'!B96 ->  | E96: ='Startovní listina'!C96 ->  | F96: ='Startovní listina'!D96 ->  | G96: ='Startovní listina'!E96 ->  | H96: ='Startovní listina'!F96 -> 
A97: =IF('Výsledková listina'!D96<>"",A96+1,"") ->  | C97: ='Startovní listina'!G97 ->  | D97: ='Startovní listina'!B97 ->  | E97: ='Startovní listina'!C97 ->  | F97: ='Startovní listina'!D97 ->  | G97: ='Startovní listina'!E97 ->  | H97: ='Startovní listina'!F97 -> 
A98: =IF('Výsledková listina'!D97<>"",A97+1,"") ->  | C98: ='Startovní listina'!G98 ->  | D98: ='Startovní listina'!B98 ->  | E98: ='Startovní listina'!C98 ->  | F98: ='Startovní listina'!D98 ->  | G98: ='Startovní listina'!E98 ->  | H98: ='Startovní listina'!F98 -> 
A99: =IF('Výsledková listina'!D98<>"",A98+1,"") ->  | C99: ='Startovní listina'!G99 ->  | D99: ='Startovní listina'!B99 ->  | E99: ='Startovní listina'!C99 ->  | F99: ='Startovní listina'!D99 ->  | G99: ='Startovní listina'!E99 ->  | H99: ='Startovní listina'!F99 -> 
A100: =IF('Výsledková listina'!D99<>"",A99+1,"") ->  | C100: ='Startovní listina'!G100 ->  | D100: ='Startovní listina'!B100 ->  | E100: ='Startovní listina'!C100 ->  | F100: ='Startovní listina'!D100 ->  | G100: ='Startovní listina'!E100 ->  | H100: ='Startovní listina'!F100 -> 
A101: =IF('Výsledková listina'!D100<>"",A100+1,"") ->  | C101: ='Startovní listina'!G101 ->  | D101: ='Startovní listina'!B101 ->  | E101: ='Startovní listina'!C101 ->  | F101: ='Startovní listina'!D101 ->  | G101: ='Startovní listina'!E101 ->  | H101: ='Startovní listina'!F101 -> 
A102: =IF('Výsledková listina'!D101<>"",A101+1,"") ->  | C102: ='Startovní listina'!G102 ->  | D102: ='Startovní listina'!B102 ->  | E102: ='Startovní listina'!C102 ->  | F102: ='Startovní listina'!D102 ->  | G102: ='Startovní listina'!E102 ->  | H102: ='Startovní listina'!F102 -> 
A103: =IF('Výsledková listina'!D102<>"",A102+1,"") ->  | C103: ='Startovní listina'!G103 ->  | D103: ='Startovní listina'!B103 ->  | E103: ='Startovní listina'!C103 ->  | F103: ='Startovní listina'!D103 ->  | G103: ='Startovní listina'!E103 ->  | H103: ='Startovní listina'!F103 -> 
A104: =IF('Výsledková listina'!D103<>"",A103+1,"") ->  | C104: ='Startovní listina'!G104 ->  | D104: ='Startovní listina'!B104 ->  | E104: ='Startovní listina'!C104 ->  | F104: ='Startovní listina'!D104 ->  | G104: ='Startovní listina'!E104 ->  | H104: ='Startovní listina'!F104 -> 

Sheet Družstva
B1: ="Výsledková listina - Malý svratecký maratón "&'Prezenční listina'!O2&" - družstva" -> Výsledková listina - Malý svratecký maratón 2016 - družstva
B2: ='Prezenční listina'!O2-1953&". ročník" -> 63. ročník
B3: Pořadí | C3: Startovní číslo | D3: Příjmení | E3: Jméno | F3: Narození | G3: Oddíl / Bydliště | H3: Čas | I3: Výsledný čas
B4: 1. | C4: 77 | D4: =IF(ISERROR(VLOOKUP(C4,'[1]Startovní listina'!$B$5:$F$141,2)),"",VLOOKUP(C4,'[1]Startovní listina'!$B$5:$F$141,2)) -> Rerych | E4: =IF(ISERROR(VLOOKUP(C4,'[1]Startovní listina'!$B$5:$F$141,3)),"",VLOOKUP(C4,'[1]Startovní listina'!$B$5:$F$141,3)) -> Jiří | F4: =IF(ISERROR(VLOOKUP(C4,'[1]Startovní listina'!$B$5:$F$141,4)),"",VLOOKUP(C4,'[1]Startovní listina'!$B$5:$F$141,4)) -> 1962 | G4: =IF(K4=K5,K4,"RŮZNÉ ODDÍLY !!!") -> adidas Boost Team/AC Moravská Slávia Brno | H4: 02:15:54 | I4: =IF((H4=0),"",H4+H5) -> 04:14:09 | K4: =IF(ISERROR(VLOOKUP(C4,'Startovní listina'!$B$5:$F$141,5)),"",VLOOKUP(C4,'Startovní listina'!$B$5:$F$141,5)) -> adidas Boost Team/AC Moravská Slávia Brno
C5: 83 | D5: =IF(ISERROR(VLOOKUP(C5,'[1]Startovní listina'!$B$5:$F$141,2)),"",VLOOKUP(C5,'[1]Startovní listina'!$B$5:$F$141,2)) -> Orálek | E5: =IF(ISERROR(VLOOKUP(C5,'[1]Startovní listina'!$B$5:$F$141,3)),"",VLOOKUP(C5,'[1]Startovní listina'!$B$5:$F$141,3)) -> Daniel | F5: =IF(ISERROR(VLOOKUP(C5,'[1]Startovní listina'!$B$5:$F$141,4)),"",VLOOKUP(C5,'[1]Startovní listina'!$B$5:$F$141,4)) -> 1970 | H5: 01:58:15 | K5: =IF(ISERROR(VLOOKUP(C5,'Startovní listina'!$B$5:$F$141,5)),"",VLOOKUP(C5,'Startovní listina'!$B$5:$F$141,5)) -> adidas Boost Team/AC Moravská Slávia Brno
B6: 2. | C6: 64 | D6: =IF(ISERROR(VLOOKUP(C6,'[1]Startovní listina'!$B$5:$F$141,2)),"",VLOOKUP(C6,'[1]Startovní listina'!$B$5:$F$141,2)) -> Ožana | E6: =IF(ISERROR(VLOOKUP(C6,'[1]Startovní listina'!$B$5:$F$141,3)),"",VLOOKUP(C6,'[1]Startovní listina'!$B$5:$F$141,3)) -> Václav | F6: =IF(ISERROR(VLOOKUP(C6,'[1]Startovní listina'!$B$5:$F$141,4)),"",VLOOKUP(C6,'[1]Startovní listina'!$B$5:$F$141,4)) -> 1964 | G6: =IF(K6=K7,K6,"RŮZNÉ ODDÍLY !!!") -> Atletic Třebíč | H6: 02:17:14 | I6: =IF((H6=0),"",H6+H7) -> 04:41:24 | K6: =IF(ISERROR(VLOOKUP(C6,'Startovní listina'!$B$5:$F$141,5)),"",VLOOKUP(C6,'Startovní listina'!$B$5:$F$141,5)) -> Atletic Třebíč
C7: 61 | D7: =IF(ISERROR(VLOOKUP(C7,'[1]Startovní listina'!$B$5:$F$141,2)),"",VLOOKUP(C7,'[1]Startovní listina'!$B$5:$F$141,2)) -> Nováček | E7: =IF(ISERROR(VLOOKUP(C7,'[1]Startovní listina'!$B$5:$F$141,3)),"",VLOOKUP(C7,'[1]Startovní listina'!$B$5:$F$141,3)) -> Tomáš | F7: =IF(ISERROR(VLOOKUP(C7,'[1]Startovní listina'!$B$5:$F$141,4)),"",VLOOKUP(C7,'[1]Startovní listina'!$B$5:$F$141,4)) -> 1983 | H7: 02:24:10 | K7: =IF(ISERROR(VLOOKUP(C7,'Startovní listina'!$B$5:$F$141,5)),"",VLOOKUP(C7,'Startovní listina'!$B$5:$F$141,5)) -> Atletic Třebíč
B8: 3. | C8: 35 | D8: =IF(ISERROR(VLOOKUP(C8,'[1]Startovní listina'!$B$5:$F$141,2)),"",VLOOKUP(C8,'[1]Startovní listina'!$B$5:$F$141,2)) -> Dušil | E8: =IF(ISERROR(VLOOKUP(C8,'[1]Startovní listina'!$B$5:$F$141,3)),"",VLOOKUP(C8,'[1]Startovní listina'!$B$5:$F$141,3)) -> Jaroslav | F8: =IF(ISERROR(VLOOKUP(C8,'[1]Startovní listina'!$B$5:$F$141,4)),"",VLOOKUP(C8,'[1]Startovní listina'!$B$5:$F$141,4)) -> 1970 | G8: =IF(K8=K9,K8,"RŮZNÉ ODDÍLY !!!") -> Běžecký klub Brno | H8: 02:36:14 | I8: =IF((H8=0),"",H8+H9) -> 04:48:47 | K8: =IF(ISERROR(VLOOKUP(C8,'Startovní listina'!$B$5:$F$141,5)),"",VLOOKUP(C8,'Startovní listina'!$B$5:$F$141,5)) -> Běžecký klub Brno
C9: 37 | D9: =IF(ISERROR(VLOOKUP(C9,'[1]Startovní listina'!$B$5:$F$141,2)),"",VLOOKUP(C9,'[1]Startovní listina'!$B$5:$F$141,2)) -> Hrdina | E9: =IF(ISERROR(VLOOKUP(C9,'[1]Startovní listina'!$B$5:$F$141,3)),"",VLOOKUP(C9,'[1]Startovní listina'!$B$5:$F$141,3)) -> Tomáš | F9: =IF(ISERROR(VLOOKUP(C9,'[1]Startovní listina'!$B$5:$F$141,4)),"",VLOOKUP(C9,'[1]Startovní listina'!$B$5:$F$141,4)) -> 1979 | H9: 02:12:33 | K9: =IF(ISERROR(VLOOKUP(C9,'Startovní listina'!$B$5:$F$141,5)),"",VLOOKUP(C9,'Startovní listina'!$B$5:$F$141,5)) -> Běžecký klub Brno
B10: 4. | C10: 11 | D10: =IF(ISERROR(VLOOKUP(C10,'[1]Startovní listina'!$B$5:$F$141,2)),"",VLOOKUP(C10,'[1]Startovní listina'!$B$5:$F$141,2)) -> Kopečný | E10: =IF(ISERROR(VLOOKUP(C10,'[1]Startovní listina'!$B$5:$F$141,3)),"",VLOOKUP(C10,'[1]Startovní listina'!$B$5:$F$141,3)) -> Dušan | F10: =IF(ISERROR(VLOOKUP(C10,'[1]Startovní listina'!$B$5:$F$141,4)),"",VLOOKUP(C10,'[1]Startovní listina'!$B$5:$F$141,4)) -> 1973 | G10: =IF(K10=K11,K10,"RŮZNÉ ODDÍLY !!!") -> AK Drnovice | H10: 03:44:07 | I10: =IF((H10=0),"",H10+H11) -> 06:04:19 | K10: =IF(ISERROR(VLOOKUP(C10,'Startovní listina'!$B$5:$F$141,5)),"",VLOOKUP(C10,'Startovní listina'!$B$5:$F$141,5)) -> AK Drnovice
C11: 12 | D11: =IF(ISERROR(VLOOKUP(C11,'[1]Startovní listina'!$B$5:$F$141,2)),"",VLOOKUP(C11,'[1]Startovní listina'!$B$5:$F$141,2)) -> Koudelka | E11: =IF(ISERROR(VLOOKUP(C11,'[1]Startovní listina'!$B$5:$F$141,3)),"",VLOOKUP(C11,'[1]Startovní listina'!$B$5:$F$141,3)) -> Lukáš | F11: =IF(ISERROR(VLOOKUP(C11,'[1]Startovní listina'!$B$5:$F$141,4)),"",VLOOKUP(C11,'[1]Startovní listina'!$B$5:$F$141,4)) -> 1983 | H11: 02:20:12 | K11: =IF(ISERROR(VLOOKUP(C11,'Startovní listina'!$B$5:$F$141,5)),"",VLOOKUP(C11,'Startovní listina'!$B$5:$F$141,5)) -> AK Drnovice
B12: 5. | C12: 6 | D12: =IF(ISERROR(VLOOKUP(C12,'[1]Startovní listina'!$B$5:$F$141,2)),"",VLOOKUP(C12,'[1]Startovní listina'!$B$5:$F$141,2)) -> Forýtek | E12: =IF(ISERROR(VLOOKUP(C12,'[1]Startovní listina'!$B$5:$F$141,3)),"",VLOOKUP(C12,'[1]Startovní listina'!$B$5:$F$141,3)) -> Michal | F12: =IF(ISERROR(VLOOKUP(C12,'[1]Startovní listina'!$B$5:$F$141,4)),"",VLOOKUP(C12,'[1]Startovní listina'!$B$5:$F$141,4)) -> 1982 | G12: =IF(K12=K13,K12,"RŮZNÉ ODDÍLY !!!") -> Praha | H12: 03:38:07 | I12: =IF((H12=0),"",H12+H13) -> 07:05:16 | K12: =IF(ISERROR(VLOOKUP(C12,'Startovní listina'!$B$5:$F$141,5)),"",VLOOKUP(C12,'Startovní listina'!$B$5:$F$141,5)) -> Praha
C13: 7 | D13: =IF(ISERROR(VLOOKUP(C13,'[1]Startovní listina'!$B$5:$F$141,2)),"",VLOOKUP(C13,'[1]Startovní listina'!$B$5:$F$141,2)) -> Forýtková | E13: =IF(ISERROR(VLOOKUP(C13,'[1]Startovní listina'!$B$5:$F$141,3)),"",VLOOKUP(C13,'[1]Startovní listina'!$B$5:$F$141,3)) -> Žaneta | F13: =IF(ISERROR(VLOOKUP(C13,'[1]Startovní listina'!$B$5:$F$141,4)),"",VLOOKUP(C13,'[1]Startovní listina'!$B$5:$F$141,4)) -> 1984 | H13: 03:27:09 | K13: =IF(ISERROR(VLOOKUP(C13,'Startovní listina'!$B$5:$F$141,5)),"",VLOOKUP(C13,'Startovní listina'!$B$5:$F$141,5)) -> Praha
B14: 6. | D14: =IF(ISERROR(VLOOKUP(C14,'Startovní listina'!$B$5:$F$141,2)),"",VLOOKUP(C14,'Startovní listina'!$B$5:$F$141,2)) ->  | E14: =IF(ISERROR(VLOOKUP(C14,'Startovní listina'!$B$5:$F$141,3)),"",VLOOKUP(C14,'Startovní listina'!$B$5:$F$141,3)) ->  | F14: =IF(ISERROR(VLOOKUP(C14,'Startovní listina'!$B$5:$F$141,4)),"",VLOOKUP(C14,'Startovní listina'!$B$5:$F$141,4)) ->  | G14: =IF(K14=K15,K14,"RŮZNÉ ODDÍLY !!!") ->  | I14: =IF((H14=0),"",H14+H15) ->  | K14: =IF(ISERROR(VLOOKUP(C14,'Startovní listina'!$B$5:$F$141,5)),"",VLOOKUP(C14,'Startovní listina'!$B$5:$F$141,5)) -> 
D15: =IF(ISERROR(VLOOKUP(C15,'Startovní listina'!$B$5:$F$141,2)),"",VLOOKUP(C15,'Startovní listina'!$B$5:$F$141,2)) ->  | E15: =IF(ISERROR(VLOOKUP(C15,'Startovní listina'!$B$5:$F$141,3)),"",VLOOKUP(C15,'Startovní listina'!$B$5:$F$141,3)) ->  | F15: =IF(ISERROR(VLOOKUP(C15,'Startovní listina'!$B$5:$F$141,4)),"",VLOOKUP(C15,'Startovní listina'!$B$5:$F$141,4)) ->  | K15: =IF(ISERROR(VLOOKUP(C15,'Startovní listina'!$B$5:$F$141,5)),"",VLOOKUP(C15,'Startovní listina'!$B$5:$F$141,5)) -> 
B16: 7. | D16: =IF(ISERROR(VLOOKUP(C16,'Startovní listina'!$B$5:$F$141,2)),"",VLOOKUP(C16,'Startovní listina'!$B$5:$F$141,2)) ->  | E16: =IF(ISERROR(VLOOKUP(C16,'Startovní listina'!$B$5:$F$141,3)),"",VLOOKUP(C16,'Startovní listina'!$B$5:$F$141,3)) ->  | F16: =IF(ISERROR(VLOOKUP(C16,'Startovní listina'!$B$5:$F$141,4)),"",VLOOKUP(C16,'Startovní listina'!$B$5:$F$141,4)) ->  | G16: =IF(K16=K17,K16,"RŮZNÉ ODDÍLY !!!") ->  | I16: =IF((H16=0),"",H16+H17) ->  | K16: =IF(ISERROR(VLOOKUP(C16,'Startovní listina'!$B$5:$F$141,5)),"",VLOOKUP(C16,'Startovní listina'!$B$5:$F$141,5)) -> 
D17: =IF(ISERROR(VLOOKUP(C17,'Startovní listina'!$B$5:$F$141,2)),"",VLOOKUP(C17,'Startovní listina'!$B$5:$F$141,2)) ->  | E17: =IF(ISERROR(VLOOKUP(C17,'Startovní listina'!$B$5:$F$141,3)),"",VLOOKUP(C17,'Startovní listina'!$B$5:$F$141,3)) ->  | F17: =IF(ISERROR(VLOOKUP(C17,'Startovní listina'!$B$5:$F$141,4)),"",VLOOKUP(C17,'Startovní listina'!$B$5:$F$141,4)) ->  | K17: =IF(ISERROR(VLOOKUP(C17,'Startovní listina'!$B$5:$F$141,5)),"",VLOOKUP(C17,'Startovní listina'!$B$5:$F$141,5)) -> 
B18: 8. | D18: =IF(ISERROR(VLOOKUP(C18,'Startovní listina'!$B$5:$F$141,2)),"",VLOOKUP(C18,'Startovní listina'!$B$5:$F$141,2)) ->  | E18: =IF(ISERROR(VLOOKUP(C18,'Startovní listina'!$B$5:$F$141,3)),"",VLOOKUP(C18,'Startovní listina'!$B$5:$F$141,3)) ->  | F18: =IF(ISERROR(VLOOKUP(C18,'Startovní listina'!$B$5:$F$141,4)),"",VLOOKUP(C18,'Startovní listina'!$B$5:$F$141,4)) ->  | I18: =IF((H18=0),"",H18+H19) ->  | K18: =IF(ISERROR(VLOOKUP(C18,'Startovní listina'!$B$5:$F$141,5)),"",VLOOKUP(C18,'Startovní listina'!$B$5:$F$141,5)) -> 
D19: =IF(ISERROR(VLOOKUP(C19,'Startovní listina'!$B$5:$F$141,2)),"",VLOOKUP(C19,'Startovní listina'!$B$5:$F$141,2)) ->  | E19: =IF(ISERROR(VLOOKUP(C19,'Startovní listina'!$B$5:$F$141,3)),"",VLOOKUP(C19,'Startovní listina'!$B$5:$F$141,3)) ->  | F19: =IF(ISERROR(VLOOKUP(C19,'Startovní listina'!$B$5:$F$141,4)),"",VLOOKUP(C19,'Startovní listina'!$B$5:$F$141,4)) ->  | K19: =IF(ISERROR(VLOOKUP(C19,'Startovní listina'!$B$5:$F$141,5)),"",VLOOKUP(C19,'Startovní listina'!$B$5:$F$141,5)) -> 
B20: 9. | D20: =IF(ISERROR(VLOOKUP(C20,'Startovní listina'!$B$5:$F$141,2)),"",VLOOKUP(C20,'Startovní listina'!$B$5:$F$141,2)) ->  | E20: =IF(ISERROR(VLOOKUP(C20,'Startovní listina'!$B$5:$F$141,3)),"",VLOOKUP(C20,'Startovní listina'!$B$5:$F$141,3)) ->  | F20: =IF(ISERROR(VLOOKUP(C20,'Startovní listina'!$B$5:$F$141,4)),"",VLOOKUP(C20,'Startovní listina'!$B$5:$F$141,4)) ->  | I20: =IF((H20=0),"",H20+H21) ->  | K20: =IF(ISERROR(VLOOKUP(C20,'Startovní listina'!$B$5:$F$141,5)),"",VLOOKUP(C20,'Startovní listina'!$B$5:$F$141,5)) -> 
D21: =IF(ISERROR(VLOOKUP(C21,'Startovní listina'!$B$5:$F$141,2)),"",VLOOKUP(C21,'Startovní listina'!$B$5:$F$141,2)) ->  | E21: =IF(ISERROR(VLOOKUP(C21,'Startovní listina'!$B$5:$F$141,3)),"",VLOOKUP(C21,'Startovní listina'!$B$5:$F$141,3)) ->  | F21: =IF(ISERROR(VLOOKUP(C21,'Startovní listina'!$B$5:$F$141,4)),"",VLOOKUP(C21,'Startovní listina'!$B$5:$F$141,4)) ->  | K21: =IF(ISERROR(VLOOKUP(C21,'Startovní listina'!$B$5:$F$141,5)),"",VLOOKUP(C21,'Startovní listina'!$B$5:$F$141,5)) -> 
B22: 10. | D22: =IF(ISERROR(VLOOKUP(C22,'Startovní listina'!$B$5:$F$141,2)),"",VLOOKUP(C22,'Startovní listina'!$B$5:$F$141,2)) ->  | E22: =IF(ISERROR(VLOOKUP(C22,'Startovní listina'!$B$5:$F$141,3)),"",VLOOKUP(C22,'Startovní listina'!$B$5:$F$141,3)) ->  | F22: =IF(ISERROR(VLOOKUP(C22,'Startovní listina'!$B$5:$F$141,4)),"",VLOOKUP(C22,'Startovní listina'!$B$5:$F$141,4)) ->  | I22: =IF((H22=0),"",H22+H23) ->  | K22: =IF(ISERROR(VLOOKUP(C22,'Startovní listina'!$B$5:$F$141,5)),"",VLOOKUP(C22,'Startovní listina'!$B$5:$F$141,5)) -> 
D23: =IF(ISERROR(VLOOKUP(C23,'Startovní listina'!$B$5:$F$141,2)),"",VLOOKUP(C23,'Startovní listina'!$B$5:$F$141,2)) ->  | E23: =IF(ISERROR(VLOOKUP(C23,'Startovní listina'!$B$5:$F$141,3)),"",VLOOKUP(C23,'Startovní listina'!$B$5:$F$141,3)) ->  | F23: =IF(ISERROR(VLOOKUP(C23,'Startovní listina'!$B$5:$F$141,4)),"",VLOOKUP(C23,'Startovní listina'!$B$5:$F$141,4)) ->  | K23: =IF(ISERROR(VLOOKUP(C23,'Startovní listina'!$B$5:$F$141,5)),"",VLOOKUP(C23,'Startovní listina'!$B$5:$F$141,5)) -> 
B24: 11. | D24: =IF(ISERROR(VLOOKUP(C24,'Startovní listina'!$B$5:$F$141,2)),"",VLOOKUP(C24,'Startovní listina'!$B$5:$F$141,2)) ->  | E24: =IF(ISERROR(VLOOKUP(C24,'Startovní listina'!$B$5:$F$141,3)),"",VLOOKUP(C24,'Startovní listina'!$B$5:$F$141,3)) ->  | F24: =IF(ISERROR(VLOOKUP(C24,'Startovní listina'!$B$5:$F$141,4)),"",VLOOKUP(C24,'Startovní listina'!$B$5:$F$141,4)) ->  | I24: =IF((H24=0),"",H24+H25) ->  | K24: =IF(ISERROR(VLOOKUP(C24,'Startovní listina'!$B$5:$F$141,5)),"",VLOOKUP(C24,'Startovní listina'!$B$5:$F$141,5)) -> 
D25: =IF(ISERROR(VLOOKUP(C25,'Startovní listina'!$B$5:$F$141,2)),"",VLOOKUP(C25,'Startovní listina'!$B$5:$F$141,2)) ->  | E25: =IF(ISERROR(VLOOKUP(C25,'Startovní listina'!$B$5:$F$141,3)),"",VLOOKUP(C25,'Startovní listina'!$B$5:$F$141,3)) ->  | F25: =IF(ISERROR(VLOOKUP(C25,'Startovní listina'!$B$5:$F$141,4)),"",VLOOKUP(C25,'Startovní listina'!$B$5:$F$141,4)) ->  | K25: =IF(ISERROR(VLOOKUP(C25,'Startovní listina'!$B$5:$F$141,5)),"",VLOOKUP(C25,'Startovní listina'!$B$5:$F$141,5)) -> 

Sheet Běh Vírem
A1: ="Běh Vírem "&'Prezenční listina'!O2 -> Běh Vírem 2016
D2: ='Startovní listina'!$A$2 -> 2016-08-20 | E2: ='Startovní listina'!$A$2 -> 2016-08-20
D3: ='Prezenční listina'!$O$2-1966&" . ročník" -> 50 . ročník
B4: Příjmení | C4: Jméno | D4: Narození | E4: Oddíl / Bydliště | F4: Startovní číslo | G4: Čas | H4: Pohlaví
A5: 1. | B5: Křenková | C5: Kateřina | D5: 2001 | E5: Přeštice | F5: 93 | G5: 00:12:38 | H5: =IF(LEN(B5)=0," ",IF(MID(B5,LEN(B5),1)="á","Ž","M")) -> Ž
A6: 2. | B6: Sojková | C6: Natálie | D6: 2000 | E6: Kaplice | F6: 95 | G6: 00:14:28 | H6: =IF(LEN(B6)=0," ",IF(MID(B6,LEN(B6),1)="á","Ž","M")) -> Ž
A7: 3. | B7: Soldánová | C7: Jana | D7: 1999 | E7: AK Drnovice | F7: 91 | G7: 00:15:09 | H7: =IF(LEN(B7)=0," ",IF(MID(B7,LEN(B7),1)="á","Ž","M")) -> Ž
A8: 4. | B8: Křenková | C8: Karolína | D8: 2001 | E8: Přeštice | F8: 92 | G8: 00:15:49 | H8: =IF(LEN(B8)=0," ",IF(MID(B8,LEN(B8),1)="á","Ž","M")) -> Ž
A9: 1. | B9: Starý | C9: Michal | D9: 1998 | E9: Nové Město na Moravě | F9: 72 | G9: 00:10:21 | H9: =IF(LEN(B9)=0," ",IF(MID(B9,LEN(B9),1)="á","Ž","M")) -> M
A10: 2. | B10: Kabrda | C10: Jiří | D10: 2001 | E10: TJ Nové Město na Moravě | F10: 90 | G10: 00:10:30 | H10: =IF(LEN(B10)=0," ",IF(MID(B10,LEN(B10),1)="á","Ž","M")) -> M
A11: 3 | B11: Ammer | C11: Matyáš | D11: 2002 | E11: AC Čáslav | F11: 83 | G11: 00:11:04 | H11: =IF(LEN(B11)=0," ",IF(MID(B11,LEN(B11),1)="á","Ž","M")) -> M
A12: 4 | B12: Janů | C12: Pavel | D12: 1999 | E12: Hvězda Pardubice | F12: 82 | G12: 00:11:29 | H12: =IF(LEN(B12)=0," ",IF(MID(B12,LEN(B12),1)="á","Ž","M")) -> M | L12: ;
A13: 5 | B13: Coural | C13: Jaroslav | D13: 2002 | E13: Jiskra Vír | F13: 81 | G13: 00:12:03 | H13: =IF(LEN(B13)=0," ",IF(MID(B13,LEN(B13),1)="á","Ž","M")) -> M
A14: 6 | B14: Nikolyv | C14: Jiří | D14: 2000 | E14: Horní Rožínka | F14: 75 | G14: 00:12:35 | H14: =IF(LEN(B14)=0," ",IF(MID(B14,LEN(B14),1)="á","Ž","M")) -> M
A15: 7 | B15: Kluj | C15: Jiří | D15: 2003 | E15: Brno | F15: 76 | G15: 00:13:30 | H15: =IF(LEN(B15)=0," ",IF(MID(B15,LEN(B15),1)="á","Ž","M")) -> M
A16: 8 | B16: Šacl | C16: Marek | D16: 2004 | E16: Dolní Rožínka | F16: 89 | G16: 00:13:49 | H16: =IF(LEN(B16)=0," ",IF(MID(B16,LEN(B16),1)="á","Ž","M")) -> M
A17: 9 | B17: Vondruška | C17: Vojtěch | D17: 2003 | E17: Dolní Rožínka | F17: 88 | G17: 00:14:13 | H17: =IF(LEN(B17)=0," ",IF(MID(B17,LEN(B17),1)="á","Ž","M")) -> M
H18: =IF(LEN(B18)=0," ",IF(MID(B18,LEN(B18),1)="á","Ž","M")) -> 
K25: ,

Sheet mezičasy (hidden)
A1: 5. km | C1: 10. km | E1: 16. km | G1: 25. km
A2: číslo | B2: čas | C2: číslo | D2: čas | E2: číslo | F2: čas | G2: číslo | H2: čas
A3: 83 | B3: 00:17:02 | C3: 31 | D3: 00:34:16 | E3: 31 | F3: 00:55:10 | G3: 31 | H3: 01:28:37
A4: 31 | B4: : : | C4: 83 | D4: : : | E4: 83 | F4: 00:55:24 | G4: 83 | H4: 01:29:24
A5: 37 | B5: 00:19:08 | C5: 8 | D5: 00:38:36 | E5: 37 | F5: 01:02:56 | G5: 37 | H5: 01:41:23
A6: 8 | B6: : : | C6: 37 | D6: 00:38:38 | E6: 8 | F6: 01:04:06 | G6: 8 | H6: 01:43:04
A7: 74 | B7: 00:19:14 | C7: 77 | D7: 00:39:12 | E7: 64 | F7: : : | G7: 77 | H7: 01:43:22
A8: 12 | B8: : : | C8: 64 | D8: : : | E8: 77 | F8: : : | H8: : :
A9: 61 | B9: : : | C9: 12 | D9: : : | E9: 12 | F9: : : | H9: : :
A10: 69 | B10: : : | C10: 61 | D10: : : | E10: 61 | F10: 01:04:32 | H10: : :
A11: 54 | B11: 00:19:45 | C11: 54 | D11: 00:40:29 | E11: 54 | F11: 01:06:44 | H11: : :
A12: 93 | B12: 00:19:58 | D12: : : | E12: 1 | F12: 01:07:50 | H12: : :
A13: 1 | B13: : : | D13: : : | F13: : : | H13: : :
A14: 35 | B14: 00:20:15 | D14: : : | F14: : : | H14: : :
A15: 48 | B15: : : | D15: : : | E15: 34 | F15: 09:30:00 | H15: : :
A16: 38 | B16: 00:21:14 | D16: : : | E16: 38 | F16: : : | H16: : :
A17: 34 | B17: 00:21:26 | D17: : : | F17: : : | H17: : :
A18: 30 | B18: 00:21:41 | D18: : : | F18: : : | H18: : :
A19: 18 | B19: : : | D19: : : | F19: : : | H19: : :
B20: : : | D20: : : | F20: : : | H20: : :
B21: : : | D21: : : | F21: : : | H21: : :
B22: : : | D22: : : | F22: : : | H22: : :
B23: : : | D23: : : | F23: : : | H23: : :
B24: : : | D24: : : | F24: : : | H24: : :
B25: : : | D25: : : | F25: : : | H25: : :
B26: : : | D26: : : | F26: : : | H26: : :
B27: : : | D27: : : | F27: : : | H27: : :
B28: : : | D28: : : | F28: : : | H28: : :
B29: : : | D29: : : | F29: : : | H29: : :
B30: : : | D30: : : | F30: : : | H30: : :

Sheet mezičasy 2015 (hidden)
A1: 5. km | C1: 10. km | E1: 16. km | G1: 25. km
A2: číslo | B2: čas | C2: číslo | D2: čas | E2: číslo | F2: čas | G2: číslo | H2: čas
A3: 107 | B3: 00:16:50 | C3: 107 | D3: 00:34:03 | E3: 107 | F3: 00:55:14 | G3: 107 | H3: 01:28:54
A4: 60 | B4: 00:18:11 | C4: 11 | D4: 00:36:39 | E4: 11 | F4: 00:59:32 | G4: 11 | H4: 01:34:32
A5: 22 | B5: 00:18:11 | C5: 60 | D5: 00:36:39 | E5: 60 | F5: 00:59:30 | G5: 60 | H5: 01:36:34
A6: 82 | B6: 00:18:11 | C6: 82 | D6: 00:37:05 | E6: 40 | F6: 01:00:10 | G6: 26 | H6: 01:36:52
A7: 11 | B7: 00:18:11 | C7: 40 | D7: 00:37:12 | E7: 82 | F7: 01:00:15 | G7: 40 | H7: 01:37:13
A8: 26 | B8: 00:18:11
A9: 40 | B9: 00:18:11
A11: 87 | B11: 00:20:50

Sheet Diplom MSM A5 (hidden)
D27: ='Výsledková listina'!E5&" "&'Výsledková listina'!F5 -> Kohut Jan
G30: ='Výsledková listina'!B5&"." -> 1.
D32: ='Výsledková listina'!C5 -> A
M33: ='Výsledková listina'!I5 -> 01:57:10
G36: 20. srpna 2016

Sheet Diplom MSM A5 (2) (hidden)
D27: ='Výsledková listina'!E6&" "&'Výsledková listina'!F6 -> Orálek Daniel
G30: ='Výsledková listina'!B6&"." -> 1.
D32: ='Výsledková listina'!C6 -> B
M33: ='Výsledková listina'!I6 -> 01:58:15
G36: 20. srpna 2016

Sheet Výsledková listina 2015 (hidden)
A1: ="Výsledková listina - Malý svratecký maraton "&'[2]Prezenční listina'!O2 -> Výsledková listina - Malý svratecký maraton 2015
A2: 2015-08-22 | K2: Poté, co jsou dopsány časy VŠECH běžců, stisknout tlačítko 1.řazení Ve sloupci B (Pořadí v kategorii) vytvořit posloupnou číselnou řadu pro každou kategorii a poté stisknout tlačítko 2.řazení !!! POZOR!!! Použití tlačítek je nevratný krok!
A3: ='[2]Prezenční listina'!O2-1953&". ročník" -> 62. ročník
A4: Celkové pořadí | B4: Pořadí v kategorii | C4: Kategorie | D4: Startovní číslo | E4: Příjmení | F4: Jméno | G4: Narození | H4: Oddíl / Bydliště | I4: Čas
A5: 1 | B5: 1 | C5: ='[2]Startovní listina'!G98 -> B | D5: ='[2]Startovní listina'!B98 -> 107 | E5: ='[2]Startovní listina'!C98 -> Orálek | F5: ='[2]Startovní listina'!D98 -> Daniel | G5: ='[2]Startovní listina'!E98 -> 1970 | H5: ='[2]Startovní listina'!F98 -> Moravská Slávia Brno | I5: 01:54:34
A6: =IF('Výsledková listina 2015'!D5<>"",A5+1,"") -> 2 | B6: 1 | C6: ='[2]Startovní listina'!G15 -> A | D6: ='[2]Startovní listina'!B15 -> 11 | E6: ='[2]Startovní listina'!C15 -> Fousek | F6: ='[2]Startovní listina'!D15 -> Jan | G6: ='[2]Startovní listina'!E15 -> 1991 | H6: ='[2]Startovní listina'!F15 -> MK Seitl Ostrava | I6: 02:01:16
A7: =IF('Výsledková listina 2015'!D6<>"",A6+1,"") -> 3 | B7: 2 | C7: ='[2]Startovní listina'!G27 -> A | D7: ='[2]Startovní listina'!B27 -> 26 | E7: ='[2]Startovní listina'!C27 -> Nováček | F7: ='[2]Startovní listina'!D27 -> Tomáš | G7: ='[2]Startovní listina'!E27 -> 1983 | H7: ='[2]Startovní listina'!F27 -> Atletic Třebíč | I7: 02:05:07
A8: =IF('Výsledková listina 2015'!D7<>"",A7+1,"") -> 4 | B8: 2 | C8: ='[2]Startovní listina'!G12 -> B | D8: ='[2]Startovní listina'!B12 -> 8 | E8: ='[2]Startovní listina'!C12 -> Škapa | F8: ='[2]Startovní listina'!D12 -> Marek | G8: ='[2]Startovní listina'!E12 -> 1971 | H8: ='[2]Startovní listina'!F12 -> MK Seitl Ostrava | I8: 02:05:40
A9: =IF('Výsledková listina 2015'!D8<>"",A8+1,"") -> 5 | B9: 3 | C9: ='[2]Startovní listina'!G9 -> B | D9: ='[2]Startovní listina'!B9 -> 5 | E9: ='[2]Startovní listina'!C9 -> Chramosta | F9: ='[2]Startovní listina'!D9 -> Jaroslav | G9: ='[2]Startovní listina'!E9 -> 1966 | H9: ='[2]Startovní listina'!F9 -> JABOJA Team Děčín | I9: 02:05:55
A10: =IF('Výsledková listina 2015'!D9<>"",A9+1,"") -> 6 | B10: 4 | C10: ='[2]Startovní listina'!G39 -> B | D10: ='[2]Startovní listina'!B39 -> 40 | E10: ='[2]Startovní listina'!C39 -> Ryška | F10: ='[2]Startovní listina'!D39 -> Vít | G10: ='[2]Startovní listina'!E39 -> 1975 | H10: ='[2]Startovní listina'!F39 -> VSK Univerzita Brno | I10: 02:07:35
A11: =IF('Výsledková listina 2015'!D10<>"",A10+1,"") -> 7 | B11: 3 | C11: ='[2]Startovní listina'!G58 -> A | D11: ='[2]Startovní listina'!B58 -> 60 | E11: ='[2]Startovní listina'!C58 -> Kupidlovský | F11: ='[2]Startovní listina'!D58 -> Daniel | G11: ='[2]Startovní listina'!E58 -> 1976 | H11: ='[2]Startovní listina'!F58 -> Stodůlky | I11: 02:07:54
A12: =IF('Výsledková listina 2015'!D11<>"",A11+1,"") -> 8 | B12: 5 | C12: ='[2]Startovní listina'!G24 -> B | D12: ='[2]Startovní listina'!B24 -> 22 | E12: ='[2]Startovní listina'!C24 -> Štýbnar | F12: ='[2]Startovní listina'!D24 -> Zbyněk | G12: ='[2]Startovní listina'!E24 -> 1974 | H12: ='[2]Startovní listina'!F24 -> Běžec Vysočiny Jihlava | I12: 02:08:44
A13: =IF('Výsledková listina 2015'!D12<>"",A12+1,"") -> 9 | B13: 6 | C13: ='[2]Startovní listina'!G40 -> B | D13: ='[2]Startovní listina'!B40 -> 41 | E13: ='[2]Startovní listina'!C40 -> Hýbl | F13: ='[2]Startovní listina'!D40 -> Jiří | G13: ='[2]Startovní listina'!E40 -> 1967 | H13: ='[2]Startovní listina'!F40 -> Hrušovany u Brna | I13: 02:10:10
A14: =IF('Výsledková listina 2015'!D13<>"",A13+1,"") -> 10 | B14: 4 | C14: ='[2]Startovní listina'!G74 -> A | D14: ='[2]Startovní listina'!B74 -> 82 | E14: ='[2]Startovní listina'!C74 -> Glier | F14: ='[2]Startovní listina'!D74 -> Michal | G14: ='[2]Startovní listina'!E74 -> 1982 | H14: ='[2]Startovní listina'!F74 -> Moravská Slávia Brno | I14: 02:11:00
A15: =IF('Výsledková listina 2015'!D14<>"",A14+1,"") -> 11 | B15: 7 | C15: ='[2]Startovní listina'!G49 -> B | D15: ='[2]Startovní listina'!B49 -> 50 | E15: ='[2]Startovní listina'!C49 -> Dušil | F15: ='[2]Startovní listina'!D49 -> Jaroslav | G15: ='[2]Startovní listina'!E49 -> 1970 | H15: ='[2]Startovní listina'!F49 -> Brno | I15: 02:13:13
A16: =IF('Výsledková listina 2015'!D15<>"",A15+1,"") -> 12 | B16: 1 | C16: ='[2]Startovní listina'!G79 -> F | D16: ='[2]Startovní listina'!B79 -> 87 | E16: ='[2]Startovní listina'!C79 -> Dýrová Macháčková | F16: ='[2]Startovní listina'!D79 -> Šárka | G16: ='[2]Startovní listina'!E79 -> 1983 | H16: ='[2]Startovní listina'!F79 -> Mizunoteam Brno | I16: 02:13:29
A17: =IF('Výsledková listina 2015'!D16<>"",A16+1,"") -> 13 | B17: 8 | C17: ='[2]Startovní listina'!G41 -> B | D17: ='[2]Startovní listina'!B41 -> 42 | E17: ='[2]Startovní listina'!C41 -> Horný | F17: ='[2]Startovní listina'!D41 -> Pavel | G17: ='[2]Startovní listina'!E41 -> 1973 | H17: ='[2]Startovní listina'!F41 -> VHT Přerov | I17: 02:16:46
A18: =IF('Výsledková listina 2015'!D17<>"",A17+1,"") -> 14 | B18: 1 | C18: ='[2]Startovní listina'!G29 -> C | D18: ='[2]Startovní listina'!B29 -> 28 | E18: ='[2]Startovní listina'!C29 -> Kratochvíl | F18: ='[2]Startovní listina'!D29 -> Pavel | G18: ='[2]Startovní listina'!E29 -> 1960 | H18: ='[2]Startovní listina'!F29 -> Atletic Třebíč | I18: 02:19:07
A19: =IF('Výsledková listina 2015'!D18<>"",A18+1,"") -> 15 | B19: 5 | C19: ='[2]Startovní listina'!G51 -> A | D19: ='[2]Startovní listina'!B51 -> 53 | E19: ='[2]Startovní listina'!C51 -> Očenášek | F19: ='[2]Startovní listina'!D51 -> Zdeněk | G19: ='[2]Startovní listina'!E51 -> 1976 | H19: ='[2]Startovní listina'!F51 -> Brno | I19: 02:19:36
A20: =IF('Výsledková listina 2015'!D19<>"",A19+1,"") -> 16 | B20: 9 | C20: ='[2]Startovní listina'!G47 -> B | D20: ='[2]Startovní listina'!B47 -> 48 | E20: ='[2]Startovní listina'!C47 -> Alman | F20: ='[2]Startovní listina'!D47 -> Dušan | G20: ='[2]Startovní listina'!E47 -> 1967 | H20: ='[2]Startovní listina'!F47 -> Babice | I20: 02:19:48
A21: =IF('Výsledková listina 2015'!D20<>"",A20+1,"") -> 17 | B21: 6 | C21: ='[2]Startovní listina'!G86 -> A | D21: ='[2]Startovní listina'!B86 -> 95 | E21: ='[2]Startovní listina'!C86 -> Kratochvíl | F21: ='[2]Startovní listina'!D86 -> Jaroslav | G21: ='[2]Startovní listina'!E86 -> 1977 | H21: ='[2]Startovní listina'!F86 -> SDH Hluboké | I21: 02:21:00
A22: =IF('Výsledková listina 2015'!D22<>"",A21+1,"") -> 18 | B22: 10 | C22: ='[2]Startovní listina'!G48 -> B | D22: ='[2]Startovní listina'!B48 -> 49 | E22: ='[2]Startovní listina'!C48 -> Plekanec | F22: ='[2]Startovní listina'!D48 -> Juraj | G22: ='[2]Startovní listina'!E48 -> 1974 | H22: ='[2]Startovní listina'!F48 -> Brno | I22: 02:21:35
A23: =IF('Výsledková listina 2015'!D21<>"",A22+1,"") -> 19 | B23: 2 | C23: ='[2]Startovní listina'!G50 -> F | D23: ='[2]Startovní listina'!B50 -> 51 | E23: ='[2]Startovní listina'!C50 -> Pešáková | F23: ='[2]Startovní listina'!D50 -> Mirka | G23: ='[2]Startovní listina'!E50 -> 1985 | H23: ='[2]Startovní listina'!F50 -> AK RACERS Tetčice | I23: 02:21:57
A24: =IF('Výsledková listina 2015'!D23<>"",A23+1,"") -> 20 | B24: 11 | C24: ='[2]Startovní listina'!G89 -> B | D24: ='[2]Startovní listina'!B89 -> 98 | E24: ='[2]Startovní listina'!C89 -> Konečný | F24: ='[2]Startovní listina'!D89 -> Libor | G24: ='[2]Startovní listina'!E89 -> 1971 | H24: ='[2]Startovní listina'!F89 -> Kuřim | I24: 02:23:07
A25: =IF('Výsledková listina 2015'!D24<>"",A24+1,"") -> 21 | B25: 2 | C25: ='[2]Startovní listina'!G59 -> C | D25: ='[2]Startovní listina'!B59 -> 61 | E25: ='[2]Startovní listina'!C59 -> Bezrouk | F25: ='[2]Startovní listina'!D59 -> Jiří | G25: ='[2]Startovní listina'!E59 -> 1962 | H25: ='[2]Startovní listina'!F59 -> Křtiny | I25: 02:23:11
A26: =IF('Výsledková listina 2015'!D25<>"",A25+1,"") -> 22 | B26: 7 | C26: ='[2]Startovní listina'!G56 -> A | D26: ='[2]Startovní listina'!B56 -> 58 | E26: ='[2]Startovní listina'!C56 -> Řezníček | F26: ='[2]Startovní listina'!D56 -> Roman | G26: ='[2]Startovní listina'!E56 -> 1977 | H26: ='[2]Startovní listina'!F56 -> Žďár nad Sázavou | I26: 02:24:19
A27: =IF('Výsledková listina 2015'!D26<>"",A26+1,"") -> 23 | B27: 8 | C27: ='[2]Startovní listina'!G22 -> A | D27: ='[2]Startovní listina'!B22 -> 19 | E27: ='[2]Startovní listina'!C22 -> Pokorný | F27: ='[2]Startovní listina'!D22 -> Václav | G27: ='[2]Startovní listina'!E22 -> 1978 | H27: ='[2]Startovní listina'!F22 -> Brno | I27: 02:25:09
A28: =IF('Výsledková listina 2015'!D27<>"",A27+1,"") -> 24 | B28: 9 | C28: ='[2]Startovní listina'!G28 -> A | D28: ='[2]Startovní listina'!B28 -> 27 | E28: ='[2]Startovní listina'!C28 -> Bohuslav | F28: ='[2]Startovní listina'!D28 -> Martin | G28: ='[2]Startovní listina'!E28 -> 1987 | H28: ='[2]Startovní listina'!F28 -> Atletic Třebíč | I28: 02:26:07
A29: =IF('Výsledková listina 2015'!D28<>"",A28+1,"") -> 25 | B29: 10 | C29: ='[2]Startovní listina'!G38 -> A | D29: ='[2]Startovní listina'!B38 -> 38 | E29: ='[2]Startovní listina'!C38 -> Kocur | F29: ='[2]Startovní listina'!D38 -> Lukáš | G29: ='[2]Startovní listina'!E38 -> 1977 | H29: ='[2]Startovní listina'!F38 -> VHS Brno | I29: 02:26:38
A30: =IF('Výsledková listina 2015'!D29<>"",A29+1,"") -> 26 | B30: 11 | C30: ='[2]Startovní listina'!G61 -> A | D30: ='[2]Startovní listina'!B61 -> 63 | E30: ='[2]Startovní listina'!C61 -> Sedláček | F30: ='[2]Startovní listina'!D61 -> Aleš | G30: ='[2]Startovní listina'!E61 -> 1976 | H30: ='[2]Startovní listina'!F61 -> Sokol Přísnotice | I30: 02:27:55
A31: =IF('Výsledková listina 2015'!D30<>"",A30+1,"") -> 27 | B31: 12 | C31: ='[2]Startovní listina'!G84 -> B | D31: ='[2]Startovní listina'!B84 -> 93 | E31: ='[2]Startovní listina'!C84 -> Havlíček | F31: ='[2]Startovní listina'!D84 -> Ivo | G31: ='[2]Startovní listina'!E84 -> 1966 | H31: ='[2]Startovní listina'!F84 -> Lánov - Krkonoše | I31: 02:28:22
A32: =IF('Výsledková listina 2015'!D31<>"",A31+1,"") -> 28 | B32: 13 | C32: ='[2]Startovní listina'!G87 -> B | D32: ='[2]Startovní listina'!B87 -> 96 | E32: ='[2]Startovní listina'!C87 -> Hladký | F32: ='[2]Startovní listina'!D87 -> Jiří | G32: ='[2]Startovní listina'!E87 -> 1975 | H32: ='[2]Startovní listina'!F87 -> Brno - Nový Lískovec | I32: 02:29:21
A33: =IF('Výsledková listina 2015'!D32<>"",A32+1,"") -> 29 | B33: 14 | C33: ='[2]Startovní listina'!G91 -> B | D33: ='[2]Startovní listina'!B91 -> 100 | E33: ='[2]Startovní listina'!C91 -> Fučík | F33: ='[2]Startovní listina'!D91 -> Jaroslav | G33: ='[2]Startovní listina'!E91 -> 1974 | H33: ='[2]Startovní listina'!F91 -> Prosetín | I33: 02:30:31
A34: =IF('Výsledková listina 2015'!D33<>"",A33+1,"") -> 30 | B34: 15 | C34: ='[2]Startovní listina'!G83 -> B | D34: ='[2]Startovní listina'!B83 -> 92 | E34: ='[2]Startovní listina'!C83 -> Řezníček | F34: ='[2]Startovní listina'!D83 -> Petr | G34: ='[2]Startovní listina'!E83 -> 1973 | H34: ='[2]Startovní listina'!F83 -> Polnička | I34: 02:31:15
A35: =IF('Výsledková listina 2015'!D34<>"",A34+1,"") -> 31 | B35: 1 | C35: ='[2]Startovní listina'!G35 -> H | D35: ='[2]Startovní listina'!B35 -> 35 | E35: ='[2]Startovní listina'!C35 -> Krátká | F35: ='[2]Startovní listina'!D35 -> Anna | G35: ='[2]Startovní listina'!E35 -> 1969 | H35: ='[2]Startovní listina'!F35 -> Hvězda SKP Pardubice | I35: 02:31:40
A36: =IF('Výsledková listina 2015'!D35<>"",A35+1,"") -> 32 | B36: 16 | C36: ='[2]Startovní listina'!G37 -> B | D36: ='[2]Startovní listina'!B37 -> 37 | E36: ='[2]Startovní listina'!C37 -> Kropáček | F36: ='[2]Startovní listina'!D37 -> Jaroslav | G36: ='[2]Startovní listina'!E37 -> 1970 | H36: ='[2]Startovní listina'!F37 -> Brno | I36: 02:32:28
A37: =IF('Výsledková listina 2015'!D36<>"",A36+1,"") -> 33 | B37: 3 | C37: ='[2]Startovní listina'!G14 -> C | D37: ='[2]Startovní listina'!B14 -> 10 | E37: ='[2]Startovní listina'!C14 -> Dvorský | F37: ='[2]Startovní listina'!D14 -> Ladislav | G37: ='[2]Startovní listina'!E14 -> 1965 | H37: ='[2]Startovní listina'!F14 -> MK Seitl Ostrava | I37: 02:32:37
A38: =IF('Výsledková listina 2015'!D37<>"",A37+1,"") -> 34 | B38: 4 | C38: ='[2]Startovní listina'!G43 -> C | D38: ='[2]Startovní listina'!B43 -> 44 | E38: ='[2]Startovní listina'!C43 -> Suchý | F38: ='[2]Startovní listina'!D43 -> Karel | G38: ='[2]Startovní listina'!E43 -> 1956 | H38: ='[2]Startovní listina'!F43 -> Atletic Třebíč | I38: 02:32:49
A39: =IF('Výsledková listina 2015'!D38<>"",A38+1,"") -> 35 | B39: 12 | C39: ='[2]Startovní listina'!G67 -> A | D39: ='[2]Startovní listina'!B67 -> 73 | E39: ='[2]Startovní listina'!C67 -> Brabenec | F39: ='[2]Startovní listina'!D67 -> Aleš | G39: ='[2]Startovní listina'!E67 -> 1987 | H39: ='[2]Startovní listina'!F67 -> Žďár nad Sázavou | I39: 02:34:42
A40: =IF('Výsledková listina 2015'!D39<>"",A39+1,"") -> 36 | B40: 5 | C40: ='[2]Startovní listina'!G95 -> C | D40: ='[2]Startovní listina'!B95 -> 104 | E40: ='[2]Startovní listina'!C95 -> Sedláček | F40: ='[2]Startovní listina'!D95 -> Svatopluk | G40: ='[2]Startovní listina'!E95 -> 1957 | H40: ='[2]Startovní listina'!F95 -> Moravská Slávia Brno | I40: 02:34:44
A41: =IF('Výsledková listina 2015'!D40<>"",A40+1,"") -> 37 | B41: 3 | C41: ='[2]Startovní listina'!G54 -> F | D41: ='[2]Startovní listina'!B54 -> 56 | E41: ='[2]Startovní listina'!C54 -> Johaníková | F41: ='[2]Startovní listina'!D54 -> Lucie | G41: ='[2]Startovní listina'!E54 -> 1986 | H41: ='[2]Startovní listina'!F54 -> Moravská Slávia Brno | I41: 02:37:38
A42: =IF('Výsledková listina 2015'!D41<>"",A41+1,"") -> 38 | B42: 17 | C42: ='[2]Startovní listina'!G30 -> B | D42: ='[2]Startovní listina'!B30 -> 29 | E42: ='[2]Startovní listina'!C30 -> Provazník | F42: ='[2]Startovní listina'!D30 -> Milan | G42: ='[2]Startovní listina'!E30 -> 1966 | H42: ='[2]Startovní listina'!F30 -> Polička | I42: 02:37:53
A43: =IF('Výsledková listina 2015'!D42<>"",A42+1,"") -> 39 | B43: 13 | C43: ='[2]Startovní listina'!G31 -> A | D43: ='[2]Startovní listina'!B31 -> 30 | E43: ='[2]Startovní listina'!C31 -> Mikeš | F43: ='[2]Startovní listina'!D31 -> Petr | G43: ='[2]Startovní listina'!E31 -> 1977 | H43: ='[2]Startovní listina'!F31 -> Vyškovec | I43: 02:38:44
A44: =IF('Výsledková listina 2015'!D43<>"",A43+1,"") -> 40 | B44: 6 | C44: ='[2]Startovní listina'!G60 -> C | D44: ='[2]Startovní listina'!B60 -> 62 | E44: ='[2]Startovní listina'!C60 -> Čuhel | F44: ='[2]Startovní listina'!D60 -> Jiří | G44: ='[2]Startovní listina'!E60 -> 1958 | H44: ='[2]Startovní listina'!F60 -> Křtěnov | I44: 02:38:54
A45: =IF('Výsledková listina 2015'!D44<>"",A44+1,"") -> 41 | B45: 14 | C45: ='[2]Startovní listina'!G63 -> A | D45: ='[2]Startovní listina'!B63 -> 67 | E45: ='[2]Startovní listina'!C63 -> Dubský | F45: ='[2]Startovní listina'!D63 -> Roman | G45: ='[2]Startovní listina'!E63 -> 1978 | H45: ='[2]Startovní listina'!F63 -> SK Přibyslav | I45: 02:39:15
A46: =IF('Výsledková listina 2015'!D45<>"",A45+1,"") -> 42 | B46: 1 | C46: ='[2]Startovní listina'!G13 -> D | D46: ='[2]Startovní listina'!B13 -> 9 | E46: ='[2]Startovní listina'!C13 -> Výtisk | F46: ='[2]Startovní listina'!D13 -> Alfons | G46: ='[2]Startovní listina'!E13 -> 1949 | H46: ='[2]Startovní listina'!F13 -> MK Seitl Ostrava | I46: 02:40:16
A47: =IF('Výsledková listina 2015'!D46<>"",A46+1,"") -> 43 | B47: 15 | C47: ='[2]Startovní listina'!G6 -> A | D47: ='[2]Startovní listina'!B6 -> 2 | E47: ='[2]Startovní listina'!C6 -> Pivec | F47: ='[2]Startovní listina'!D6 -> Jan | G47: ='[2]Startovní listina'!E6 -> 1981 | H47: ='[2]Startovní listina'!F6 -> HAL 3000 Brno | I47: 02:40:25
A48: =IF('Výsledková listina 2015'!D47<>"",A47+1,"") -> 44 | B48: 7 | C48: ='[2]Startovní listina'!G55 -> C | D48: ='[2]Startovní listina'!B55 -> 57 | E48: ='[2]Startovní listina'!C55 -> Češner | F48: ='[2]Startovní listina'!D55 -> Vladimír | G48: ='[2]Startovní listina'!E55 -> 1958 | H48: ='[2]Startovní listina'!F55 -> Odolena Voda | I48: 02:40:36
A49: =IF('Výsledková listina 2015'!D48<>"",A48+1,"") -> 45 | B49: 18 | C49: ='[2]Startovní listina'!G62 -> B | D49: ='[2]Startovní listina'!B62 -> 64 | E49: ='[2]Startovní listina'!C62 -> Cechmaister | F49: ='[2]Startovní listina'!D62 -> Bohumil | G49: ='[2]Startovní listina'!E62 -> 1974 | H49: ='[2]Startovní listina'!F62 -> Sokol Přísnotice | I49: 02:42:35
A50: =IF('Výsledková listina 2015'!D49<>"",A49+1,"") -> 46 | B50: 16 | C50: ='[2]Startovní listina'!G57 -> A | D50: ='[2]Startovní listina'!B57 -> 59 | E50: ='[2]Startovní listina'!C57 -> Hübner | F50: ='[2]Startovní listina'!D57 -> Jan | G50: ='[2]Startovní listina'!E57 -> 1978 | H50: ='[2]Startovní listina'!F57 -> SDH Bolešín | I50: 02:42:39
A51: =IF('Výsledková listina 2015'!D50<>"",A50+1,"") -> 47 | B51: 8 | C51: ='[2]Startovní listina'!G68 -> C | D51: ='[2]Startovní listina'!B68 -> 74 | E51: ='[2]Startovní listina'!C68 -> Brabenec | F51: ='[2]Startovní listina'!D68 -> Miroslav | G51: ='[2]Startovní listina'!E68 -> 1959 | H51: ='[2]Startovní listina'!F68 -> Žďár nad Sázavou | I51: 02:42:43
A52: =IF('Výsledková listina 2015'!D51<>"",A51+1,"") -> 48 | B52: 17 | C52: ='[2]Startovní listina'!G20 -> A | D52: ='[2]Startovní listina'!B20 -> 17 | E52: ='[2]Startovní listina'!C20 -> Kameníček | F52: ='[2]Startovní listina'!D20 -> Michal | G52: ='[2]Startovní listina'!E20 -> 1986 | H52: ='[2]Startovní listina'!F20 -> Vinařice | I52: 02:43:21
A53: =IF('Výsledková listina 2015'!D52<>"",A52+1,"") -> 49 | B53: 2 | C53: ='[2]Startovní listina'!G80 -> D | D53: ='[2]Startovní listina'!B80 -> 89 | E53: ='[2]Startovní listina'!C80 -> Kohoutek | F53: ='[2]Startovní listina'!D80 -> Jaromír | G53: ='[2]Startovní listina'!E80 -> 1955 | H53: ='[2]Startovní listina'!F80 -> Brno | I53: 02:45:32
A54: =IF('Výsledková listina 2015'!D53<>"",A53+1,"") -> 50 | B54: 1 | C54: ='[2]Startovní listina'!G11 -> G | D54: ='[2]Startovní listina'!B11 -> 7 | E54: ='[2]Startovní listina'!C11 -> Komárková | F54: ='[2]Startovní listina'!D11 -> Zdeňka | G54: ='[2]Startovní listina'!E11 -> 1974 | H54: ='[2]Startovní listina'!F11 -> SDH Bolešín | I54: 02:45:37
A55: =IF('Výsledková listina 2015'!D54<>"",A54+1,"") -> 51 | B55: 18 | C55: ='[2]Startovní listina'!G53 -> A | D55: ='[2]Startovní listina'!B53 -> 55 | E55: ='[2]Startovní listina'!C53 -> Kolman | F55: ='[2]Startovní listina'!D53 -> Jakub | G55: ='[2]Startovní listina'!E53 -> 1976 | H55: ='[2]Startovní listina'!F53 -> Posilovna Průvan | I55: 02:46:25
A56: =IF('Výsledková listina 2015'!D55<>"",A55+1,"") -> 52 | B56: 19 | C56: ='[2]Startovní listina'!G66 -> A | D56: ='[2]Startovní listina'!B66 -> 72 | E56: ='[2]Startovní listina'!C66 -> Mička | F56: ='[2]Startovní listina'!D66 -> Michal | G56: ='[2]Startovní listina'!E66 -> 1987 | H56: ='[2]Startovní listina'!F66 -> Žďár nad Sázavou | I56: 02:46:48
A57: =IF('Výsledková listina 2015'!D56<>"",A56+1,"") -> 53 | B57: 9 | C57: ='[2]Startovní listina'!G71 -> C | D57: ='[2]Startovní listina'!B71 -> 77 | E57: ='[2]Startovní listina'!C71 -> Barták | F57: ='[2]Startovní listina'!D71 -> Roland | G57: ='[2]Startovní listina'!E71 -> 1965 | H57: ='[2]Startovní listina'!F71 -> Kuřim | I57: 02:47:00
A58: =IF('Výsledková listina 2015'!D57<>"",A57+1,"") -> 54 | B58: 20 | C58: ='[2]Startovní listina'!G78 -> A | D58: ='[2]Startovní listina'!B78 -> 86 | E58: ='[2]Startovní listina'!C78 -> Kosmák | F58: ='[2]Startovní listina'!D78 -> Václav | G58: ='[2]Startovní listina'!E78 -> 1983 | H58: ='[2]Startovní listina'!F78 -> Brno | I58: 02:49:04
A59: =IF('Výsledková listina 2015'!D58<>"",A58+1,"") -> 55 | B59: 19 | C59: ='[2]Startovní listina'!G42 -> B | D59: ='[2]Startovní listina'!B42 -> 43 | E59: ='[2]Startovní listina'!C42 -> Dvořák | F59: ='[2]Startovní listina'!D42 -> Vojtěch | G59: ='[2]Startovní listina'!E42 -> 1974 | H59: ='[2]Startovní listina'!F42 -> Brno | I59: 02:49:46
A60: =IF('Výsledková listina 2015'!D59<>"",A59+1,"") -> 56 | B60: 3 | C60: ='[2]Startovní listina'!G46 -> D | D60: ='[2]Startovní listina'!B46 -> 47 | E60: ='[2]Startovní listina'!C46 -> Boháč | F60: ='[2]Startovní listina'!D46 -> Jiří | G60: ='[2]Startovní listina'!E46 -> 1954 | H60: ='[2]Startovní listina'!F46 -> Běhej Brno com | I60: 02:50:33
A61: =IF('Výsledková listina 2015'!D60<>"",A60+1,"") -> 57 | B61: 21 | C61: ='[2]Startovní listina'!G82 -> A | D61: ='[2]Startovní listina'!B82 -> 91 | E61: ='[2]Startovní listina'!C82 -> Poneš | F61: ='[2]Startovní listina'!D82 -> Pavel | G61: ='[2]Startovní listina'!E82 -> 1978 | H61: ='[2]Startovní listina'!F82 -> TK SOKOLI Brno | I61: 02:50:59
A62: =IF('Výsledková listina 2015'!D61<>"",A61+1,"") -> 58 | B62: 2 | C62: ='[2]Startovní listina'!G88 -> G | D62: ='[2]Startovní listina'!B88 -> 97 | E62: ='[2]Startovní listina'!C88 -> Tonarová | F62: ='[2]Startovní listina'!D88 -> Miroslava | G62: ='[2]Startovní listina'!E88 -> 1976 | H62: ='[2]Startovní listina'!F88 -> Bory | I62: 02:53:55
A63: =IF('Výsledková listina 2015'!D62<>"",A62+1,"") -> 59 | B63: 22 | C63: ='[2]Startovní listina'!G90 -> A | D63: ='[2]Startovní listina'!B90 -> 99 | E63: ='[2]Startovní listina'!C90 -> Vacula | F63: ='[2]Startovní listina'!D90 -> Ondřej | G63: ='[2]Startovní listina'!E90 -> 1981 | H63: ='[2]Startovní listina'!F90 -> AC Lelek Lelekovice | I63: 02:55:52
A64: =IF('Výsledková listina 2015'!D63<>"",A63+1,"") -> 60 | B64: 10 | C64: ='[2]Startovní listina'!G70 -> C | D64: ='[2]Startovní listina'!B70 -> 76 | E64: ='[2]Startovní listina'!C70 -> Novotný | F64: ='[2]Startovní listina'!D70 -> Petr | G64: ='[2]Startovní listina'!E70 -> 1965 | H64: ='[2]Startovní listina'!F70 -> Kuřim | I64: 02:57:35
A65: =IF('Výsledková listina 2015'!D64<>"",A64+1,"") -> 61 | B65: 20 | C65: ='[2]Startovní listina'!G65 -> B | D65: ='[2]Startovní listina'!B65 -> 70 | E65: ='[2]Startovní listina'!C65 -> Strakoš | F65: ='[2]Startovní listina'!D65 -> Vilém | G65: ='[2]Startovní listina'!E65 -> 1969 | H65: ='[2]Startovní listina'!F65 -> SK Fuga Kuřim | I65: 02:58:55
A66: =IF('Výsledková listina 2015'!D65<>"",A65+1,"") -> 62 | B66: 23 | C66: ='[2]Startovní listina'!G32 -> A | D66: ='[2]Startovní listina'!B32 -> 31 | E66: ='[2]Startovní listina'!C32 -> Kryštof | F66: ='[2]Startovní listina'!D32 -> Ondřej | G66: ='[2]Startovní listina'!E32 -> 1976 | H66: ='[2]Startovní listina'!F32 -> Jiskra Vír | I66: 02:59:30
A67: =IF('Výsledková listina 2015'!D66<>"",A66+1,"") -> 63 | B67: 11 | C67: ='[2]Startovní listina'!G10 -> C | D67: ='[2]Startovní listina'!B10 -> 6 | E67: ='[2]Startovní listina'!C10 -> Zourek | F67: ='[2]Startovní listina'!D10 -> Karel | G67: ='[2]Startovní listina'!E10 -> 1959 | H67: ='[2]Startovní listina'!F10 -> Brno | I67: 03:00:21
A68: =IF('Výsledková listina 2015'!D67<>"",A67+1,"") -> 64 | B68: 12 | C68: ='[2]Startovní listina'!G34 -> C | D68: ='[2]Startovní listina'!B34 -> 34 | E68: ='[2]Startovní listina'!C34 -> Navrátil | F68: ='[2]Startovní listina'!D34 -> Petr | G68: ='[2]Startovní listina'!E34 -> 1963 | H68: ='[2]Startovní listina'!F34 -> Rožná | I68: 03:00:59
A69: =IF('Výsledková listina 2015'!D68<>"",A68+1,"") -> 65 | B69: 2 | C69: ='[2]Startovní listina'!G19 -> H | D69: ='[2]Startovní listina'!B19 -> 16 | E69: ='[2]Startovní listina'!C19 -> Kameníčková | F69: ='[2]Startovní listina'!D19 -> Veronika | G69: ='[2]Startovní listina'!E19 -> 1966 | H69: ='[2]Startovní listina'!F19 -> Vinařice | I69: 03:01:04
A70: =IF('Výsledková listina 2015'!D69<>"",A69+1,"") -> 66 | B70: 4 | C70: ='[2]Startovní listina'!G73 -> D | D70: ='[2]Startovní listina'!B73 -> 80 | E70: ='[2]Startovní listina'!C73 -> Nekuža | F70: ='[2]Startovní listina'!D73 -> Jiří | G70: ='[2]Startovní listina'!E73 -> 1951 | H70: ='[2]Startovní listina'!F73 -> RUNNERS Zbýšov | I70: 03:01:32
A71: =IF('Výsledková listina 2015'!D70<>"",A70+1,"") -> 67 | B71: 21 | C71: ='[2]Startovní listina'!G75 -> B | D71: ='[2]Startovní listina'!B75 -> 83 | E71: ='[2]Startovní listina'!C75 -> Holoubek | F71: ='[2]Startovní listina'!D75 -> Jindřich | G71: ='[2]Startovní listina'!E75 -> 1968 | H71: ='[2]Startovní listina'!F75 -> Brno | I71: 03:01:37
A72: =IF('Výsledková listina 2015'!D71<>"",A71+1,"") -> 68 | B72: 13 | C72: ='[2]Startovní listina'!G5 -> C | D72: ='[2]Startovní listina'!B5 -> 1 | E72: ='[2]Startovní listina'!C5 -> Bečička | F72: ='[2]Startovní listina'!D5 -> Petr | G72: ='[2]Startovní listina'!E5 -> 1960 | H72: ='[2]Startovní listina'!F5 -> HAL 3000 Brno | I72: 03:02:17
A73: =IF('Výsledková listina 2015'!D72<>"",A72+1,"") -> 69 | B73: 4 | C73: ='[2]Startovní listina'!G25 -> F | D73: ='[2]Startovní listina'!B25 -> 23 | E73: ='[2]Startovní listina'!C25 -> Vašalovská | F73: ='[2]Startovní listina'!D25 -> Petra | G73: ='[2]Startovní listina'!E25 -> 1986 | H73: ='[2]Startovní listina'!F25 -> Atletic Třebíč | I73: 03:04:10
A74: =IF('Výsledková listina 2015'!D73<>"",A73+1,"") -> 70 | B74: 24 | C74: ='[2]Startovní listina'!G92 -> A | D74: ='[2]Startovní listina'!B92 -> 101 | E74: ='[2]Startovní listina'!C92 -> Milka | F74: ='[2]Startovní listina'!D92 -> Zdeněk | G74: ='[2]Startovní listina'!E92 -> 1984 | H74: ='[2]Startovní listina'!F92 -> Brno | I74: 03:04:27
A75: =IF('Výsledková listina 2015'!D74<>"",A74+1,"") -> 71 | B75: 14 | C75: ='[2]Startovní listina'!G17 -> C | D75: ='[2]Startovní listina'!B17 -> 13 | E75: ='[2]Startovní listina'!C17 -> Kresta | F75: ='[2]Startovní listina'!D17 -> Roman | G75: ='[2]Startovní listina'!E17 -> 1965 | H75: ='[2]Startovní listina'!F17 -> Brno | I75: 03:06:22
A76: =IF('Výsledková listina 2015'!D75<>"",A75+1,"") -> 72 | B76: 3 | C76: ='[2]Startovní listina'!G26 -> H | D76: ='[2]Startovní listina'!B26 -> 24 | E76: ='[2]Startovní listina'!C26 -> Mahelová | F76: ='[2]Startovní listina'!D26 -> Jitka | G76: ='[2]Startovní listina'!E26 -> 1962 | H76: ='[2]Startovní listina'!F26 -> Atletic Třebíč | I76: 03:06:38
A77: =IF('Výsledková listina 2015'!D76<>"",A76+1,"") -> 73 | B77: 5 | C77: ='[2]Startovní listina'!G7 -> F | D77: ='[2]Startovní listina'!B7 -> 3 | E77: ='[2]Startovní listina'!C7 -> Dostálová | F77: ='[2]Startovní listina'!D7 -> Vendula | G77: ='[2]Startovní listina'!E7 -> 1981 | H77: ='[2]Startovní listina'!F7 -> HAL 3000 Brno | I77: 03:07:50
A78: =IF('Výsledková listina 2015'!D77<>"",A77+1,"") -> 74 | B78: 25 | C78: ='[2]Startovní listina'!G44 -> A | D78: ='[2]Startovní listina'!B44 -> 45 | E78: ='[2]Startovní listina'!C44 -> Hakl | F78: ='[2]Startovní listina'!D44 -> Martin | G78: ='[2]Startovní listina'!E44 -> 1987 | H78: ='[2]Startovní listina'!F44 -> Running with Those that Carit | I78: 03:10:37
A79: =IF('Výsledková listina 2015'!D78<>"",A78+1,"") -> 75 | B79: 26 | C79: ='[2]Startovní listina'!G96 -> A | D79: ='[2]Startovní listina'!B96 -> 105 | E79: ='[2]Startovní listina'!C96 -> Procházka | F79: ='[2]Startovní listina'!D96 -> Pavel | G79: ='[2]Startovní listina'!E96 -> 1988 | H79: ='[2]Startovní listina'!F96 -> Bystřice nad Pernštejnem | I79: 03:12:26
A80: =IF('Výsledková listina 2015'!D79<>"",A79+1,"") -> 76 | B80: 22 | C80: ='[2]Startovní listina'!G94 -> B | D80: ='[2]Startovní listina'!B94 -> 103 | E80: ='[2]Startovní listina'!C94 -> Junga | F80: ='[2]Startovní listina'!D94 -> Stanislav | G80: ='[2]Startovní listina'!E94 -> 1971 | H80: ='[2]Startovní listina'!F94 -> Újezd u Brna | I80: 03:13:50
A81: =IF('Výsledková listina 2015'!D80<>"",A80+1,"") -> 77 | B81: 5 | C81: ='[2]Startovní listina'!G52 -> D | D81: ='[2]Startovní listina'!B52 -> 54 | E81: ='[2]Startovní listina'!C52 -> Mareš | F81: ='[2]Startovní listina'!D52 -> Bohumil | G81: ='[2]Startovní listina'!E52 -> 1951 | H81: ='[2]Startovní listina'!F52 -> LEAR Brno | I81: 03:14:48
A82: =IF('Výsledková listina 2015'!D81<>"",A81+1,"") -> 78 | B82: 4 | C82: ='[2]Startovní listina'!G97 -> H | D82: ='[2]Startovní listina'!B97 -> 106 | E82: ='[2]Startovní listina'!C97 -> Podmelová | F82: ='[2]Startovní listina'!D97 -> Vilma | G82: ='[2]Startovní listina'!E97 -> 1962 | H82: ='[2]Startovní listina'!F97 -> Moravská Slávia Brno | I82: 03:14:54
A83: =IF('Výsledková listina 2015'!D82<>"",A82+1,"") -> 79 | B83: 6 | C83: ='[2]Startovní listina'!G64 -> F | D83: ='[2]Startovní listina'!B64 -> 69 | E83: ='[2]Startovní listina'!C64 -> Rokosová | F83: ='[2]Startovní listina'!D64 -> Ivana | G83: ='[2]Startovní listina'!E64 -> 1982 | H83: ='[2]Startovní listina'!F64 -> Polička | I83: 03:18:47
A84: =IF('Výsledková listina 2015'!D83<>"",A83+1,"") -> 80 | B84: 15 | C84: ='[2]Startovní listina'!G76 -> C | D84: ='[2]Startovní listina'!B76 -> 84 | E84: ='[2]Startovní listina'!C76 -> Šilhan | F84: ='[2]Startovní listina'!D76 -> Vladimír | G84: ='[2]Startovní listina'!E76 -> 1957 | H84: ='[2]Startovní listina'!F76 -> Original Ježek Babice nad Svitavou | I84: 03:18:56
A85: =IF('Výsledková listina 2015'!D84<>"",A84+1,"") -> 81 | B85: 23 | C85: ='[2]Startovní listina'!G45 -> B | D85: ='[2]Startovní listina'!B45 -> 46 | E85: ='[2]Startovní listina'!C45 -> Münster | F85: ='[2]Startovní listina'!D45 -> Libor | G85: ='[2]Startovní listina'!E45 -> 1966 | H85: ='[2]Startovní listina'!F45 -> Blansko | I85: 03:21:11
A86: =IF('Výsledková listina 2015'!D85<>"",A85+1,"") -> 82 | B86: 3 | C86: ='[2]Startovní listina'!G81 -> G | D86: ='[2]Startovní listina'!B81 -> 90 | E86: ='[2]Startovní listina'!C81 -> Ježová | F86: ='[2]Startovní listina'!D81 -> Martina | G86: ='[2]Startovní listina'!E81 -> 1975 | H86: ='[2]Startovní listina'!F81 -> Brno | I86: 03:24:59
A87: =IF('Výsledková listina 2015'!D86<>"",A86+1,"") -> 83 | B87: 24 | C87: ='[2]Startovní listina'!G85 -> B | D87: ='[2]Startovní listina'!B85 -> 94 | E87: ='[2]Startovní listina'!C85 -> Benc | F87: ='[2]Startovní listina'!D85 -> Karel | G87: ='[2]Startovní listina'!E85 -> 1975 | H87: ='[2]Startovní listina'!F85 -> Pivonice | I87: 03:28:11
A88: =IF('Výsledková listina 2015'!D87<>"",A87+1,"") -> 84 | B88: 7 | C88: ='[2]Startovní listina'!G8 -> F | D88: ='[2]Startovní listina'!B8 -> 4 | E88: ='[2]Startovní listina'!C8 -> Navrátilová | F88: ='[2]Startovní listina'!D8 -> Vlasta | G88: ='[2]Startovní listina'!E8 -> 1983 | H88: ='[2]Startovní listina'!F8 -> Vír | I88: 03:30:08
A89: =IF('Výsledková listina 2015'!D88<>"",A88+1,"") -> 85 | B89: 25 | C89: ='[2]Startovní listina'!G93 -> B | D89: ='[2]Startovní listina'!B93 -> 102 | E89: ='[2]Startovní listina'!C93 -> Konečný | F89: ='[2]Startovní listina'!D93 -> Jaroslav | G89: ='[2]Startovní listina'!E93 -> 1969 | H89: ='[2]Startovní listina'!F93 -> Popůvky | I89: 03:31:45
A90: =IF('Výsledková listina 2015'!D89<>"",A89+1,"") -> 86 | B90: 5 | C90: ='[2]Startovní listina'!G16 -> H | D90: ='[2]Startovní listina'!B16 -> 12 | E90: ='[2]Startovní listina'!C16 -> Tesařová | F90: ='[2]Startovní listina'!D16 -> Marie | G90: ='[2]Startovní listina'!E16 -> 1954 | H90: ='[2]Startovní listina'!F16 -> Křižanov | I90: 03:32:08
A91: =IF('Výsledková listina 2015'!D90<>"",A90+1,"") -> 87 | B91: 8 | C91: ='[2]Startovní listina'!G21 -> F | D91: ='[2]Startovní listina'!B21 -> 18 | E91: ='[2]Startovní listina'!C21 -> Peštuková | F91: ='[2]Startovní listina'!D21 -> Ivana | G91: ='[2]Startovní listina'!E21 -> 1990 | H91: ='[2]Startovní listina'!F21 -> Vinařice | I91: 03:32:23
A92: =IF('Výsledková listina 2015'!D91<>"",A91+1,"") -> 88 | B92: 26 | C92: ='[2]Startovní listina'!G77 -> B | D92: ='[2]Startovní listina'!B77 -> 85 | E92: ='[2]Startovní listina'!C77 -> Jaskulka | F92: ='[2]Startovní listina'!D77 -> Martin | G92: ='[2]Startovní listina'!E77 -> 1968 | H92: ='[2]Startovní listina'!F77 -> Kuřim | I92: 03:37:46
A93: =IF('Výsledková listina 2015'!D92<>"",A92+1,"") -> 89 | B93: 1 | C93: ='[2]Startovní listina'!G18 -> E | D93: ='[2]Startovní listina'!B18 -> 14 | E93: ='[2]Startovní listina'!C18 -> Holý | F93: ='[2]Startovní listina'!D18 -> Josef | G93: ='[2]Startovní listina'!E18 -> 1941 | H93: ='[2]Startovní listina'!F18 -> Moravská Slávia Brno | I93: 03:42:45
A94: =IF('Výsledková listina 2015'!D93<>"",A93+1,"") -> 90 | B94: 6 | C94: ='[2]Startovní listina'!G33 -> H | D94: ='[2]Startovní listina'!B33 -> 33 | E94: ='[2]Startovní listina'!C33 -> Šedová | F94: ='[2]Startovní listina'!D33 -> Věra | G94: ='[2]Startovní listina'!E33 -> 1964 | H94: ='[2]Startovní listina'!F33 -> Atletic Třebíč | I94: 03:44:49
A95: =IF('Výsledková listina 2015'!D94<>"",A94+1,"") -> 91 | B95: 16 | C95: ='[2]Startovní listina'!G36 -> C | D95: ='[2]Startovní listina'!B36 -> 36 | E95: ='[2]Startovní listina'!C36 -> Krátký | F95: ='[2]Startovní listina'!D36 -> Josef | G95: ='[2]Startovní listina'!E36 -> 1965 | H95: ='[2]Startovní listina'!F36 -> Hvězda SKP Pardubice | I95: 03:49:35
A96: =IF('Výsledková listina 2015'!D95<>"",A95+1,"") -> 92 | B96: 6 | C96: ='[2]Startovní listina'!G72 -> D | D96: ='[2]Startovní listina'!B72 -> 79 | E96: ='[2]Startovní listina'!C72 -> Vídeňský | F96: ='[2]Startovní listina'!D72 -> Jiří | G96: ='[2]Startovní listina'!E72 -> 1947 | H96: ='[2]Startovní listina'!F72 -> KD Moravské Budějovice | I96: 04:02:08
A97: =IF('Výsledková listina 2015'!D96<>"",A96+1,"") -> 93 | B97: 2 | C97: ='[2]Startovní listina'!G23 -> E | D97: ='[2]Startovní listina'!B23 -> 21 | E97: ='[2]Startovní listina'!C23 -> Hrubý | F97: ='[2]Startovní listina'!D23 -> Milan | G97: ='[2]Startovní listina'!E23 -> 1938 | H97: ='[2]Startovní listina'!F23 -> Blansko | I97: 04:13:01
A98: =IF('Výsledková listina 2015'!D97<>"",A97+1,"") -> 94 | B98: 7 | C98: ='[2]Startovní listina'!G69 -> D | D98: ='[2]Startovní listina'!B69 -> 75 | E98: ='[2]Startovní listina'!C69 -> Kaše | F98: ='[2]Startovní listina'!D69 -> Jaroslav | G98: ='[2]Startovní listina'!E69 -> 1953 | H98: ='[2]Startovní listina'!F69 -> Club běžeckých outsiderů | I98: DNF
A99: =IF('Výsledková listina 2015'!D98<>"",A98+1,"") -> 95 | C99: ='[2]Startovní listina'!G99 ->  | D99: ='[2]Startovní listina'!B99 ->  | E99: ='[2]Startovní listina'!C99 ->  | F99: ='[2]Startovní listina'!D99 ->  | G99: ='[2]Startovní listina'!E99 ->  | H99: ='[2]Startovní listina'!F99 -> 
A100: =IF('Výsledková listina 2015'!D99<>"",A99+1,"") ->  | C100: ='[2]Startovní listina'!G100 ->  | D100: ='[2]Startovní listina'!B100 ->  | E100: ='[2]Startovní listina'!C100 ->  | F100: ='[2]Startovní listina'!D100 ->  | G100: ='[2]Startovní listina'!E100 ->  | H100: ='[2]Startovní listina'!F100 -> 
A101: =IF('Výsledková listina 2015'!D100<>"",A100+1,"") ->  | C101: ='[2]Startovní listina'!G101 ->  | D101: ='[2]Startovní listina'!B101 ->  | E101: ='[2]Startovní listina'!C101 ->  | F101: ='[2]Startovní listina'!D101 ->  | G101: ='[2]Startovní listina'!E101 ->  | H101: ='[2]Startovní listina'!F101 -> 
A102: =IF('Výsledková listina 2015'!D101<>"",A101+1,"") ->  | C102: ='[2]Startovní listina'!G102 ->  | D102: ='[2]Startovní listina'!B102 ->  | E102: ='[2]Startovní listina'!C102 ->  | F102: ='[2]Startovní listina'!D102 ->  | G102: ='[2]Startovní listina'!E102 ->  | H102: ='[2]Startovní listina'!F102 -> 
A103: =IF('Výsledková listina 2015'!D102<>"",A102+1,"") ->  | C103: ='[2]Startovní listina'!G103 ->  | D103: ='[2]Startovní listina'!B103 ->  | E103: ='[2]Startovní listina'!C103 ->  | F103: ='[2]Startovní listina'!D103 ->  | G103: ='[2]Startovní listina'!E103 ->  | H103: ='[2]Startovní listina'!F103 -> 

Sheet Družstva (prac.) (hidden)
B1: ="Výsledková listina - Malý svratecký maratón "&'Prezenční listina'!O2&" - družstva" -> Výsledková listina - Malý svratecký maratón 2016 - družstva
B2: ='Prezenční listina'!O2-1953&". ročník" -> 63. ročník
B3: Pořadí | C3: Startovní číslo | D3: Příjmení | E3: Jméno | F3: Narození | G3: Oddíl / Bydliště | H3: Čas | I3: Výsledný čas
B4: 1. | C4: 3 | D4: =IF(ISERROR(VLOOKUP(C4,'Startovní listina'!$B$5:$F$141,2)),"",VLOOKUP(C4,'Startovní listina'!$B$5:$F$141,2)) -> Češner | E4: =IF(ISERROR(VLOOKUP(C4,'Startovní listina'!$B$5:$F$141,3)),"",VLOOKUP(C4,'Startovní listina'!$B$5:$F$141,3)) -> Vladimír | F4: =IF(ISERROR(VLOOKUP(C4,'Startovní listina'!$B$5:$F$141,4)),"",VLOOKUP(C4,'Startovní listina'!$B$5:$F$141,4)) -> 1958 | G4: =IF(K4=K5,K4,"RŮZNÉ ODDÍLY !!!") -> RŮZNÉ ODDÍLY !!! | H4: 03:07:50 | I4: =IF((H4=0),"",H4+H5) -> 05:48:15 | K4: =IF(ISERROR(VLOOKUP(C4,'Startovní listina'!$B$5:$F$141,5)),"",VLOOKUP(C4,'Startovní listina'!$B$5:$F$141,5)) -> Odolená Voda
C5: 2 | D5: =IF(ISERROR(VLOOKUP(C5,'Startovní listina'!$B$5:$F$141,2)),"",VLOOKUP(C5,'Startovní listina'!$B$5:$F$141,2)) -> Barvíř | E5: =IF(ISERROR(VLOOKUP(C5,'Startovní listina'!$B$5:$F$141,3)),"",VLOOKUP(C5,'Startovní listina'!$B$5:$F$141,3)) -> Jiří | F5: =IF(ISERROR(VLOOKUP(C5,'Startovní listina'!$B$5:$F$141,4)),"",VLOOKUP(C5,'Startovní listina'!$B$5:$F$141,4)) -> 1982 | H5: 02:40:25 | K5: =IF(ISERROR(VLOOKUP(C5,'Startovní listina'!$B$5:$F$141,5)),"",VLOOKUP(C5,'Startovní listina'!$B$5:$F$141,5)) -> R.I.P. Brno
B6: 2. | C6: 11 | D6: =IF(ISERROR(VLOOKUP(C6,'Startovní listina'!$B$5:$F$141,2)),"",VLOOKUP(C6,'Startovní listina'!$B$5:$F$141,2)) -> Kopečný | E6: =IF(ISERROR(VLOOKUP(C6,'Startovní listina'!$B$5:$F$141,3)),"",VLOOKUP(C6,'Startovní listina'!$B$5:$F$141,3)) -> Dušan | F6: =IF(ISERROR(VLOOKUP(C6,'Startovní listina'!$B$5:$F$141,4)),"",VLOOKUP(C6,'Startovní listina'!$B$5:$F$141,4)) -> 1973 | G6: =IF(K6=K7,K6,"RŮZNÉ ODDÍLY !!!") -> RŮZNÉ ODDÍLY !!! | H6: 02:01:16 | I6: =IF((H6=0),"",H6+H7) -> 04:06:56 | K6: =IF(ISERROR(VLOOKUP(C6,'Startovní listina'!$B$5:$F$141,5)),"",VLOOKUP(C6,'Startovní listina'!$B$5:$F$141,5)) -> AK Drnovice
C7: 8 | D7: =IF(ISERROR(VLOOKUP(C7,'Startovní listina'!$B$5:$F$141,2)),"",VLOOKUP(C7,'Startovní listina'!$B$5:$F$141,2)) -> Chramosta | E7: =IF(ISERROR(VLOOKUP(C7,'Startovní listina'!$B$5:$F$141,3)),"",VLOOKUP(C7,'Startovní listina'!$B$5:$F$141,3)) -> Jaroslav | F7: =IF(ISERROR(VLOOKUP(C7,'Startovní listina'!$B$5:$F$141,4)),"",VLOOKUP(C7,'Startovní listina'!$B$5:$F$141,4)) -> 1966 | H7: 02:05:40 | K7: =IF(ISERROR(VLOOKUP(C7,'Startovní listina'!$B$5:$F$141,5)),"",VLOOKUP(C7,'Startovní listina'!$B$5:$F$141,5)) -> JABOJA Team Děčín
B8: 3. | C8: 9 | D8: =IF(ISERROR(VLOOKUP(C8,'Startovní listina'!$B$5:$F$141,2)),"",VLOOKUP(C8,'Startovní listina'!$B$5:$F$141,2)) -> Vytisk | E8: =IF(ISERROR(VLOOKUP(C8,'Startovní listina'!$B$5:$F$141,3)),"",VLOOKUP(C8,'Startovní listina'!$B$5:$F$141,3)) -> Alfons | F8: =IF(ISERROR(VLOOKUP(C8,'Startovní listina'!$B$5:$F$141,4)),"",VLOOKUP(C8,'Startovní listina'!$B$5:$F$141,4)) -> 1949 | G8: =IF(K8=K9,K8,"RŮZNÉ ODDÍLY !!!") -> RŮZNÉ ODDÍLY !!! | H8: 02:40:16 | I8: =IF((H8=0),"",H8+H9) -> 05:12:53 | K8: =IF(ISERROR(VLOOKUP(C8,'Startovní listina'!$B$5:$F$141,5)),"",VLOOKUP(C8,'Startovní listina'!$B$5:$F$141,5)) -> MKS Ostrava
C9: 10 | D9: =IF(ISERROR(VLOOKUP(C9,'Startovní listina'!$B$5:$F$141,2)),"",VLOOKUP(C9,'Startovní listina'!$B$5:$F$141,2)) -> Bolek | E9: =IF(ISERROR(VLOOKUP(C9,'Startovní listina'!$B$5:$F$141,3)),"",VLOOKUP(C9,'Startovní listina'!$B$5:$F$141,3)) -> Rostislav | F9: =IF(ISERROR(VLOOKUP(C9,'Startovní listina'!$B$5:$F$141,4)),"",VLOOKUP(C9,'Startovní listina'!$B$5:$F$141,4)) -> 1965 | H9: 02:32:37 | K9: =IF(ISERROR(VLOOKUP(C9,'Startovní listina'!$B$5:$F$141,5)),"",VLOOKUP(C9,'Startovní listina'!$B$5:$F$141,5)) -> Insportline Ostrava
B10: 4. | C10: 23 | D10: =IF(ISERROR(VLOOKUP(C10,'Startovní listina'!$B$5:$F$141,2)),"",VLOOKUP(C10,'Startovní listina'!$B$5:$F$141,2)) -> Kryštof | E10: =IF(ISERROR(VLOOKUP(C10,'Startovní listina'!$B$5:$F$141,3)),"",VLOOKUP(C10,'Startovní listina'!$B$5:$F$141,3)) -> Ondřej | F10: =IF(ISERROR(VLOOKUP(C10,'Startovní listina'!$B$5:$F$141,4)),"",VLOOKUP(C10,'Startovní listina'!$B$5:$F$141,4)) -> 1976 | G10: =IF(K10=K11,K10,"RŮZNÉ ODDÍLY !!!") -> RŮZNÉ ODDÍLY !!! | H10: 03:04:10 | I10: =IF((H10=0),"",H10+H11) -> 06:10:48 | K10: =IF(ISERROR(VLOOKUP(C10,'Startovní listina'!$B$5:$F$141,5)),"",VLOOKUP(C10,'Startovní listina'!$B$5:$F$141,5)) -> Jiskra Vír
C11: 24 | D11: =IF(ISERROR(VLOOKUP(C11,'Startovní listina'!$B$5:$F$141,2)),"",VLOOKUP(C11,'Startovní listina'!$B$5:$F$141,2)) -> Šedová | E11: =IF(ISERROR(VLOOKUP(C11,'Startovní listina'!$B$5:$F$141,3)),"",VLOOKUP(C11,'Startovní listina'!$B$5:$F$141,3)) -> Věra | F11: =IF(ISERROR(VLOOKUP(C11,'Startovní listina'!$B$5:$F$141,4)),"",VLOOKUP(C11,'Startovní listina'!$B$5:$F$141,4)) -> 1964 | H11: 03:06:38 | K11: =IF(ISERROR(VLOOKUP(C11,'Startovní listina'!$B$5:$F$141,5)),"",VLOOKUP(C11,'Startovní listina'!$B$5:$F$141,5)) -> Atletic Třebíč
B12: 5. | C12: 35 | D12: =IF(ISERROR(VLOOKUP(C12,'Startovní listina'!$B$5:$F$141,2)),"",VLOOKUP(C12,'Startovní listina'!$B$5:$F$141,2)) -> Dušil | E12: =IF(ISERROR(VLOOKUP(C12,'Startovní listina'!$B$5:$F$141,3)),"",VLOOKUP(C12,'Startovní listina'!$B$5:$F$141,3)) -> Jaroslav | F12: =IF(ISERROR(VLOOKUP(C12,'Startovní listina'!$B$5:$F$141,4)),"",VLOOKUP(C12,'Startovní listina'!$B$5:$F$141,4)) -> 1970 | G12: =IF(K12=K13,K12,"RŮZNÉ ODDÍLY !!!") -> RŮZNÉ ODDÍLY !!! | H12: 02:31:40 | I12: =IF((H12=0),"",H12+H13) -> 06:21:15 | K12: =IF(ISERROR(VLOOKUP(C12,'Startovní listina'!$B$5:$F$141,5)),"",VLOOKUP(C12,'Startovní listina'!$B$5:$F$141,5)) -> Běžecký klub Brno
C13: 36 | D13: =IF(ISERROR(VLOOKUP(C13,'Startovní listina'!$B$5:$F$141,2)),"",VLOOKUP(C13,'Startovní listina'!$B$5:$F$141,2)) -> Němec | E13: =IF(ISERROR(VLOOKUP(C13,'Startovní listina'!$B$5:$F$141,3)),"",VLOOKUP(C13,'Startovní listina'!$B$5:$F$141,3)) -> Jaroslav | F13: =IF(ISERROR(VLOOKUP(C13,'Startovní listina'!$B$5:$F$141,4)),"",VLOOKUP(C13,'Startovní listina'!$B$5:$F$141,4)) -> 1952 | H13: 03:49:35 | K13: =IF(ISERROR(VLOOKUP(C13,'Startovní listina'!$B$5:$F$141,5)),"",VLOOKUP(C13,'Startovní listina'!$B$5:$F$141,5)) -> Blansko
B14: 6. | C14: 82 | D14: =IF(ISERROR(VLOOKUP(C14,'Startovní listina'!$B$5:$F$141,2)),"",VLOOKUP(C14,'Startovní listina'!$B$5:$F$141,2)) -> Šorf | E14: =IF(ISERROR(VLOOKUP(C14,'Startovní listina'!$B$5:$F$141,3)),"",VLOOKUP(C14,'Startovní listina'!$B$5:$F$141,3)) -> Ivo | F14: =IF(ISERROR(VLOOKUP(C14,'Startovní listina'!$B$5:$F$141,4)),"",VLOOKUP(C14,'Startovní listina'!$B$5:$F$141,4)) -> 1975 | G14: =IF(K14=K15,K14,"RŮZNÉ ODDÍLY !!!") -> RŮZNÉ ODDÍLY !!! | H14: 02:11:00 | I14: =IF((H14=0),"",H14+H15) -> 04:05:34 | K14: =IF(ISERROR(VLOOKUP(C14,'Startovní listina'!$B$5:$F$141,5)),"",VLOOKUP(C14,'Startovní listina'!$B$5:$F$141,5)) -> ABND Racing Team Bystřice nad Pernštejnem
C15: 107 | D15: =IF(ISERROR(VLOOKUP(C15,'Startovní listina'!$B$5:$F$141,2)),"",VLOOKUP(C15,'Startovní listina'!$B$5:$F$141,2)) -> Jeneš | E15: =IF(ISERROR(VLOOKUP(C15,'Startovní listina'!$B$5:$F$141,3)),"",VLOOKUP(C15,'Startovní listina'!$B$5:$F$141,3)) -> Kamil | F15: =IF(ISERROR(VLOOKUP(C15,'Startovní listina'!$B$5:$F$141,4)),"",VLOOKUP(C15,'Startovní listina'!$B$5:$F$141,4)) -> 1984 | H15: 01:54:34 | K15: =IF(ISERROR(VLOOKUP(C15,'Startovní listina'!$B$5:$F$141,5)),"",VLOOKUP(C15,'Startovní listina'!$B$5:$F$141,5)) -> 3KJRUN
B16: 7. | C16: 28 | D16: =IF(ISERROR(VLOOKUP(C16,'Startovní listina'!$B$5:$F$141,2)),"",VLOOKUP(C16,'Startovní listina'!$B$5:$F$141,2)) -> Mareš | E16: =IF(ISERROR(VLOOKUP(C16,'Startovní listina'!$B$5:$F$141,3)),"",VLOOKUP(C16,'Startovní listina'!$B$5:$F$141,3)) -> Bohumil | F16: =IF(ISERROR(VLOOKUP(C16,'Startovní listina'!$B$5:$F$141,4)),"",VLOOKUP(C16,'Startovní listina'!$B$5:$F$141,4)) -> 1951 | G16: =IF(K16=K17,K16,"RŮZNÉ ODDÍLY !!!") -> RŮZNÉ ODDÍLY !!! | H16: 02:19:07 | I16: =IF((H16=0),"",H16+H17) -> 04:24:14 | K16: =IF(ISERROR(VLOOKUP(C16,'Startovní listina'!$B$5:$F$141,5)),"",VLOOKUP(C16,'Startovní listina'!$B$5:$F$141,5)) -> LEAR Brno
C17: 26 | D17: =IF(ISERROR(VLOOKUP(C17,'Startovní listina'!$B$5:$F$141,2)),"",VLOOKUP(C17,'Startovní listina'!$B$5:$F$141,2)) -> Kohoutek | E17: =IF(ISERROR(VLOOKUP(C17,'Startovní listina'!$B$5:$F$141,3)),"",VLOOKUP(C17,'Startovní listina'!$B$5:$F$141,3)) -> Jaromír | F17: =IF(ISERROR(VLOOKUP(C17,'Startovní listina'!$B$5:$F$141,4)),"",VLOOKUP(C17,'Startovní listina'!$B$5:$F$141,4)) -> 1955 | H17: 02:05:07 | K17: =IF(ISERROR(VLOOKUP(C17,'Startovní listina'!$B$5:$F$141,5)),"",VLOOKUP(C17,'Startovní listina'!$B$5:$F$141,5)) -> watter and snow ski club Brno
B18: 8. | D18: =IF(ISERROR(VLOOKUP(C18,'Startovní listina'!$B$5:$F$141,2)),"",VLOOKUP(C18,'Startovní listina'!$B$5:$F$141,2)) ->  | E18: =IF(ISERROR(VLOOKUP(C18,'Startovní listina'!$B$5:$F$141,3)),"",VLOOKUP(C18,'Startovní listina'!$B$5:$F$141,3)) ->  | F18: =IF(ISERROR(VLOOKUP(C18,'Startovní listina'!$B$5:$F$141,4)),"",VLOOKUP(C18,'Startovní listina'!$B$5:$F$141,4)) ->  | G18: =IF(K18=K19,K18,"RŮZNÉ ODDÍLY !!!") ->  | I18: =IF((H18=0),"",H18+H19) ->  | K18: =IF(ISERROR(VLOOKUP(C18,'Startovní listina'!$B$5:$F$141,5)),"",VLOOKUP(C18,'Startovní listina'!$B$5:$F$141,5)) -> 
D19: =IF(ISERROR(VLOOKUP(C19,'Startovní listina'!$B$5:$F$141,2)),"",VLOOKUP(C19,'Startovní listina'!$B$5:$F$141,2)) ->  | E19: =IF(ISERROR(VLOOKUP(C19,'Startovní listina'!$B$5:$F$141,3)),"",VLOOKUP(C19,'Startovní listina'!$B$5:$F$141,3)) ->  | F19: =IF(ISERROR(VLOOKUP(C19,'Startovní listina'!$B$5:$F$141,4)),"",VLOOKUP(C19,'Startovní listina'!$B$5:$F$141,4)) ->  | K19: =IF(ISERROR(VLOOKUP(C19,'Startovní listina'!$B$5:$F$141,5)),"",VLOOKUP(C19,'Startovní listina'!$B$5:$F$141,5)) -> 
B20: 9. | D20: =IF(ISERROR(VLOOKUP(C20,'Startovní listina'!$B$5:$F$141,2)),"",VLOOKUP(C20,'Startovní listina'!$B$5:$F$141,2)) ->  | E20: =IF(ISERROR(VLOOKUP(C20,'Startovní listina'!$B$5:$F$141,3)),"",VLOOKUP(C20,'Startovní listina'!$B$5:$F$141,3)) ->  | F20: =IF(ISERROR(VLOOKUP(C20,'Startovní listina'!$B$5:$F$141,4)),"",VLOOKUP(C20,'Startovní listina'!$B$5:$F$141,4)) ->  | G20: =IF(K20=K21,K20,"RŮZNÉ ODDÍLY !!!") ->  | I20: =IF((H20=0),"",H20+H21) ->  | K20: =IF(ISERROR(VLOOKUP(C20,'Startovní listina'!$B$5:$F$141,5)),"",VLOOKUP(C20,'Startovní listina'!$B$5:$F$141,5)) -> 
D21: =IF(ISERROR(VLOOKUP(C21,'Startovní listina'!$B$5:$F$141,2)),"",VLOOKUP(C21,'Startovní listina'!$B$5:$F$141,2)) ->  | E21: =IF(ISERROR(VLOOKUP(C21,'Startovní listina'!$B$5:$F$141,3)),"",VLOOKUP(C21,'Startovní listina'!$B$5:$F$141,3)) ->  | F21: =IF(ISERROR(VLOOKUP(C21,'Startovní listina'!$B$5:$F$141,4)),"",VLOOKUP(C21,'Startovní listina'!$B$5:$F$141,4)) ->  | K21: =IF(ISERROR(VLOOKUP(C21,'Startovní listina'!$B$5:$F$141,5)),"",VLOOKUP(C21,'Startovní listina'!$B$5:$F$141,5)) -> 

Sheet Výsledková listina (2) (hidden)
A1: ="Výsledková listina - Malý svratecký maraton "&'Prezenční listina'!O2 -> Výsledková listina - Malý svratecký maraton 2016
A2: 2015-08-22 | K2: Poté, co jsou dopsány časy VŠECH běžců, stisknout tlačítko 1.řazení Ve sloupci B (Pořadí v kategorii) vytvořit posloupnou číselnou řadu pro každou kategorii a poté stisknout tlačítko 2.řazení !!! POZOR!!! Použití tlačítek je nevratný krok!
A3: ='Prezenční listina'!O2-1953&". ročník" -> 63. ročník
A4: Celkové pořadí | B4: Pořadí v kategorii | C4: Kategorie | D4: Startovní číslo | E4: Příjmení | F4: Jméno | G4: Narození | H4: Oddíl / Bydliště | I4: Čas
A5: 1 | B5: 1 | C5: ='Startovní listina'!G47 -> B | D5: ='Startovní listina'!B47 -> 54 | E5: ='Startovní listina'!C47 -> Hýbl | F5: ='Startovní listina'!D47 -> Jiří | G5: ='Startovní listina'!E47 -> 1967 | H5: ='Startovní listina'!F47 -> Hrušovany u Brna | I5: 02:19:48
A6: =IF('Výsledková listina (2)'!D5<>"",A5+1,"") -> 2 | C6: ='Startovní listina'!G71 -> B | D6: ='Startovní listina'!B71 -> 87 | E6: ='Startovní listina'!C71 -> Hančl | F6: ='Startovní listina'!D71 -> Roman | G6: ='Startovní listina'!E71 -> 1967 | H6: ='Startovní listina'!F71 -> Tišnov | I6: 02:47:00
A7: =IF('Výsledková listina (2)'!D6<>"",A6+1,"") -> 3 | C7: ='Startovní listina'!G5 -> A | D7: ='Startovní listina'!B5 -> 1 | E7: ='Startovní listina'!C5 -> Kratochvíl | F7: ='Startovní listina'!D5 -> Jaroslav | G7: ='Startovní listina'!E5 -> 1977 | H7: ='Startovní listina'!F5 -> SDH Hluboké | I7: 03:02:17
A8: =IF('Výsledková listina (2)'!D7<>"",A7+1,"") -> 4 | C8: ='Startovní listina'!G85 ->  | D8: ='Startovní listina'!B85 ->  | E8: ='Startovní listina'!C85 ->  | F8: ='Startovní listina'!D85 ->  | G8: ='Startovní listina'!E85 ->  | H8: ='Startovní listina'!F85 ->  | I8: 03:28:11
A9: =IF('Výsledková listina (2)'!D8<>"",A8+1,"") ->  | C9: ='Startovní listina'!G59 -> B | D9: ='Startovní listina'!B59 -> 72 | E9: ='Startovní listina'!C59 -> Báňa | F9: ='Startovní listina'!D59 -> Karel | G9: ='Startovní listina'!E59 -> 1975 | H9: ='Startovní listina'!F59 -> Jabloňov | I9: 02:23:11
A10: =IF('Výsledková listina (2)'!D9<>"",A9+1,"") ->  | C10: ='Startovní listina'!G46 -> B | D10: ='Startovní listina'!B46 -> 51 | E10: ='Startovní listina'!C46 -> Kropáček | F10: ='Startovní listina'!D46 -> Jaroslav | G10: ='Startovní listina'!E46 -> 1970 | H10: ='Startovní listina'!F46 -> Brno | I10: 02:50:33
A11: =IF('Výsledková listina (2)'!D10<>"",A10+1,"") ->  | C11: ='Startovní listina'!G28 -> D | D11: ='Startovní listina'!B28 -> 28 | E11: ='Startovní listina'!C28 -> Mareš | F11: ='Startovní listina'!D28 -> Bohumil | G11: ='Startovní listina'!E28 -> 1951 | H11: ='Startovní listina'!F28 -> LEAR Brno | I11: 02:26:07
A12: =IF('Výsledková listina (2)'!D11<>"",A11+1,"") ->  | C12: ='Startovní listina'!G67 -> B | D12: ='Startovní listina'!B67 -> 83 | E12: ='Startovní listina'!C67 -> Orálek | F12: ='Startovní listina'!D67 -> Daniel | G12: ='Startovní listina'!E67 -> 1970 | H12: ='Startovní listina'!F67 -> adidas Boost Team/AC Moravská Slávia Brno | I12: 02:34:42
A13: =IF('Výsledková listina (2)'!D12<>"",A12+1,"") ->  | C13: ='Startovní listina'!G68 -> H | D13: ='Startovní listina'!B68 -> 84 | E13: ='Startovní listina'!C68 -> Podmelová | F13: ='Startovní listina'!D68 -> Vilma | G13: ='Startovní listina'!E68 -> 1962 | H13: ='Startovní listina'!F68 -> AC Moravská Slávia Brno | I13: 02:42:43
A14: =IF('Výsledková listina (2)'!D13<>"",A13+1,"") ->  | C14: ='Startovní listina'!G62 -> C | D14: ='Startovní listina'!B62 -> 76 | E14: ='Startovní listina'!C62 -> Prokop | F14: ='Startovní listina'!D62 -> Ondřej | G14: ='Startovní listina'!E62 -> 1962 | H14: ='Startovní listina'!F62 -> Čau, Brno | I14: 02:42:35
A15: =IF('Výsledková listina (2)'!D14<>"",A14+1,"") ->  | C15: ='Startovní listina'!G55 -> C | D15: ='Startovní listina'!B55 -> 64 | E15: ='Startovní listina'!C55 -> Ožana | F15: ='Startovní listina'!D55 -> Václav | G15: ='Startovní listina'!E55 -> 1964 | H15: ='Startovní listina'!F55 -> Atletic Třebíč | I15: 02:40:36
A16: =IF('Výsledková listina (2)'!D15<>"",A15+1,"") ->  | C16: ='Startovní listina'!G60 -> A | D16: ='Startovní listina'!B60 -> 73 | E16: ='Startovní listina'!C60 -> Hlavsa | F16: ='Startovní listina'!D60 -> Tomáš | G16: ='Startovní listina'!E60 -> 1983 | H16: ='Startovní listina'!F60 -> Adamov | I16: 02:38:54
A17: =IF('Výsledková listina (2)'!D16<>"",A16+1,"") ->  | C17: ='Startovní listina'!G7 -> C | D17: ='Startovní listina'!B7 -> 3 | E17: ='Startovní listina'!C7 -> Češner | F17: ='Startovní listina'!D7 -> Vladimír | G17: ='Startovní listina'!E7 -> 1958 | H17: ='Startovní listina'!F7 -> Odolená Voda | I17: 03:07:50
A18: =IF('Výsledková listina (2)'!D17<>"",A17+1,"") ->  | C18: ='Startovní listina'!G63 -> C | D18: ='Startovní listina'!B63 -> 77 | E18: ='Startovní listina'!C63 -> Rerych | F18: ='Startovní listina'!D63 -> Jiří | G18: ='Startovní listina'!E63 -> 1962 | H18: ='Startovní listina'!F63 -> adidas Boost Team/AC Moravská Slávia Brno | I18: 02:39:15
A19: =IF('Výsledková listina (2)'!D18<>"",A18+1,"") ->  | C19: ='Startovní listina'!G49 -> C | D19: ='Startovní listina'!B49 -> 58 | E19: ='Startovní listina'!C49 -> Šimunek | F19: ='Startovní listina'!D49 -> Martin | G19: ='Startovní listina'!E49 -> 1966 | H19: ='Startovní listina'!F49 -> Botanka running, Modřice | I19: 02:13:13
A20: =IF('Výsledková listina (2)'!D19<>"",A19+1,"") ->  | C20: ='Startovní listina'!G14 -> C | D20: ='Startovní listina'!B14 -> 10 | E20: ='Startovní listina'!C14 -> Bolek | F20: ='Startovní listina'!D14 -> Rostislav | G20: ='Startovní listina'!E14 -> 1965 | H20: ='Startovní listina'!F14 -> Insportline Ostrava | I20: 02:32:37
A21: =IF('Výsledková listina (2)'!D20<>"",A20+1,"") ->  | C21: ='Startovní listina'!G42 -> A | D21: ='Startovní listina'!B42 -> 46 | E21: ='Startovní listina'!C42 -> Vágner | F21: ='Startovní listina'!D42 -> Vojtěch | G21: ='Startovní listina'!E42 -> 1999 | H21: ='Startovní listina'!F42 -> Brno | I21: 02:49:46
A22: =IF('Výsledková listina (2)'!D22<>"",A21+1,"") ->  | C22: ='Startovní listina'!G79 -> B | D22: ='Startovní listina'!B79 -> 96 | E22: ='Startovní listina'!C79 -> Konečný | F22: ='Startovní listina'!D79 -> Jaroslav | G22: ='Startovní listina'!E79 -> 1969 | H22: ='Startovní listina'!F79 -> Essens Popůvky | I22: 02:13:29
A23: =IF('Výsledková listina (2)'!D21<>"",A22+1,"") ->  | C23: ='Startovní listina'!G15 -> B | D23: ='Startovní listina'!B15 -> 11 | E23: ='Startovní listina'!C15 -> Kopečný | F23: ='Startovní listina'!D15 -> Dušan | G23: ='Startovní listina'!E15 -> 1973 | H23: ='Startovní listina'!F15 -> AK Drnovice | I23: 02:01:16
A24: =IF('Výsledková listina (2)'!D23<>"",A23+1,"") ->  | C24: ='Startovní listina'!G91 ->  | D24: ='Startovní listina'!B91 ->  | E24: ='Startovní listina'!C91 ->  | F24: ='Startovní listina'!D91 ->  | G24: ='Startovní listina'!E91 ->  | H24: ='Startovní listina'!F91 ->  | I24: 02:30:31
A25: =IF('Výsledková listina (2)'!D24<>"",A24+1,"") ->  | C25: ='Startovní listina'!G74 -> A | D25: ='Startovní listina'!B74 -> 91 | E25: ='Startovní listina'!C74 -> Hakl | F25: ='Startovní listina'!D74 -> Martin | G25: ='Startovní listina'!E74 -> 1987 | H25: ='Startovní listina'!F74 -> Running With Those That Can't | I25: 02:11:00
A26: =IF('Výsledková listina (2)'!D25<>"",A25+1,"") ->  | C26: ='Startovní listina'!G44 -> A | D26: ='Startovní listina'!B44 -> 48 | E26: ='Startovní listina'!C44 -> Příhoda | F26: ='Startovní listina'!D44 -> Jan | G26: ='Startovní listina'!E44 -> 1983 | H26: ='Startovní listina'!F44 -> Ždánice | I26: 03:10:37
A27: =IF('Výsledková listina (2)'!D26<>"",A26+1,"") ->  | C27: ='Startovní listina'!G84 -> A | D27: ='Startovní listina'!B84 -> 101 | E27: ='Startovní listina'!C84 -> Jeneš | F27: ='Startovní listina'!D84 -> Kamil | G27: ='Startovní listina'!E84 -> 1984 | H27: ='Startovní listina'!F84 -> 3KJRUN | I27: 02:28:22
A28: =IF('Výsledková listina (2)'!D27<>"",A27+1,"") ->  | C28: ='Startovní listina'!G87 ->  | D28: ='Startovní listina'!B87 ->  | E28: ='Startovní listina'!C87 ->  | F28: ='Startovní listina'!D87 ->  | G28: ='Startovní listina'!E87 ->  | H28: ='Startovní listina'!F87 ->  | I28: 02:29:21
A29: =IF('Výsledková listina (2)'!D28<>"",A28+1,"") ->  | C29: ='Startovní listina'!G75 -> C | D29: ='Startovní listina'!B75 -> 92 | E29: ='Startovní listina'!C75 -> Novotný | F29: ='Startovní listina'!D75 -> Petr | G29: ='Startovní listina'!E75 -> 1965 | H29: ='Startovní listina'!F75 -> Kuřim | I29: 03:01:37
A30: =IF('Výsledková listina (2)'!D29<>"",A29+1,"") ->  | C30: ='Startovní listina'!G18 -> E | D30: ='Startovní listina'!B18 -> 14 | E30: ='Startovní listina'!C18 -> Holý | F30: ='Startovní listina'!D18 -> Josef | G30: ='Startovní listina'!E18 -> 1941 | H30: ='Startovní listina'!F18 -> AC Moravská Slávia Brno
A31: =IF('Výsledková listina (2)'!D30<>"",A30+1,"") ->  | C31: ='Startovní listina'!G41 -> A | D31: ='Startovní listina'!B41 -> 45 | E31: ='Startovní listina'!C41 -> Misař | F31: ='Startovní listina'!D41 -> Ondřej | G31: ='Startovní listina'!E41 -> 2000 | H31: ='Startovní listina'!F41 -> Brno | I31: 02:16:46
A32: =IF('Výsledková listina (2)'!D31<>"",A31+1,"") ->  | C32: ='Startovní listina'!G23 -> C | D32: ='Startovní listina'!B23 -> 22 | E32: ='Startovní listina'!C23 -> Provazník | F32: ='Startovní listina'!D23 -> Milan | G32: ='Startovní listina'!E23 -> 1966 | H32: ='Startovní listina'!F23 -> Atletika Polička
A33: =IF('Výsledková listina (2)'!D32<>"",A32+1,"") ->  | C33: ='Startovní listina'!G57 -> A | D33: ='Startovní listina'!B57 -> 69 | E33: ='Startovní listina'!C57 -> Brabenec | F33: ='Startovní listina'!D57 -> Aleš | G33: ='Startovní listina'!E57 -> 1987 | H33: ='Startovní listina'!F57 -> Žďár nad Sázavou | I33: 02:42:39
A34: =IF('Výsledková listina (2)'!D33<>"",A33+1,"") ->  | C34: ='Startovní listina'!G40 -> A | D34: ='Startovní listina'!B40 -> 44 | E34: ='Startovní listina'!C40 -> Dubský | F34: ='Startovní listina'!D40 -> Roman | G34: ='Startovní listina'!E40 -> 1978 | H34: ='Startovní listina'!F40 -> Přibyslav | I34: 02:10:10
A35: =IF('Výsledková listina (2)'!D34<>"",A34+1,"") ->  | C35: ='Startovní listina'!G9 -> F | D35: ='Startovní listina'!B9 -> 5 | E35: ='Startovní listina'!C9 -> Železná | F35: ='Startovní listina'!D9 -> Lada | G35: ='Startovní listina'!E9 -> 1989 | H35: ='Startovní listina'!F9 -> Brno | I35: 02:05:55
A36: =IF('Výsledková listina (2)'!D35<>"",A35+1,"") ->  | C36: ='Startovní listina'!G77 -> B | D36: ='Startovní listina'!B77 -> 94 | E36: ='Startovní listina'!C77 -> Benc | F36: ='Startovní listina'!D77 -> Karel | G36: ='Startovní listina'!E77 -> 1975 | H36: ='Startovní listina'!F77 -> Pivonice
A37: =IF('Výsledková listina (2)'!D36<>"",A36+1,"") ->  | C37: ='Startovní listina'!G81 -> G | D37: ='Startovní listina'!B81 -> 98 | E37: ='Startovní listina'!C81 -> Tonarová | F37: ='Startovní listina'!D81 -> Miroslava | G37: ='Startovní listina'!E81 -> 1976 | H37: ='Startovní listina'!F81 -> Bory | I37: 03:24:59
A38: =IF('Výsledková listina (2)'!D37<>"",A37+1,"") ->  | C38: ='Startovní listina'!G54 -> F | D38: ='Startovní listina'!B54 -> 63 | E38: ='Startovní listina'!C54 -> Rokosová | F38: ='Startovní listina'!D54 -> Ivana | G38: ='Startovní listina'!E54 -> 1982 | H38: ='Startovní listina'!F54 -> Polička | I38: 02:37:38
A39: =IF('Výsledková listina (2)'!D38<>"",A38+1,"") ->  | C39: ='Startovní listina'!G94 ->  | D39: ='Startovní listina'!B94 ->  | E39: ='Startovní listina'!C94 ->  | F39: ='Startovní listina'!D94 ->  | G39: ='Startovní listina'!E94 ->  | H39: ='Startovní listina'!F94 ->  | I39: 03:13:50
A40: =IF('Výsledková listina (2)'!D39<>"",A39+1,"") ->  | C40: ='Startovní listina'!G20 -> H | D40: ='Startovní listina'!B20 -> 18 | E40: ='Startovní listina'!C20 -> Krátká | F40: ='Startovní listina'!D20 -> Anna | G40: ='Startovní listina'!E20 -> 1969 | H40: ='Startovní listina'!F20 -> SKP Hvězda Pardubice | I40: 02:43:21
A41: =IF('Výsledková listina (2)'!D40<>"",A40+1,"") ->  | C41: ='Startovní listina'!G19 -> D | D41: ='Startovní listina'!B19 -> 17 | E41: ='Startovní listina'!C19 -> Zejda | F41: ='Startovní listina'!D19 -> Ivo | G41: ='Startovní listina'!E19 -> 1956 | H41: ='Startovní listina'!F19 -> AC Moravská Slávia Brno | I41: 03:01:04
A42: =IF('Výsledková listina (2)'!D41<>"",A41+1,"") ->  | C42: ='Startovní listina'!G69 -> A | D42: ='Startovní listina'!B69 -> 85 | E42: ='Startovní listina'!C69 -> Řezníček | F42: ='Startovní listina'!D69 -> Roman | G42: ='Startovní listina'!E69 -> 1977 | H42: ='Startovní listina'!F69 -> Žďár nad Sázavou | I42: DNF
A43: =IF('Výsledková listina (2)'!D42<>"",A42+1,"") ->  | C43: ='Startovní listina'!G38 -> C | D43: ='Startovní listina'!B38 -> 41 | E43: ='Startovní listina'!C38 -> Barták | F43: ='Startovní listina'!D38 -> Ronald | G43: ='Startovní listina'!E38 -> 1965 | H43: ='Startovní listina'!F38 -> Kuřim | I43: 02:26:38
A44: =IF('Výsledková listina (2)'!D43<>"",A43+1,"") ->  | C44: ='Startovní listina'!G80 -> A | D44: ='Startovní listina'!B80 -> 97 | E44: ='Startovní listina'!C80 -> Koutský | F44: ='Startovní listina'!D80 -> Tomáš | G44: ='Startovní listina'!E80 -> 1987 | H44: ='Startovní listina'!F80 -> Ledová stěna Vír | I44: 02:45:32
A45: =IF('Výsledková listina (2)'!D44<>"",A44+1,"") ->  | C45: ='Startovní listina'!G53 -> D | D45: ='Startovní listina'!B53 -> 62 | E45: ='Startovní listina'!C53 -> Nekuža | F45: ='Startovní listina'!D53 -> Jiří | G45: ='Startovní listina'!E53 -> 1951 | H45: ='Startovní listina'!F53 -> Runners Zbýšov | I45: 02:46:25
A46: =IF('Výsledková listina (2)'!D45<>"",A45+1,"") ->  | C46: ='Startovní listina'!G11 -> F | D46: ='Startovní listina'!B11 -> 7 | E46: ='Startovní listina'!C11 -> Forýtková | F46: ='Startovní listina'!D11 -> Žaneta | G46: ='Startovní listina'!E11 -> 1984 | H46: ='Startovní listina'!F11 -> Praha | I46: 02:45:37
A47: =IF('Výsledková listina (2)'!D46<>"",A46+1,"") ->  | C47: ='Startovní listina'!G89 ->  | D47: ='Startovní listina'!B89 ->  | E47: ='Startovní listina'!C89 ->  | F47: ='Startovní listina'!D89 ->  | G47: ='Startovní listina'!E89 ->  | H47: ='Startovní listina'!F89 ->  | I47: 02:23:07
A48: =IF('Výsledková listina (2)'!D47<>"",A47+1,"") ->  | C48: ='Startovní listina'!G93 ->  | D48: ='Startovní listina'!B93 ->  | E48: ='Startovní listina'!C93 ->  | F48: ='Startovní listina'!D93 ->  | G48: ='Startovní listina'!E93 ->  | H48: ='Startovní listina'!F93 -> 
A49: =IF('Výsledková listina (2)'!D48<>"",A48+1,"") ->  | C49: ='Startovní listina'!G78 -> C | D49: ='Startovní listina'!B78 -> 95 | E49: ='Startovní listina'!C78 -> Zourek | F49: ='Startovní listina'!D78 -> Karel | G49: ='Startovní listina'!E78 -> 1959 | H49: ='Startovní listina'!F78 -> Bedřichovice | I49: 02:49:04
A50: =IF('Výsledková listina (2)'!D49<>"",A49+1,"") ->  | C50: ='Startovní listina'!G35 -> A | D50: ='Startovní listina'!B35 -> 37 | E50: ='Startovní listina'!C35 -> Hrdina | F50: ='Startovní listina'!D35 -> Tomáš | G50: ='Startovní listina'!E35 -> 1979 | H50: ='Startovní listina'!F35 -> Běžecký klub Brno | I50: 02:31:40
A51: =IF('Výsledková listina (2)'!D50<>"",A50+1,"") ->  | C51: ='Startovní listina'!G36 -> F | D51: ='Startovní listina'!B36 -> 38 | E51: ='Startovní listina'!C36 -> Pešáková | F51: ='Startovní listina'!D36 -> Mirka | G51: ='Startovní listina'!E36 -> 1985 | H51: ='Startovní listina'!F36 -> AC Racers Tetčice
A52: =IF('Výsledková listina (2)'!D51<>"",A51+1,"") ->  | C52: ='Startovní listina'!G29 -> H | D52: ='Startovní listina'!B29 -> 30 | E52: ='Startovní listina'!C29 -> Martincová | F52: ='Startovní listina'!D29 -> Ivana | G52: ='Startovní listina'!E29 -> 1963 | H52: ='Startovní listina'!F29 -> AC Moravská Slávia Brno | I52: 02:19:07
A53: =IF('Výsledková listina (2)'!D52<>"",A52+1,"") ->  | C53: ='Startovní listina'!G86 ->  | D53: ='Startovní listina'!B86 ->  | E53: ='Startovní listina'!C86 ->  | F53: ='Startovní listina'!D86 ->  | G53: ='Startovní listina'!E86 ->  | H53: ='Startovní listina'!F86 ->  | I53: 02:21:00
A54: =IF('Výsledková listina (2)'!D53<>"",A53+1,"") ->  | C54: ='Startovní listina'!G17 -> H | D54: ='Startovní listina'!B17 -> 13 | E54: ='Startovní listina'!C17 -> Tesařová | F54: ='Startovní listina'!D17 -> Marie | G54: ='Startovní listina'!E17 -> 1954 | H54: ='Startovní listina'!F17 -> Křižanov | I54: 03:06:22
A55: =IF('Výsledková listina (2)'!D54<>"",A54+1,"") ->  | C55: ='Startovní listina'!G37 -> B | D55: ='Startovní listina'!B37 -> 40 | E55: ='Startovní listina'!C37 -> Brázda | F55: ='Startovní listina'!D37 -> Richard | G55: ='Startovní listina'!E37 -> 1975 | H55: ='Startovní listina'!F37 -> AC NOTARBRAZDA.CZ | I55: 02:32:28
A56: =IF('Výsledková listina (2)'!D55<>"",A55+1,"") ->  | C56: ='Startovní listina'!G32 -> F | D56: ='Startovní listina'!B32 -> 34 | E56: ='Startovní listina'!C32 -> Dýrová Macháčková | F56: ='Startovní listina'!D32 -> Šárka | G56: ='Startovní listina'!E32 -> 1983 | H56: ='Startovní listina'!F32 -> AK Olymp Brno | I56: 02:59:30
A57: =IF('Výsledková listina (2)'!D56<>"",A56+1,"") ->  | C57: ='Startovní listina'!G58 -> A | D57: ='Startovní listina'!B58 -> 70 | E57: ='Startovní listina'!C58 -> Mička | F57: ='Startovní listina'!D58 -> Michal | G57: ='Startovní listina'!E58 -> 1987 | H57: ='Startovní listina'!F58 -> Žďár nad Sázavou | I57: 02:07:54
A58: =IF('Výsledková listina (2)'!D57<>"",A57+1,"") ->  | C58: ='Startovní listina'!G26 -> D | D58: ='Startovní listina'!B26 -> 26 | E58: ='Startovní listina'!C26 -> Kohoutek | F58: ='Startovní listina'!D26 -> Jaromír | G58: ='Startovní listina'!E26 -> 1955 | H58: ='Startovní listina'!F26 -> watter and snow ski club Brno | I58: 03:06:38
A59: =IF('Výsledková listina (2)'!D58<>"",A58+1,"") ->  | C59: ='Startovní listina'!G52 -> A | D59: ='Startovní listina'!B52 -> 61 | E59: ='Startovní listina'!C52 -> Nováček | F59: ='Startovní listina'!D52 -> Tomáš | G59: ='Startovní listina'!E52 -> 1983 | H59: ='Startovní listina'!F52 -> Atletic Třebíč | I59: 03:14:48
A60: =IF('Výsledková listina (2)'!D59<>"",A59+1,"") ->  | C60: ='Startovní listina'!G66 -> B | D60: ='Startovní listina'!B66 -> 82 | E60: ='Startovní listina'!C66 -> Šorf | F60: ='Startovní listina'!D66 -> Ivo | G60: ='Startovní listina'!E66 -> 1975 | H60: ='Startovní listina'!F66 -> ABND Racing Team Bystřice nad Pernštejnem | I60: 02:46:48
A61: =IF('Výsledková listina (2)'!D60<>"",A60+1,"") ->  | C61: ='Startovní listina'!G31 -> B | D61: ='Startovní listina'!B31 -> 33 | E61: ='Startovní listina'!C31 -> Dvořáček | F61: ='Startovní listina'!D31 -> Jiří | G61: ='Startovní listina'!E31 -> 1968 | H61: ='Startovní listina'!F31 -> Elite sport team | I61: 02:38:44
A62: =IF('Výsledková listina (2)'!D61<>"",A61+1,"") ->  | C62: ='Startovní listina'!G92 ->  | D62: ='Startovní listina'!B92 ->  | E62: ='Startovní listina'!C92 ->  | F62: ='Startovní listina'!D92 ->  | G62: ='Startovní listina'!E92 ->  | H62: ='Startovní listina'!F92 ->  | I62: 03:04:27
A63: =IF('Výsledková listina (2)'!D62<>"",A62+1,"") ->  | C63: ='Startovní listina'!G45 -> A | D63: ='Startovní listina'!B45 -> 49 | E63: ='Startovní listina'!C45 -> Kocur | F63: ='Startovní listina'!D45 -> Lukáš | G63: ='Startovní listina'!E45 -> 1977 | H63: ='Startovní listina'!F45 -> VHS Brno | I63: 03:21:11
A64: =IF('Výsledková listina (2)'!D63<>"",A63+1,"") ->  | C64: ='Startovní listina'!G34 -> D | D64: ='Startovní listina'!B34 -> 36 | E64: ='Startovní listina'!C34 -> Němec | F64: ='Startovní listina'!D34 -> Jaroslav | G64: ='Startovní listina'!E34 -> 1952 | H64: ='Startovní listina'!F34 -> Blansko | I64: 03:00:59
A65: =IF('Výsledková listina (2)'!D64<>"",A64+1,"") ->  | C65: ='Startovní listina'!G8 -> G | D65: ='Startovní listina'!B8 -> 4 | E65: ='Startovní listina'!C8 -> Komárková | F65: ='Startovní listina'!D8 -> Zdeňka | G65: ='Startovní listina'!E8 -> 1974 | H65: ='Startovní listina'!F8 -> SDH Bolešín | I65: 03:30:08
A66: =IF('Výsledková listina (2)'!D65<>"",A65+1,"") ->  | C66: ='Startovní listina'!G73 -> A | D66: ='Startovní listina'!B73 -> 90 | E66: ='Startovní listina'!C73 -> Hakl | F66: ='Startovní listina'!D73 -> Zdeněk | G66: ='Startovní listina'!E73 -> 1982 | H66: ='Startovní listina'!F73 -> SK Tri Cyklochlubna | I66: 03:01:32
A67: =IF('Výsledková listina (2)'!D66<>"",A66+1,"") ->  | C67: ='Startovní listina'!G27 -> D | D67: ='Startovní listina'!B27 -> 27 | E67: ='Startovní listina'!C27 -> Kubík | F67: ='Startovní listina'!D27 -> Jaromír | G67: ='Startovní listina'!E27 -> 1955 | H67: ='Startovní listina'!F27 -> Blansko | I67: 02:05:07
A68: =IF('Výsledková listina (2)'!D67<>"",A67+1,"") ->  | C68: ='Startovní listina'!G70 -> D | D68: ='Startovní listina'!B70 -> 86 | E68: ='Startovní listina'!C70 -> Šperka | F68: ='Startovní listina'!D70 -> Oldřich | G68: ='Startovní listina'!E70 -> 1956 | H68: ='Startovní listina'!F70 -> Jedovnice | I68: 02:57:35
A69: =IF('Výsledková listina (2)'!D68<>"",A68+1,"") ->  | C69: ='Startovní listina'!G51 -> D | D69: ='Startovní listina'!B51 -> 60 | E69: ='Startovní listina'!C51 -> Suchý | F69: ='Startovní listina'!D51 -> Karel | G69: ='Startovní listina'!E51 -> 1956 | H69: ='Startovní listina'!F51 -> Atletic Třebíč | I69: 02:19:36
A70: =IF('Výsledková listina (2)'!D69<>"",A69+1,"") ->  | C70: ='Startovní listina'!G98 ->  | D70: ='Startovní listina'!B98 ->  | E70: ='Startovní listina'!C98 ->  | F70: ='Startovní listina'!D98 ->  | G70: ='Startovní listina'!E98 ->  | H70: ='Startovní listina'!F98 ->  | I70: 01:54:34
A71: =IF('Výsledková listina (2)'!D70<>"",A70+1,"") ->  | C71: ='Startovní listina'!G50 -> B | D71: ='Startovní listina'!B50 -> 59 | E71: ='Startovní listina'!C50 -> Dvořák | F71: ='Startovní listina'!D50 -> Vojtěch | G71: ='Startovní listina'!E50 -> 1974 | H71: ='Startovní listina'!F50 -> Brno | I71: 02:21:57
A72: =IF('Výsledková listina (2)'!D71<>"",A71+1,"") ->  | C72: ='Startovní listina'!G21 -> C | D72: ='Startovní listina'!B21 -> 19 | E72: ='Startovní listina'!C21 -> Krátký | F72: ='Startovní listina'!D21 -> Josef | G72: ='Startovní listina'!E21 -> 1965 | H72: ='Startovní listina'!F21 -> SKP Hvězda Pardubice
A73: =IF('Výsledková listina (2)'!D72<>"",A72+1,"") ->  | C73: ='Startovní listina'!G6 -> A | D73: ='Startovní listina'!B6 -> 2 | E73: ='Startovní listina'!C6 -> Barvíř | F73: ='Startovní listina'!D6 -> Jiří | G73: ='Startovní listina'!E6 -> 1982 | H73: ='Startovní listina'!F6 -> R.I.P. Brno | I73: 02:40:25
A74: =IF('Výsledková listina (2)'!D73<>"",A73+1,"") ->  | C74: ='Startovní listina'!G48 -> A | D74: ='Startovní listina'!B48 -> 56 | E74: ='Startovní listina'!C48 -> Srnec | F74: ='Startovní listina'!D48 -> Lukáš | G74: ='Startovní listina'!E48 -> 1990 | H74: ='Startovní listina'!F48 -> Židlochovice | I74: 02:21:35
A75: =IF('Výsledková listina (2)'!D74<>"",A74+1,"") ->  | C75: ='Startovní listina'!G97 ->  | D75: ='Startovní listina'!B97 ->  | E75: ='Startovní listina'!C97 ->  | F75: ='Startovní listina'!D97 ->  | G75: ='Startovní listina'!E97 ->  | H75: ='Startovní listina'!F97 ->  | I75: 03:14:54
A76: =IF('Výsledková listina (2)'!D75<>"",A75+1,"") ->  | C76: ='Startovní listina'!G22 -> B | D76: ='Startovní listina'!B22 -> 21 | E76: ='Startovní listina'!C22 -> Sláma | F76: ='Startovní listina'!D22 -> Adolf | G76: ='Startovní listina'!E22 -> 1970 | H76: ='Startovní listina'!F22 -> Žďár nad Sázavou | I76: 02:25:09
A77: =IF('Výsledková listina (2)'!D76<>"",A76+1,"") ->  | C77: ='Startovní listina'!G82 -> C | D77: ='Startovní listina'!B82 -> 99 | E77: ='Startovní listina'!C82 -> Daněk | F77: ='Startovní listina'!D82 -> Milan | G77: ='Startovní listina'!E82 -> 1962 | H77: ='Startovní listina'!F82 -> Horizont kola Novák Blansko | I77: 02:50:59
A78: =IF('Výsledková listina (2)'!D77<>"",A77+1,"") ->  | C78: ='Startovní listina'!G96 ->  | D78: ='Startovní listina'!B96 ->  | E78: ='Startovní listina'!C96 ->  | F78: ='Startovní listina'!D96 ->  | G78: ='Startovní listina'!E96 ->  | H78: ='Startovní listina'!F96 ->  | I78: 03:12:26
A79: =IF('Výsledková listina (2)'!D78<>"",A78+1,"") ->  | C79: ='Startovní listina'!G30 -> A | D79: ='Startovní listina'!B30 -> 31 | E79: ='Startovní listina'!C30 -> Kohut | F79: ='Startovní listina'!D30 -> Jan | G79: ='Startovní listina'!E30 -> 1985 | H79: ='Startovní listina'!F30 -> Elite Sport Team Blansko | I79: 02:37:53
A80: =IF('Výsledková listina (2)'!D79<>"",A79+1,"") ->  | C80: ='Startovní listina'!G64 -> C | D80: ='Startovní listina'!B64 -> 79 | E80: ='Startovní listina'!C64 -> Nosek | F80: ='Startovní listina'!D64 -> Pavel | G80: ='Startovní listina'!E64 -> 1965 | H80: ='Startovní listina'!F64 -> ASK Slavkov o.s. | I80: 03:18:47
A81: =IF('Výsledková listina (2)'!D80<>"",A80+1,"") ->  | C81: ='Startovní listina'!G39 -> B | D81: ='Startovní listina'!B39 -> 42 | E81: ='Startovní listina'!C39 -> Alman | F81: ='Startovní listina'!D39 -> Dušan | G81: ='Startovní listina'!E39 -> 1967 | H81: ='Startovní listina'!F39 -> Babice nad Svitavou | I81: 02:07:35
A82: =IF('Výsledková listina (2)'!D81<>"",A81+1,"") ->  | C82: ='Startovní listina'!G56 -> C | D82: ='Startovní listina'!B56 -> 67 | E82: ='Startovní listina'!C56 -> Brabenec | F82: ='Startovní listina'!D56 -> Miroslav | G82: ='Startovní listina'!E56 -> 1959 | H82: ='Startovní listina'!F56 -> Žďár nad Sázavou | I82: 02:24:19
A83: =IF('Výsledková listina (2)'!D82<>"",A82+1,"") ->  | C83: ='Startovní listina'!G83 -> A | D83: ='Startovní listina'!B83 -> 100 | E83: ='Startovní listina'!C83 -> Šacl | F83: ='Startovní listina'!D83 -> Pavel | G83: ='Startovní listina'!E83 -> 1981 | H83: ='Startovní listina'!F83 -> Dolní Rožínka | I83: 02:31:15
A84: =IF('Výsledková listina (2)'!D83<>"",A83+1,"") ->  | C84: ='Startovní listina'!G61 -> A | D84: ='Startovní listina'!B61 -> 75 | E84: ='Startovní listina'!C61 -> Kalich | F84: ='Startovní listina'!D61 -> Radim | G84: ='Startovní listina'!E61 -> 1985 | H84: ='Startovní listina'!F61 -> Odranec | I84: 02:27:55
A85: =IF('Výsledková listina (2)'!D84<>"",A84+1,"") ->  | C85: ='Startovní listina'!G95 ->  | D85: ='Startovní listina'!B95 ->  | E85: ='Startovní listina'!C95 ->  | F85: ='Startovní listina'!D95 ->  | G85: ='Startovní listina'!E95 ->  | H85: ='Startovní listina'!F95 ->  | I85: 02:34:44
A86: =IF('Výsledková listina (2)'!D85<>"",A85+1,"") ->  | C86: ='Startovní listina'!G65 -> B | D86: ='Startovní listina'!B65 -> 80 | E86: ='Startovní listina'!C65 -> Petrů | F86: ='Startovní listina'!D65 -> Roman | G86: ='Startovní listina'!E65 -> 1976 | H86: ='Startovní listina'!F65 -> Drnovice | I86: 02:58:55
A87: =IF('Výsledková listina (2)'!D86<>"",A86+1,"") ->  | C87: ='Startovní listina'!G43 -> C | D87: ='Startovní listina'!B43 -> 47 | E87: ='Startovní listina'!C43 -> Šádek | F87: ='Startovní listina'!D43 -> Jiří | G87: ='Startovní listina'!E43 -> 1959 | H87: ='Startovní listina'!F43 -> Lomnice nad Popelkou | I87: 02:32:49
A88: =IF('Výsledková listina (2)'!D87<>"",A87+1,"") ->  | C88: ='Startovní listina'!G33 -> B | D88: ='Startovní listina'!B33 -> 35 | E88: ='Startovní listina'!C33 -> Dušil | F88: ='Startovní listina'!D33 -> Jaroslav | G88: ='Startovní listina'!E33 -> 1970 | H88: ='Startovní listina'!F33 -> Běžecký klub Brno
A89: =IF('Výsledková listina (2)'!D88<>"",A88+1,"") ->  | C89: ='Startovní listina'!G76 -> B | D89: ='Startovní listina'!B76 -> 93 | E89: ='Startovní listina'!C76 -> Konečný | F89: ='Startovní listina'!D76 -> Libor | G89: ='Startovní listina'!E76 -> 1971 | H89: ='Startovní listina'!F76 -> Kuřim | I89: 03:18:56
A90: =IF('Výsledková listina (2)'!D89<>"",A89+1,"") ->  | C90: ='Startovní listina'!G12 -> C | D90: ='Startovní listina'!B12 -> 8 | E90: ='Startovní listina'!C12 -> Chramosta | F90: ='Startovní listina'!D12 -> Jaroslav | G90: ='Startovní listina'!E12 -> 1966 | H90: ='Startovní listina'!F12 -> JABOJA Team Děčín | I90: 02:05:40
A91: =IF('Výsledková listina (2)'!D90<>"",A90+1,"") ->  | C91: ='Startovní listina'!G24 -> B | D91: ='Startovní listina'!B24 -> 23 | E91: ='Startovní listina'!C24 -> Kryštof | F91: ='Startovní listina'!D24 -> Ondřej | G91: ='Startovní listina'!E24 -> 1976 | H91: ='Startovní listina'!F24 -> Jiskra Vír | I91: 02:08:44
A92: =IF('Výsledková listina (2)'!D91<>"",A91+1,"") ->  | C92: ='Startovní listina'!G16 -> A | D92: ='Startovní listina'!B16 -> 12 | E92: ='Startovní listina'!C16 -> Koudelka | F92: ='Startovní listina'!D16 -> Lukáš | G92: ='Startovní listina'!E16 -> 1983 | H92: ='Startovní listina'!F16 -> AK Drnovice
A93: =IF('Výsledková listina (2)'!D92<>"",A92+1,"") ->  | C93: ='Startovní listina'!G88 ->  | D93: ='Startovní listina'!B88 ->  | E93: ='Startovní listina'!C88 ->  | F93: ='Startovní listina'!D88 ->  | G93: ='Startovní listina'!E88 ->  | H93: ='Startovní listina'!F88 ->  | I93: 02:53:55
A94: =IF('Výsledková listina (2)'!D93<>"",A93+1,"") ->  | C94: ='Startovní listina'!G90 ->  | D94: ='Startovní listina'!B90 ->  | E94: ='Startovní listina'!C90 ->  | F94: ='Startovní listina'!D90 ->  | G94: ='Startovní listina'!E90 ->  | H94: ='Startovní listina'!F90 ->  | I94: 02:55:52
A95: =IF('Výsledková listina (2)'!D94<>"",A94+1,"") ->  | C95: ='Startovní listina'!G25 -> H | D95: ='Startovní listina'!B25 -> 24 | E95: ='Startovní listina'!C25 -> Šedová | F95: ='Startovní listina'!D25 -> Věra | G95: ='Startovní listina'!E25 -> 1964 | H95: ='Startovní listina'!F25 -> Atletic Třebíč | I95: 03:04:10
A96: =IF('Výsledková listina (2)'!D95<>"",A95+1,"") ->  | C96: ='Startovní listina'!G72 -> B | D96: ='Startovní listina'!B72 -> 89 | E96: ='Startovní listina'!C72 -> Weis | F96: ='Startovní listina'!D72 -> Josef | G96: ='Startovní listina'!E72 -> 1974 | H96: ='Startovní listina'!F72 -> Elite Sport Boskovice
A97: =IF('Výsledková listina (2)'!D96<>"",A96+1,"") ->  | C97: ='Startovní listina'!G13 -> D | D97: ='Startovní listina'!B13 -> 9 | E97: ='Startovní listina'!C13 -> Vytisk | F97: ='Startovní listina'!D13 -> Alfons | G97: ='Startovní listina'!E13 -> 1949 | H97: ='Startovní listina'!F13 -> MKS Ostrava | I97: 02:40:16
A98: =IF('Výsledková listina (2)'!D97<>"",A97+1,"") ->  | C98: ='Startovní listina'!G10 -> A | D98: ='Startovní listina'!B10 -> 6 | E98: ='Startovní listina'!C10 -> Forýtek | F98: ='Startovní listina'!D10 -> Michal | G98: ='Startovní listina'!E10 -> 1982 | H98: ='Startovní listina'!F10 -> Praha | I98: 03:00:21
A99: =IF('Výsledková listina (2)'!D98<>"",A98+1,"") ->  | C99: ='Startovní listina'!G99 ->  | D99: ='Startovní listina'!B99 ->  | E99: ='Startovní listina'!C99 ->  | F99: ='Startovní listina'!D99 ->  | G99: ='Startovní listina'!E99 ->  | H99: ='Startovní listina'!F99 -> 
A100: =IF('Výsledková listina (2)'!D99<>"",A99+1,"") ->  | C100: ='Startovní listina'!G100 ->  | D100: ='Startovní listina'!B100 ->  | E100: ='Startovní listina'!C100 ->  | F100: ='Startovní listina'!D100 ->  | G100: ='Startovní listina'!E100 ->  | H100: ='Startovní listina'!F100 -> 
A101: =IF('Výsledková listina (2)'!D100<>"",A100+1,"") ->  | C101: ='Startovní listina'!G101 ->  | D101: ='Startovní listina'!B101 ->  | E101: ='Startovní listina'!C101 ->  | F101: ='Startovní listina'!D101 ->  | G101: ='Startovní listina'!E101 ->  | H101: ='Startovní listina'!F101 -> 
A102: =IF('Výsledková listina (2)'!D101<>"",A101+1,"") ->  | C102: ='Startovní listina'!G102 ->  | D102: ='Startovní listina'!B102 ->  | E102: ='Startovní listina'!C102 ->  | F102: ='Startovní listina'!D102 ->  | G102: ='Startovní listina'!E102 ->  | H102: ='Startovní listina'!F102 -> 
A103: =IF('Výsledková listina (2)'!D102<>"",A102+1,"") ->  | C103: ='Startovní listina'!G103 ->  | D103: ='Startovní listina'!B103 ->  | E103: ='Startovní listina'!C103 ->  | F103: ='Startovní listina'!D103 ->  | G103: ='Startovní listina'!E103 ->  | H103: ='Startovní listina'!F103 -> 
